Workbook

Sheet Design
B1: MWTH Version | C1: = | D1: 0.3 BETA
B3: Driver Dimensions
B4: Frame Width | C4: = | D4: 38 | E4: cm | F4: =D4/2.54 -> 14.96062992 | G4: in | I4: Plot
B5: Mounting Width | C5: = | D5: 35.8 | E5: cm | F5: =D5/2.54 -> 14.09448819 | G5: in | H5: x | I5: Panel A, top & bottom
B6: Mounting Depth | C6: = | D6: 16.2 | E6: cm | F6: =D6/2.54 -> 6.377952756 | G6: in | H6: x | I6: Panel B, driver baffle
B7: Magnet Width | C7: = | D7: 17 | E7: cm | F7: =D7/2.54 -> 6.692913386 | G7: in | H7: x | I7: Panel C, sides
B8: Magnet Height | C8: = | D8: 6 | E8: cm | F8: =D8/2.54 -> 2.362204724 | G8: in | H8: x | I8: Panel D, back
H9: x | I9: Panel E, front
B10: Box Dimensions | H10: x | I10: Panel F, 1st inside
B11: d (external) | C11: = | D11: =30.25*2.54 -> 76.835 | E11: cm | F11: =D11/2.54 -> 30.25 | G11: in | H11: x | I11: Panel G, 2nd inside
B12: w (external) | C12: = | D12: =24*2.54 -> 60.96 | E12: cm | F12: =D12/2.54 -> 24 | G12: in | H12: x | I12: Panel H, 4th inside
B13: h (external) | C13: = | D13: =47.5*2.54 -> 120.65 | E13: cm | F13: =D13/2.54 -> 47.5 | G13: in | H13: x | I13: Panel I, 5th inside
H14: x | I14: Panel J, 6th inside
H15: x | I15: Panel K, 7th inside
B17: driver offset (y) | C17: = | D17: 0 | E17: cm | F17: =D17/2.54 -> 0 | G17: in | I17: Plot
B18: driver offset (x) | C18: = | D18: 18 | E18: cm | F18: =D18/2.54 -> 7.086614173 | G18: in | H18: x | I18: Advanced Centerline
H19: o | I19: Sample points
B20: HornResp Params | H20: x | I20: Driver
B21: S1 | C21: = | D21: 254 | E21: cm^2 | H21: o | I21: Suggested braces
B22: S2 | C22: = | D22: =Path!H11 -> 302.7841232 | E22: cm^2 | H22: o | I22: Guides
B23: S3 | C23: = | D23: =Path!H12 -> 1083.868825 | E23: cm^2
B24: S4 | C24: = | D24: =Path!H13 -> 1681.321426 | E24: cm^2
B25: S5 | C25: = | D25: 1814.5 | E25: cm^2
B26: L12 | C26: = | D26: =Path!K11 -> 17.94214925 | E26: cm
B27: L23 | C27: = | D27: =Path!K12 -> 287.3946468 | E27: cm
B28: L34 | C28: = | D28: =Path!K13 -> 128.6887561 | E28: cm
B29: L45 | C29: = | D29: =Path!K14 -> 28.72078815 | E29: cm
B30: Vtc | C30: = | D30: =D37-D38 -> 3000 | E30: cm^3
B31: Atc | C31: = | D31: =D97 -> 823.72 | E31: cm^2
B32: L (actual) | C32: = | D32: =Path!K15 -> 462.7463403 | E32: cm
B34: Ideal box width | C34: = | D34: =D25^0.5+2*D51 -> 46.39694825 | E34: cm | F34: =D34/2.54 -> 18.26651506 | G34: in
B35: Compression ratio | C35: = | D35: =D97/(D22+D39) -> 2.318824746
B37: Cone Volume | C37: = | D37: 3000 | E37: cm^3
B38: Cone Vol. Adj. (S2) | C38: = | D38: 0 | E38: cm^3
B39: Equivalent CSA. | C39: = | D39: =D37/E50 -> 52.44755245 | E39: cm^2
B40: S2-S3 expansion | C40: = | D40: Par | E40: Par, Con, Exp
B42: Horn Design
B43: Vol. (net) | C43: = | D43: =D44-I65 -> 457.2118734 | E43: l. | F43: =(D43*1000/2.54^3)/1728 -> 16.14628493 | G43: cu.ft.
B44: Vol. (gross) | C44: = | D44: =(D11*D12*D13)/10^3 -> 565.107902 | E44: l. | F44: =(D44*1000/2.54^3)/1728 -> 19.95659722 | G44: cu.ft. | H44: Err
B45: Expansion 1 (S2-S3) | C45: = | D45: 2.722964086 | H45: =Angle1-Path!M12 -> 0.0006806933563
B46: Expansion 2 (S3-S5) | C46: = | D46: 4.642212844 | H46: =Angle2-Path!M14 -> -0.0002169179473
B48: Panels | D48: p | E48: x | F48: y | I48: # | J48: v
B49: =I5 -> Panel A, top & bottom | D49: 1.9 | E49: =ROUND(D12-2*D51,1) -> 57.2 | F49: =ROUND(Panels!K7,1) -> 76.8 | I49: 2 | J49: =F49*E49*D49*I49/10^3 -> 16.693248
B50: Panel B, driver baffle | D50: 1.9 | E50: =E49 -> 57.2 | F50: 47.4643204 | H50: =Path!U138 -> -0.002763979043 | I50: 1 | J50: 5.158422341
B51: Panel C, sides | D51: 1.9 | E51: =ROUND(Panels!K19,1) -> 120.7 | F51: =ROUND(Panels!K20,1) -> 76.8 | I51: 2 | J51: 35.225088
B52: Panel D, back | D52: 1.9 | E52: =E50 -> 57.2 | F52: =ROUND(Panels!K25,1) -> 116.9 | I52: 1 | J52: 12.704692
B53: Panel E, front | D53: 1.9 | E53: =E50 -> 57.2 | F53: 83.20193428 | H53: =D25-Path!$H$14 -> 0.0005808543851 | I53: 1 | J53: 9.042386218
B54: Panel F, 1st inside | D54: 1.9 | E54: =E50 -> 57.2 | F54: 37.89094333 | H54: =Path!U129 -> -0.0006206775254 | I54: 1 | J54: 4.117987721
B55: Panel G, 2nd inside | D55: 1.9 | E55: =E49 -> 57.2 | F55: 39.3524224 | H55: =Path!U45 -> -0.0002969751011 | I55: 1 | J55: 4.276821266
F56: 6.343974807 | H56: =D21-Path!$H$10 -> -0.0007837428789
B57: =I12 -> Panel H, 4th inside | D57: 1.9 | E57: =E49 -> 57.2 | F57: 63.6794299 | H57: =Path!U57 -> -0.001017118384 | I57: 1 | J57: 6.920680441
B58: =I13 -> Panel I, 5th inside | D58: 1.9 | E58: =E49 -> 57.2 | F58: 31.90217909 | H58: =Path!U102 -> -0.001389154036 | I58: 1 | J58: 3.467128824
B59: =I14 -> Panel J, 6th inside | D59: 1.9 | E59: =E49 -> 57.2 | F59: 44.4292873 | H59: =Path!U93 -> -0.0001939376875 | I59: 1 | J59: =F59*E59*D59*I59/10^3 -> 4.828574943
F60: 86.81164331 | H60: =Path!U78 -> -5.889550778e-05
B61: =I15 -> Panel K, 7th inside | D61: 1.9 | E61: =E49 -> 57.2 | F61: 50.24842571 | H61: =Path!U72 -> -1.842863639e-09 | I61: 1 | J61: =F61*E61*D61*I61/10^3 -> 5.460998906
H65: Pnl Vol | I65: =SUM(J49:J63) -> 107.8960287 | J65: l
B74: Filename | C74: = | D74: I:\Users\Brian.Steele\OneDrive\Hornresp\Import\BOXPLAN.TXT
B76: ID | C76: = | D76: 29.00 | J76: =CONCATENATE(B76,C76,D76) -> ID=29.00
B77: Ang | C77: = | D77: 2.0 x PI | J77: =CONCATENATE(B77,C77,D77) -> Ang=2.0 x PI
B78: Eg | C78: = | D78: 2.83 | J78: Eg=2.83
B79: Rg | C79: = | D79: 0 | J79: Rg=0
B80: Fta | C80: = | D80: 0 | J80: Fta=0
B81: S1 | C81: = | D81: =ROUND(D21,0) -> 254 | J81: S1=254
B82: S2 | C82: = | D82: =ROUND(D22,0) -> 303 | J82: S2=303
B83: Par | C83: = | D83: =ROUND(D26,1) -> 17.9 | J83: Par=17.9
B84: F12 | C84: = | D84: 0 | J84: F12=0
B85: S2 | C85: = | D85: =D82 -> 303 | J85: S2=303
B86: S3 | C86: = | D86: =ROUND(D23,0) -> 1084 | J86: S3=1084
B87: =D40 -> Par | C87: = | D87: =ROUND(D27,1) -> 287.4 | J87: Par=287.4
B88: F23 | C88: = | D88: 0 | J88: F23=0
B89: S3 | C89: = | D89: =D86 -> 1084 | J89: S3=1084
B90: S4 | C90: = | D90: =ROUND(D24,0) -> 1681 | J90: S4=1681
B91: Par | C91: = | D91: =ROUND(D28,1) -> 128.7 | J91: Par=128.7
B92: F34 | C92: = | D92: 0 | J92: F34=0
B93: S4 | C93: = | D93: =D90 -> 1681 | J93: S4=1681
B94: S5 | C94: = | D94: =ROUND(D25,0) -> 1815 | J94: S5=1815
B95: Par | C95: = | D95: =ROUND(D29,1) -> 28.7 | J95: Par=28.7
B96: F45 | C96: = | D96: 0 | J96: F45=0
B97: Sd | C97: = | D97: 823.72 | J97: Sd=823.72
B98: Bl | C98: = | D98: 30.65 | J98: Bl=30.65
B99: Cms | C99: = | D99: 0.000179 | J99: Cms=0.000179
B100: Rms | C100: = | D100: 3.91 | J100: Rms=3.91
B101: Mmd | C101: = | D101: 237.25 | J101: Mmd=237.25
B102: Le | C102: = | D102: 8.67 | J102: Le=8.67
B103: Re | C103: = | D103: 7.35 | J103: Re=7.35
B104: TH | C104: = | D104: 1 | J104: TH=1
B105: Vrc | C105: = | D105: 0 | J105: Vrc=0
B106: Lrc | C106: = | D106: 0 | J106: Lrc=0
B107: Ap1 | C107: = | D107: 0 | J107: Ap1=0
B108: Lp | C108: = | D108: 0 | J108: Lp=0
B109: Vtc | C109: = | D109: =D37-D38 -> 3000 | J109: Vtc=3000
B110: Atc | C110: = | D110: =D97 -> 823.72 | J110: Atc=823.72
B111: Pmax | C111: = | D111: 100 | J111: Pmax=100
B112: Xmax | C112: = | D112: 5 | J112: Xmax=5
B113: Comment | C113: = | D113: BOXPLAN-Export (MWTH v0.3) | J113: Comment=BOXPLAN-Export (MWTH v0.3)

Sheet Panels
R4: Exp. | S4: Cos | T4: Sin | U4: Cos | V4: Tan | W4: 1/2 | X4: Cos | Y4: Sin | Z4: Cos | AA4: Tan
C5: x | D5: y | F5: x | G5: y | I5: dx | J5: dy | L5: A | M5: B | Q5: 1 | R5: =Design!D45 -> 2.722964086 | S5: =COS(R5*PI()/180) -> 0.9988709145 | T5: =SIN(R5*PI()/180) -> 0.0475068009 | U5: =S5 -> 0.9988709145 | V5: =TAN(R5*PI()/180) -> 0.04756050077 | W5: =R5/2 -> 1.361482043 | X5: =COS(W5*PI()/180) -> 0.9997176888 | Y5: =SIN(W5*PI()/180) -> 0.02376010819 | Z5: =X5 -> 0.9997176888 | AA5: =TAN(W5*PI()/180) -> 0.02376681783
A6: =Design!I5 -> Panel A, top & bottom | C6: =C18-Design!D49 -> 118.75 | D6: =D18 -> 76.835 | F6: =IF(Design!$H$5="x",C6,0) -> 118.75 | G6: =IF(Design!$H$5="x",D6,0) -> 76.835 | Q6: 2 | R6: =Design!$D46 -> 4.642212844 | S6: =COS(R6*PI()/180) -> 0.9967195211 | T6: =SIN(R6*PI()/180) -> 0.08093328244 | U6: =S6 -> 0.9967195211 | V6: =TAN(R6*PI()/180) -> 0.08119965619 | W6: =R6/2 -> 2.321106422 | X6: =COS(W6*PI()/180) -> 0.9991795437 | Y6: =SIN(W6*PI()/180) -> 0.04049986959 | Z6: =X6 -> 0.9991795437 | AA6: =TAN(W6*PI()/180) -> 0.04053312525
C7: =C6 -> 118.75 | D7: =D20 -> 0 | F7: =IF(Design!$H$5="x",C7,0) -> 118.75 | G7: =IF(Design!$H$5="x",D7,0) -> 0 | I7: =C6-C7 -> 0 | J7: 76.835 | K7: =(I7^2+J7^2)^0.5 -> 76.835 | Q7: 3 | R7: =(180-R5)/2-R6 -> 83.99630511 | S7: =COS((R7)*PI()/180) -> 0.1045925977 | T7: =SIN((R7)*PI()/180) -> 0.9945151525 | U7: =S7 -> 0.1045925977 | V7: =TAN((R7)*PI()/180) -> 9.508465935 | W7: =R7/2 -> 41.99815256 | X7: =COS(W7*PI()/180) -> 0.7431664005 | Y7: =SIN(W7*PI()/180) -> 0.6691066441 | Z7: =X7 -> 0.7431664005 | AA7: =TAN(W7*PI()/180) -> 0.9003456609
C8: =C7+Design!D49 -> 120.65 | D8: =D7 -> 0 | F8: =IF(Design!$H$5="x",C8,0) -> 120.65 | G8: =IF(Design!$H$5="x",D8,0) -> 0 | I8: -1.9 | J8: 0 | K8: =(I8^2+J8^2)^0.5 -> 1.9 | Q8: 1+2 | R8: =R5+R6 -> 7.36517693 | S8: =COS((R8)*PI()/180) -> 0.9917492583 | T8: =SIN((R8)*PI()/180) -> 0.1281928577 | U8: =S8 -> 0.9917492583 | V8: =TAN((R8)*PI()/180) -> 0.1292593431 | W8: =R8/2 -> 3.682588465 | X8: =COS(W8*PI()/180) -> 0.9979351828 | Y8: =SIN(W8*PI()/180) -> 0.06422905009 | Z8: =X8 -> 0.9979351828 | AA8: =TAN(W8*PI()/180) -> 0.06436194574
C9: =C8 -> 120.65 | D9: =D6 -> 76.835 | F9: =IF(Design!$H$5="x",C9,0) -> 120.65 | G9: =IF(Design!$H$5="x",D9,0) -> 76.835 | I9: 0 | J9: -76.835 | K9: =(I9^2+J9^2)^0.5 -> 76.835 | Q9: 1-2 | R9: =R5-R6 -> -1.919248757 | S9: =COS((R9)*PI()/180) -> 0.9994390209 | T9: =SIN((R9)*PI()/180) -> -0.033490946 | U9: =S9 -> 0.9994390209 | V9: =TAN((R9)*PI()/180) -> -0.03350974427 | W9: =R9/2 -> -0.9596243787 | X9: =COS((R9)*PI()/(180*2)) -> 0.9998597454 | Y9: =SIN((R9)*PI()/(180*2)) -> -0.01674782196 | Z9: =X9 -> 0.9998597454 | AA9: =TAN((R9)*PI()/(180*2)) -> -0.01675017125
C10: =C6 -> 118.75 | D10: =D6 -> 76.835 | F10: =IF(Design!$H$5="x",C10,0) -> 118.75 | G10: =IF(Design!$H$5="x",D10,0) -> 76.835 | I10: 1.9 | J10: 0 | K10: =(I10^2+J10^2)^0.5 -> 1.9
A12: =Design!I5 -> Panel A, top & bottom | C12: =C19 -> 0 | D12: =D6 -> 76.835 | F12: =IF(Design!$H$5="x",C12,0) -> 0 | G12: =IF(Design!$H$5="x",D12,0) -> 76.835
C13: =C12 -> 0 | D13: =D7 -> 0 | F13: =IF(Design!$H$5="x",C13,0) -> 0 | G13: =IF(Design!$H$5="x",D13,0) -> 0 | I13: =C12-C13 -> 0 | J13: 76.835 | K13: =(I13^2+J13^2)^0.5 -> 76.835
C14: =C13+Design!D49 -> 1.9 | D14: =D13 -> 0 | F14: =IF(Design!$H$5="x",C14,0) -> 1.9 | G14: =IF(Design!$H$5="x",D14,0) -> 0 | I14: -1.9 | J14: 0 | K14: =(I14^2+J14^2)^0.5 -> 1.9
C15: =C14 -> 1.9 | D15: =D12 -> 76.835 | F15: =IF(Design!$H$5="x",C15,0) -> 1.9 | G15: =IF(Design!$H$5="x",D15,0) -> 76.835 | I15: 0 | J15: -76.835 | K15: =(I15^2+J15^2)^0.5 -> 76.835
C16: =C12 -> 0 | D16: =D12 -> 76.835 | F16: =IF(Design!$H$5="x",C16,0) -> 0 | G16: =IF(Design!$H$5="x",D16,0) -> 76.835 | I16: 1.9 | J16: 0 | K16: =(I16^2+J16^2)^0.5 -> 1.9
A18: Panel C (top, bottom) | C18: =Design!D13 -> 120.65 | D18: =Design!D11 -> 76.835 | F18: =IF(Design!$H$7="x",C18,0) -> 120.65 | G18: =IF(Design!$H$7="x",D18,0) -> 76.835
C19: 0 | D19: =D18 -> 76.835 | F19: =IF(Design!$H$7="x",C19,0) -> 0 | G19: =IF(Design!$H$7="x",D19,0) -> 76.835 | I19: =C18-C19 -> 120.65 | J19: 0 | K19: =(I19^2+J19^2)^0.5 -> 120.65
C20: =C19 -> 0 | D20: 0 | F20: =IF(Design!$H$7="x",C20,0) -> 0 | G20: =IF(Design!$H$7="x",D20,0) -> 0 | I20: 0 | J20: 76.835 | K20: =(I20^2+J20^2)^0.5 -> 76.835
C21: =C18 -> 120.65 | D21: =D20 -> 0 | F21: =IF(Design!$H$7="x",C21,0) -> 120.65 | G21: =IF(Design!$H$7="x",D21,0) -> 0 | I21: -120.65 | J21: 0 | K21: =(I21^2+J21^2)^0.5 -> 120.65
C22: =C18 -> 120.65 | D22: =D18 -> 76.835 | F22: =IF(Design!$H$7="x",C22,0) -> 120.65 | G22: =IF(Design!$H$7="x",D22,0) -> 76.835 | I22: 0 | J22: -76.835 | K22: =(I22^2+J22^2)^0.5 -> 76.835
A24: Panel D (back) | C24: =C14 -> 1.9 | D24: =D20+Design!D52 -> 1.9 | F24: =IF(Design!$H$8="x",C24,0) -> 1.9 | G24: =IF(Design!$H$8="x",D24,0) -> 1.9
C25: =C7 -> 118.75 | D25: =D24 -> 1.9 | F25: =IF(Design!$H$8="x",C25,0) -> 118.75 | G25: =IF(Design!$H$8="x",D25,0) -> 1.9 | I25: =C24-C25 -> -116.85 | J25: 0 | K25: =(I25^2+J25^2)^0.5 -> 116.85
C26: =C25 -> 118.75 | D26: =D25-Design!D52 -> 0 | F26: =IF(Design!$H$8="x",C26,0) -> 118.75 | G26: =IF(Design!$H$8="x",D26,0) -> 0 | I26: 0 | J26: 1.9 | K26: =(I26^2+J26^2)^0.5 -> 1.9
C27: =C24 -> 1.9 | D27: =D26 -> 0 | F27: =IF(Design!$H$8="x",C27,0) -> 1.9 | G27: =IF(Design!$H$8="x",D27,0) -> 0 | I27: 116.85 | J27: 0 | K27: =(I27^2+J27^2)^0.5 -> 116.85
C28: =C24 -> 1.9 | D28: =D24 -> 1.9 | F28: =IF(Design!$H$8="x",C28,0) -> 1.9 | G28: =IF(Design!$H$8="x",D28,0) -> 1.9 | I28: 0 | J28: -1.9 | K28: =(I28^2+J28^2)^0.5 -> 1.9
A30: Panel E (front) | C30: =C6 -> 118.75 | D30: =D18 -> 76.835 | F30: =IF(Design!$H$9="x",C30,0) -> 118.75 | G30: =IF(Design!$H$9="x",D30,0) -> 76.835
C31: =C30-Design!F53 -> 35.54806572 | D31: =D30 -> 76.835 | F31: =IF(Design!$H$9="x",C31,0) -> 35.54806572 | G31: =IF(Design!$H$9="x",D31,0) -> 76.835 | I31: =C30-C31 -> 83.20193428 | J31: 0 | K31: =(I31^2+J31^2)^0.5 -> 83.20193428
C32: =C31 -> 35.54806572 | D32: =D31-Design!D53 -> 74.935 | F32: =IF(Design!$H$9="x",C32,0) -> 35.54806572 | G32: =IF(Design!$H$9="x",D32,0) -> 74.935 | I32: 0 | J32: 1.9 | K32: =(I32^2+J32^2)^0.5 -> 1.9
C33: =C30 -> 118.75 | D33: =D32 -> 74.935 | F33: =IF(Design!$H$9="x",C33,0) -> 118.75 | G33: =IF(Design!$H$9="x",D33,0) -> 74.935 | I33: -83.20193428 | J33: 0 | K33: =(I33^2+J33^2)^0.5 -> 83.20193428
C34: =C33 -> 118.75 | D34: =D31 -> 76.835 | F34: =IF(Design!$H$9="x",C34,0) -> 118.75 | G34: =IF(Design!$H$9="x",D34,0) -> 76.835 | I34: 0 | J34: -1.9 | K34: =(I34^2+J34^2)^0.5 -> 1.9
A36: Panel B (1st inside) | C36: =C32-Design!D50*Panels!S6 -> 33.65429863 | D36: =D39+Design!D50*Panels!T6 -> 76.98877324 | F36: =IF(Design!$H$6="x",C36,0) -> 33.65429863 | G36: =IF(Design!$H$6="x",D36,0) -> 76.98877324 | L36: =IF(C37=C36,0,(D37-D36)/(C37-C36)) -> 12.31532308 | M36: =IF(L36=0,0,D36-L36*C36) -> -337.4747874
C37: =C36-Design!F50*T6 -> 29.81285538 | D37: =D36-Design!F50*Panels!S6 -> 29.68015854 | F37: =IF(Design!$H$6="x",C37,0) -> 29.81285538 | G37: =IF(Design!$H$6="x",D37,0) -> 29.68015854 | I37: =C36-C37 -> 3.841443248 | J37: 47.3086147 | K37: =(I37^2+J37^2)^0.5 -> 47.4643204 | L37: =IF(C38=C37,0,(D38-D37)/(C38-C37)) -> -0.08119965619 | M37: =IF(L37=0,0,D37-L37*C37) -> 32.10095214
C38: =C37+Design!D50*S6 -> 31.70662247 | D38: =D37-Design!D50*Panels!T6 -> 29.5263853 | F38: =IF(Design!$H$6="x",C38,0) -> 31.70662247 | G38: =IF(Design!$H$6="x",D38,0) -> 29.5263853 | I38: -1.89376709 | J38: 0.1537732366 | K38: =(I38^2+J38^2)^0.5 -> 1.9 | L38: =IF(C39=C38,0,(D39-D38)/(C39-C38)) -> 12.31532308 | M38: =IF(L38=0,0,D38-L38*C38) -> -360.9509142
C39: =C31 -> 35.54806572 | D39: =D31 -> 76.835 | F39: =IF(Design!$H$6="x",C39,0) -> 35.54806572 | G39: =IF(Design!$H$6="x",D39,0) -> 76.835 | I39: -3.841443248 | J39: -47.3086147 | K39: =(I39^2+J39^2)^0.5 -> 47.4643204 | L39: =IF(C40=C39,0,(D40-D39)/(C40-C39)) -> -0.08119965619 | M39: =IF(L39=0,0,D39-L39*C39) -> 79.72149071
C40: =C36 -> 33.65429863 | D40: =D36 -> 76.98877324 | F40: =IF(Design!$H$6="x",C40,0) -> 33.65429863 | G40: =IF(Design!$H$6="x",D40,0) -> 76.98877324 | I40: 1.89376709 | J40: -0.1537732366 | K40: =(I40^2+J40^2)^0.5 -> 1.9
A42: Panel F | C42: =C37 -> 29.81285538 | D42: =D37 -> 29.68015854 | F42: =IF(Design!$H$10="x",C42,0) -> 29.81285538 | G42: =IF(Design!$H$10="x",D42,0) -> 29.68015854 | L42: =IF(C43=C42,0,(D43-D42)/(C43-C42)) -> 12.31532308 | M42: =IF(L42=0,0,D42-L42*C42) -> -337.4747874
C43: =C42-Design!D54*T6 -> 29.65908214 | D43: =D42-Design!D54*S6 -> 27.78639145 | F43: =IF(Design!$H$10="x",C43,0) -> 29.65908214 | G43: =IF(Design!$H$10="x",D43,0) -> 27.78639145 | I43: =C42-C43 -> 0.1537732366 | J43: 1.89376709 | K43: =(I43^2+J43^2)^0.5 -> 1.9 | L43: =IF(C44=C43,0,(D44-D43)/(C44-C43)) -> -0.08119965619 | M43: =IF(L43=0,0,D43-L43*C43) -> 30.19469872
C44: =C43+Design!F54*S6 -> 67.42572504 | D44: =D43-Design!F54*T6 -> 24.71975303 | F44: =IF(Design!$H$10="x",C44,0) -> 67.42572504 | G44: =IF(Design!$H$10="x",D44,0) -> 24.71975303 | I44: -37.76664289 | J44: 3.066638418 | K44: =(I44^2+J44^2)^0.5 -> 37.89094333 | L44: =IF(C45=C44,0,(D45-D44)/(C45-C44)) -> 12.31532308 | M44: =IF(L44=0,0,D44-L44*C44) -> -805.6498347
C45: =C44+Design!D54*T6 -> 67.57949827 | D45: =D44+Design!D54*S6 -> 26.61352012 | F45: =IF(Design!$H$10="x",C45,0) -> 67.57949827 | G45: =IF(Design!$H$10="x",D45,0) -> 26.61352012 | I45: -0.1537732366 | J45: -1.89376709 | K45: =(I45^2+J45^2)^0.5 -> 1.9 | L45: =IF(C46=C45,0,(D46-D45)/(C46-C45)) -> -0.08119965619 | M45: =IF(L45=0,0,D45-L45*C45) -> 32.10095214
C46: =C42 -> 29.81285538 | D46: =D42 -> 29.68015854 | F46: =IF(Design!$H$10="x",C46,0) -> 29.81285538 | G46: =IF(Design!$H$10="x",D46,0) -> 29.68015854 | I46: 37.76664289 | J46: -3.066638418 | K46: =(I46^2+J46^2)^0.5 -> 37.89094333
A48: Panel G | C48: =C38+(Design!$F$56*S6) -> 38.029786 | D48: =D38-(Design!$F$56*T6) -> 29.0129466 | F48: =IF(Design!$H$11="x",C48,0) -> 38.029786 | G48: =IF(Design!$H$11="x",D48,0) -> 29.0129466 | L48: =IF(C49=C48,0,(D49-D48)/(C49-C48)) -> 7.736384664 | M48: =IF(L48=0,0,D48-L48*C48) -> -265.2001066
C49: =C48+Design!$F$55*T8 -> 43.07448549 | D49: =D48+Design!$F$55*U8 -> 68.04068232 | F49: =IF(Design!$H$11="x",C49,0) -> 43.07448549 | G49: =IF(Design!$H$11="x",D49,0) -> 68.04068232 | I49: =C48-C49 -> -5.044699484 | J49: =D48-D49 -> -39.02773572 | K49: =(I49^2+J49^2)^0.5 -> 39.3524224 | L49: =IF(C50=C49,0,(D50-D49)/(C50-C49)) -> -0.1292593431 | M49: =IF(L49=0,0,D49-L49*C49) -> 73.60846202
C50: =C49-Design!$D$55*S8 -> 41.19016189 | D50: =D49+Design!$D$55*T8 -> 68.28424875 | F50: =IF(Design!$H$11="x",C50,0) -> 41.19016189 | G50: =IF(Design!$H$11="x",D50,0) -> 68.28424875 | I50: 1.884323591 | J50: -0.2435664296 | K50: =(I50^2+J50^2)^0.5 -> 1.9 | L50: =IF(C51=C50,0,(D51-D50)/(C51-C50)) -> 7.736384664 | M50: =IF(L50=0,0,D50-L50*C50) -> -250.3786881
C51: =C50-Design!$F$55*T8 -> 36.14546241 | D51: =D50-Design!$F$55*U8 -> 29.25651303 | F51: =IF(Design!$H$11="x",C51,0) -> 36.14546241 | G51: =IF(Design!$H$11="x",D51,0) -> 29.25651303 | I51: 5.044699484 | J51: 39.02773572 | K51: =(I51^2+J51^2)^0.5 -> 39.3524224 | L51: =IF(C52=C51,0,(D52-D51)/(C52-C51)) -> -0.1292593431 | M51: =IF(L51=0,0,D51-L51*C51) -> 33.92865175
C52: =C48 -> 38.029786 | D52: =D48 -> 29.0129466 | F52: =IF(Design!$H$11="x",C52,0) -> 38.029786 | G52: =IF(Design!$H$11="x",D52,0) -> 29.0129466 | I52: -1.884323591 | J52: 0.2435664296 | K52: =(I52^2+J52^2)^0.5 -> 1.9
A54: Panel H | C54: =C49 -> 43.07448549 | D54: =D50 -> 68.28424875 | F54: =IF(Design!$H$12="x",C54,0) -> 43.07448549 | G54: =IF(Design!$H$12="x",D54,0) -> 68.28424875 | L54: =IF(C55=C54,D55-D54,(D55-D54)/(C55-C54)) -> -0.04756050077 | M54: =IF(L54=0,0,D54-L54*C54) -> 70.33289285
C55: =C54+Design!F57*S5 -> 106.6820159 | D55: =D54-Design!F57*T5 -> 65.25904275 | F55: =IF(Design!$H$12="x",C55,0) -> 106.6820159 | G55: =IF(Design!$H$12="x",D55,0) -> 65.25904275 | I55: =C54-C55 -> -63.60753038 | J55: 3.025205997 | K55: =(I55^2+J55^2)^0.5 -> 63.6794299 | L55: =IF(C56=C55,0,(D56-D55)/(C56-C55)) -> 21.02585094 | M55: =IF(L55=0,0,D55-L55*C55) -> -2177.821121
C56: =C55-Design!D57*T5 -> 106.5917529 | D56: =D55-Design!D57*S5 -> 63.36118802 | F56: =IF(Design!$H$12="x",C56,0) -> 106.5917529 | G56: =IF(Design!$H$12="x",D56,0) -> 63.36118802 | I56: 0.0902629217 | J56: 1.897854738 | K56: =(I56^2+J56^2)^0.5 -> 1.9 | L56: =IF(C57=C56,0,(D57-D56)/(C57-C56)) -> -0.04756050077 | M56: =IF(L56=0,0,D56-L56*C56) -> 68.43074516
C57: =C56-Design!F57*S5 -> 42.98422256 | D57: =D56+Design!F57*T5 -> 66.38639401 | F57: =IF(Design!$H$12="x",C57,0) -> 42.98422256 | G57: =IF(Design!$H$12="x",D57,0) -> 66.38639401 | I57: 63.60753038 | J57: -3.025205997 | K57: =(I57^2+J57^2)^0.5 -> 63.6794299 | L57: =IF(C58=C57,0,(D58-D57)/(C58-C57)) -> 21.02585094 | M57: =IF(L57=0,0,D57-L57*C57) -> -837.3934626
C58: =C54 -> 43.07448549 | D58: =D54 -> 68.28424875 | F58: =IF(Design!$H$12="x",C58,0) -> 43.07448549 | G58: =IF(Design!$H$12="x",D58,0) -> 68.28424875 | I58: -0.0902629217 | J58: -1.897854738 | K58: =(I58^2+J58^2)^0.5 -> 1.9
A60: Panel I | C60: =C68 -> 90.61164331 | D60: =D68 -> 46.3292873 | F60: =IF(Design!$H$13="x",C60,0) -> 90.61164331 | G60: =IF(Design!$H$13="x",D60,0) -> 46.3292873 | L60: =IF(C61=C60,0,(D61-D60)/(C61-C60)) -> 0 | M60: =IF(L60=0,0,D60-L60*C60) -> 0
C61: =C60-Design!F58 -> 58.70946422 | D61: =D60 -> 46.3292873 | F61: =IF(Design!$H$13="x",C61,0) -> 58.70946422 | G61: =IF(Design!$H$13="x",D61,0) -> 46.3292873 | I61: =C60-C61 -> 31.90217909 | J61: 0 | K61: =(I61^2+J61^2)^0.5 -> 31.90217909 | L61: =IF(C62=C61,0,(D62-D61)/(C62-C61)) -> 0 | M61: =IF(L61=0,0,D61-L61*C61) -> 0
C62: =C61 -> 58.70946422 | D62: =D61+Design!D58 -> 48.2292873 | F62: =IF(Design!$H$13="x",C62,0) -> 58.70946422 | G62: =IF(Design!$H$13="x",D62,0) -> 48.2292873 | I62: 0 | J62: -1.9 | K62: =(I62^2+J62^2)^0.5 -> 1.9 | L62: =IF(C63=C62,0,(D63-D62)/(C63-C62)) -> 0 | M62: =IF(L62=0,0,D62-L62*C62) -> 0
C63: =C60 -> 90.61164331 | D63: =D62 -> 48.2292873 | F63: =IF(Design!$H$13="x",C63,0) -> 90.61164331 | G63: =IF(Design!$H$13="x",D63,0) -> 48.2292873 | I63: -31.90217909 | J63: 0 | K63: =(I63^2+J63^2)^0.5 -> 31.90217909 | L63: =IF(C64=C63,0,(D64-D63)/(C64-C63)) -> 0 | M63: =IF(L63=0,0,D63-L63*C63) -> 0
C64: =C60 -> 90.61164331 | D64: =D60 -> 46.3292873 | F64: =IF(Design!$H$13="x",C64,0) -> 90.61164331 | G64: =IF(Design!$H$13="x",D64,0) -> 46.3292873 | I64: 0 | J64: 1.9 | K64: =(I64^2+J64^2)^0.5 -> 1.9
A66: Panel J | C66: =C14+Design!F60 -> 88.71164331 | D66: =D24 -> 1.9 | F66: =IF(Design!$H$14="x",C66,0) -> 88.71164331 | G66: =IF(Design!$H$14="x",D66,0) -> 1.9 | L66: =IF(C67=C66,0,(D67-D66)/(C67-C66)) -> 0 | M66: =IF(L66=0,0,D66-L66*C66) -> 0
C67: =C66 -> 88.71164331 | D67: =D66+Design!F59 -> 46.3292873 | F67: =IF(Design!$H$14="x",C67,0) -> 88.71164331 | G67: =IF(Design!$H$14="x",D67,0) -> 46.3292873 | I67: =C66-C67 -> 0 | J67: =D66-D67 -> -44.4292873 | K67: =(I67^2+J67^2)^0.5 -> 44.4292873 | L67: =IF(C68=C67,0,(D68-D67)/(C68-C67)) -> 0 | M67: =IF(L67=0,0,D67-L67*C67) -> 0
C68: =C67+Design!D59 -> 90.61164331 | D68: =D67+Design!D64 -> 46.3292873 | F68: =IF(Design!$H$14="x",C68,0) -> 90.61164331 | G68: =IF(Design!$H$14="x",D68,0) -> 46.3292873 | I68: -1.9 | J68: 0 | K68: =(I68^2+J68^2)^0.5 -> 1.9 | L68: =IF(C69=C68,0,(D69-D68)/(C69-C68)) -> 0 | M68: =IF(L68=0,0,D68-L68*C68) -> 0
C69: =C68 -> 90.61164331 | D69: =D66 -> 1.9 | F69: =IF(Design!$H$14="x",C69,0) -> 90.61164331 | G69: =IF(Design!$H$14="x",D69,0) -> 1.9 | I69: 0 | J69: 44.4292873 | K69: =(I69^2+J69^2)^0.5 -> 44.4292873 | L69: =IF(C70=C69,0,(D70-D69)/(C70-C69)) -> 0 | M69: =IF(L69=0,0,D69-L69*C69) -> 0
C70: =C66 -> 88.71164331 | D70: =D66 -> 1.9 | F70: =IF(Design!$H$14="x",C70,0) -> 88.71164331 | G70: =IF(Design!$H$14="x",D70,0) -> 1.9 | I70: 1.9 | J70: 0 | K70: =(I70^2+J70^2)^0.5 -> 1.9
A72: Panel K | C72: =C55 -> 106.6820159 | D72: =D55 -> 65.25904275 | F72: =IF(Design!$H$15="x",C72,0) -> 106.6820159 | G72: =IF(Design!$H$15="x",D72,0) -> 65.25904275 | L72: =IF(C73=C72,0,(D73-D72)/(C73-C72)) -> 21.02585094 | M72: =IF(L72=0,0,D72-L72*C72) -> -2177.821121
C73: =C72-Design!F61*T5 -> 104.2948739 | D73: =D72-Design!F61*U5 -> 15.06735182 | F73: =IF(Design!$H$15="x",C73,0) -> 104.2948739 | G73: =IF(Design!$H$15="x",D73,0) -> 15.06735182 | I73: =C72-C73 -> 2.387141955 | J73: =D72-D73 -> 50.19169094 | K73: =(I73^2+J73^2)^0.5 -> 50.24842571 | L73: =IF(C74=C73,0,(D74-D73)/(C74-C73)) -> -0.04756050077 | M73: =IF(L73=0,0,D73-L73*C73) -> 20.02766825
C74: =C73+Design!D61*S5 -> 106.1927286 | D74: =D73-Design!D61*T5 -> 14.97708889 | F74: =IF(Design!$H$15="x",C74,0) -> 106.1927286 | G74: =IF(Design!$H$15="x",D74,0) -> 14.97708889 | I74: -1.897854738 | J74: 0.0902629217 | K74: =(I74^2+J74^2)^0.5 -> 1.9 | L74: =IF(C75=C74,0,(D75-D74)/(C75-C74)) -> 21.02585094 | M74: =IF(L74=0,0,D74-L74*C74) -> -2217.815395
C75: =C74+Design!$F$61*T5 -> 108.5798706 | D75: =D74+Design!$F$61*U5 -> 65.16877983 | F75: =IF(Design!$H$15="x",C75,0) -> 108.5798706 | G75: =IF(Design!$H$15="x",D75,0) -> 65.16877983 | I75: -2.387141955 | J75: -50.19169094 | K75: =(I75^2+J75^2)^0.5 -> 50.24842571 | L75: =IF(C76=C75,0,(D76-D75)/(C76-C75)) -> -0.04756050077 | M75: =IF(L75=0,0,D75-L75*C75) -> 70.33289285
C76: =C72 -> 106.6820159 | D76: =D72 -> 65.25904275 | F76: =IF(Design!$H$15="x",C76,0) -> 106.6820159 | G76: =IF(Design!$H$15="x",D76,0) -> 65.25904275 | I76: 1.897854738 | J76: -0.0902629217 | K76: =(I76^2+J76^2)^0.5 -> 1.9
S79: x | T79: y | V79: dX | W79: dY | X79: l | Y79: Delta
S80: =Panels!C37 -> 29.81285538 | T80: =Panels!D37 -> 29.68015854
S81: =Panels!C36 -> 33.65429863 | T81: =Panels!D36 -> 76.98877324 | V81: =S80-S81 -> -3.841443248 | W81: =T80-T81 -> -47.3086147 | X81: =(V81^2+W81^2)^0.5 -> 47.4643204 | Y81: =W81/V81 -> 12.31532308
S83: =IF(Design!$H$22="x",Design!$D$65*SIN(ATAN($Y$81)),0) -> 0 | T83: =IF(Design!$H$22="x",Design!$D$65*COS(ATAN($Y$81)),0) -> 0
Q84: Driver
Q86: Face (1) | R86: =Design!$H$20 -> x | S86: =S87+(Design!$D$4*COS(ATAN($Y$81)))/2+S83 -> 32.80738683 | T86: =T87+(Design!$D$4*SIN(ATAN($Y$81)))/2 -> 66.55878082 | V86: =IF(R86="x",S86,0) -> 32.80738683 | W86: =IF(R86="x",T86,0) -> 66.55878082
R87: =Design!$H$20 -> x | S87: =S80+(Design!D17/Panels!S8)-V81*Design!D18/X81-S83 -> 31.26965446 | T87: =T80-(W81*Design!D18/X81)-T83 -> 47.62110992 | V87: 31.26965446 | W87: 47.62110992
R88: =Design!$H$20 -> x | S88: =S87-Design!$D$6*SIN(ATAN($Y$81)) -> 15.12279822 | T88: =T87+Design!$D$6*COS(ATAN($Y$81)) -> 48.93222909 | V88: 15.12279822 | W88: 48.93222909
R89: =Design!$H$20 -> x | S89: =S88+Design!$D$7*COS(ATAN($Y$81))/2 -> 15.81073112 | T89: =T88+Design!$D$7*SIN(ATAN($Y$81))/2 -> 57.40434502 | V89: 15.81073112 | W89: 57.40434502
R90: =Design!$H$20 -> x | S90: =S89+Design!$D$8*SIN(ATAN($Y$81)) -> 21.79104825 | T90: =T89-Design!$D$8*COS(ATAN($Y$81)) -> 56.91874533 | V90: 21.79104825 | W90: 56.91874533
R91: =Design!$H$20 -> x | S91: =S87+Design!$D$5*COS(ATAN($Y$81))/2 -> 32.71836022 | T91: =T87+(Design!$D$5)*SIN(ATAN($Y$81))/2 -> 65.46238935 | V91: 32.71836022 | W91: 65.46238935
R93: =Design!$H$20 -> x | S93: =S94-(Design!$D$4*COS(ATAN($Y$81)))/2 -> 29.7319221 | T93: =T94-(Design!$D$4*SIN(ATAN($Y$81)))/2 -> 28.68343902 | V93: =IF(R93="x",S93,0) -> 29.7319221 | W93: =IF(R93="x",T93,0) -> 28.68343902
R94: =Design!$H$20 -> x | S94: =S87 -> 31.26965446 | T94: =T87 -> 47.62110992 | V94: 31.26965446 | W94: 47.62110992
R95: =Design!$H$20 -> x | S95: =S88 -> 15.12279822 | T95: =T88 -> 48.93222909 | V95: 15.12279822 | W95: 48.93222909
R96: =Design!$H$20 -> x | S96: =S95-Design!$D$7*COS(ATAN($Y$81))/2 -> 14.43486532 | T96: =T95-Design!$D$7*SIN(ATAN($Y$81))/2 -> 40.46011316 | V96: 14.43486532 | W96: 40.46011316
R97: =Design!$H$20 -> x | S97: =S96+Design!$D$8*SIN(ATAN($Y$81)) -> 20.41518245 | T97: =T96-Design!$D$8*COS(ATAN($Y$81)) -> 39.97451347 | V97: 20.41518245 | W97: 39.97451347
R98: =Design!$H$20 -> x | S98: =S94-Design!$D$5*COS(ATAN($Y$81))/2 -> 29.82094871 | T98: =T94-(Design!$D$5)*SIN(ATAN($Y$81))/2 -> 29.77983049 | V98: 29.82094871 | W98: 29.77983049
R100: =Design!$H$20 -> x | S100: =S97 -> 20.41518245 | T100: =T97 -> 39.97451347 | V100: =IF(R100="x",S100,0) -> 20.41518245 | W100: =IF(R100="x",T100,0) -> 39.97451347
R101: =Design!$H$20 -> x | S101: =S90 -> 21.79104825 | T101: =T90 -> 56.91874533 | V101: =IF(R101="x",S101,0) -> 21.79104825 | W101: =IF(R101="x",T101,0) -> 56.91874533
Q105: Graph Axes
S106: =MIN(C6:D34)-5 -> -5 | T106: =S106 -> -5
S107: =S106 -> -5 | T107: =MAX(C6:D34,Path!D19:E164) -> 120.65
S109: =S106 -> -5 | T109: =S109 -> -5
S110: =T107 -> 120.65 | T110: =T109 -> -5
S114: d | T114: =Design!E49 -> 57.2
V115: n
S116: a1 | T116: =Design!D22 -> 302.7841232 | V116: =Design!D26 -> 17.94214925
S117: a2 | T117: =Path!P141 -> 1481.915446 | V117: =Path!O141 -> 391.1326916
S118: a3 | T118: =Path!P141 -> 1481.915446 | V118: =Path!O141 -> 391.1326916

Sheet Path
H2: Exp. | I2: Cos | J2: Sin | K2: Cos | L2: Tan | M2: 1/2 | N2: Cos | O2: Sin | P2: Cos | Q2: Tan
G3: 1 | H3: =Design!D45 -> 2.722964086 | I3: =COS(H3*PI()/180) -> 0.9988709145 | J3: =SIN(H3*PI()/180) -> 0.0475068009 | K3: =I3 -> 0.9988709145 | L3: =TAN(H3*PI()/180) -> 0.04756050077 | M3: =H3/2 -> 1.361482043 | N3: =COS(M3*PI()/180) -> 0.9997176888 | O3: =SIN(M3*PI()/180) -> 0.02376010819 | P3: =N3 -> 0.9997176888 | Q3: =TAN(M3*PI()/180) -> 0.02376681783
G4: 2 | H4: =Design!$D46 -> 4.642212844 | I4: =COS(H4*PI()/180) -> 0.9967195211 | J4: =SIN(H4*PI()/180) -> 0.08093328244 | K4: =I4 -> 0.9967195211 | L4: =TAN(H4*PI()/180) -> 0.08119965619 | M4: =H4/2 -> 2.321106422 | N4: =COS(M4*PI()/180) -> 0.9991795437 | O4: =SIN(M4*PI()/180) -> 0.04049986959 | P4: =N4 -> 0.9991795437 | Q4: =TAN(M4*PI()/180) -> 0.04053312525
G5: 3 | H5: =(180-H3)/2-H4 -> 83.99630511 | I5: =COS((H5)*PI()/180) -> 0.1045925977 | J5: =SIN((H5)*PI()/180) -> 0.9945151525 | K5: =I5 -> 0.1045925977 | L5: =TAN((H5)*PI()/180) -> 9.508465935 | M5: =H5/2 -> 41.99815256 | N5: =COS(M5*PI()/180) -> 0.7431664005 | O5: =SIN(M5*PI()/180) -> 0.6691066441 | P5: =N5 -> 0.7431664005 | Q5: =TAN(M5*PI()/180) -> 0.9003456609
G6: 1+2 | H6: =H3+H4 -> 7.36517693 | I6: =COS((H6)*PI()/180) -> 0.9917492583 | J6: =SIN((H6)*PI()/180) -> 0.1281928577 | K6: =I6 -> 0.9917492583 | L6: =TAN((H6)*PI()/180) -> 0.1292593431 | M6: =H6/2 -> 3.682588465 | N6: =COS(M6*PI()/180) -> 0.9979351828 | O6: =SIN(M6*PI()/180) -> 0.06422905009 | P6: =N6 -> 0.9979351828 | Q6: =TAN(M6*PI()/180) -> 0.06436194574
G7: 1-2 | H7: =H3-H4 -> -1.919248757 | I7: =COS((H7)*PI()/180) -> 0.9994390209 | J7: =SIN((H7)*PI()/180) -> -0.033490946 | K7: =I7 -> 0.9994390209 | L7: =TAN((H7)*PI()/180) -> -0.03350974427 | M7: =H7/2 -> -0.9596243787 | N7: =COS((H7)*PI()/(180*2)) -> 0.9998597454 | O7: =SIN((H7)*PI()/(180*2)) -> -0.01674782196 | P7: =N7 -> 0.9998597454 | Q7: =TAN((H7)*PI()/(180*2)) -> -0.01675017125
H9: S | I9: L | J9: W | K9: d | L9: y | O9: Conical | S9: Exponential
G10: S1 | H10: =P24 -> 254.0007837 | I10: =O24 -> 0.001254154691 | J10: =Design!D12-2*Design!D51 -> 57.16 | L10: =H10/J10 -> 4.443680611 | O10: =(H10/PI())^0.5 -> 8.991716219
G11: S2 | H11: =P30 -> 302.7841232 | I11: =O30 -> 17.94340341 | J11: =J10 -> 57.16 | K11: =I11-I10 -> 17.94214925 | L11: 5.297133017 | M11: =ATAN((L11-L10)/(I11-I10))*180/PI() -> 2.723329864 | O11: =(H11/PI())^0.5 -> 9.81728984 | P11: =ATAN((O12-O11)/(I12-I11))*180/PI() -> 1.745289665 | Q11: =SIN(P11*PI()/(180*2)) -> 0.0152299367 | S11: =LN(H12/H11)/(I12-I11) -> 0.004437355015
G12: S3 | H12: =P114 -> 1083.868825 | I12: =O114 -> 305.3380502 | J12: =J11 -> 57.16 | K12: =I12-I11 -> 287.3946468 | L12: 18.96201582 | M12: =ATAN((L12-L10)/(I12-I10))*180/PI() -> 2.722283393 | O12: 18.5743415 | AL12: Intersection points
G13: S4 | H13: =P159 -> 1681.321426 | I13: =O159 -> 434.0268063 | J13: =J12 -> 57.16 | K13: =I13-I12 -> 128.6887561 | L13: 29.41430067 | O13: 23.13398435 | AO13: =AO15-AM15 -> 16.14685624 | AP13: =AP15-AN15 -> -1.311119175
G14: S5 | H14: =P165 -> 1814.499419 | I14: =O165 -> 462.7475944 | J14: =J13 -> 57.16 | K14: =I14-I13 -> 28.72078815 | L14: 31.74421657 | M14: =ATAN((L14-L12)/(I14-I12))*180/PI() -> 4.642429762 | O14: 24.03275065 | AM14: x1 | AN14: y1 | AO14: x2 | AP14: y2 | AQ14: a | AR14: b | AS14: x | AT14: y | AU14: l
K15: =SUM(K10:K14) -> 462.7463403 | AL15: Driver centerline | AM15: =Panels!S95 -> 15.12279822 | AN15: =Panels!T95 -> 48.93222909 | AO15: =Panels!S94 -> 31.26965446 | AP15: =Panels!T94 -> 47.62110992 | AQ15: =(AP15-AN15)/(AO15-AM15) -> -0.08119965619 | AR15: =(AP15*AM15-AN15*AO15)/(AM15-AO15) -> 50.16019511
G16: S2-S3 Exp | H16: =Design!D40 -> Par | AL16: Panel B (top) | AM16: =Panels!C37 -> 29.81285538 | AN16: =Panels!D37 -> 29.68015854 | AO16: =Panels!C40 -> 33.65429863 | AP16: =Panels!D40 -> 76.98877324 | AQ16: =(AP16-AN16)/(AO16-AM16) -> 12.31532308 | AR16: =(AP16*AM16-AN16*AO16)/(AM16-AO16) -> -337.4747874 | AS16: =(AR15-AR16)/(AQ16-AQ15) -> 31.26965446 | AT16: =AS16*AQ16+AR16 -> 47.62110992 | AU16: =(AS16^2+AT16^2)^0.5 -> 56.96982886
AL17: Panel B (bottom) | AM17: =Panels!C38 -> 31.70662247 | AN17: =Panels!D38 -> 29.5263853 | AO17: =Panels!C39 -> 35.54806572 | AP17: =Panels!D39 -> 76.835 | AQ17: =(AP17-AN17)/(AO17-AM17) -> 12.31532308 | AR17: =(AP17*AM17-AN17*AO17)/(AM17-AO17) -> -360.9509142 | AS17: =(AR15-AR17)/(AQ17-AQ15) -> 33.16342155 | AT17: =AS17*AQ17+AR17 -> 47.46733668 | AU17: =(AS17^2+AT17^2)^0.5 -> 57.90475439
A18: Path Calculations | D18: x | E18: y | G18: x | H18: y | J18: d | K18: x | L18: y | M18: dS | N18: d | O18: L | P18: S
D19: =AS26 -> 36.13387827 | E19: =AT26 -> 29.16689365 | G19: =IF(Design!$H$19="x",D19,0) -> 0 | H19: =IF(Design!$H$19="x",E19,0) -> 0 | I19: =SUM(D19:D20)/2 -> 33.92025037 | J19: =SUM(E19:E20)/2 -> 29.34663948 | S19: Expansion | U19: Error | W19: Target | Y19: Parabolic | AB19: Conical | AE19: Exponential | AL19: Panel B | AM19: =D23 -> 31.71089446 | AN19: =E23 -> 29.57899619 | AO19: =AM19+100*Panels!T7 -> 131.1624097 | AP19: =AN19-100*Panels!U7 -> 19.11973642 | AQ19: =(AP19-AN19)/(AO19-AM19) -> -0.105169436 | AR19: =(AP19*AM19-AN19*AO19)/(AM19-AO19) -> 32.91401308
B20: =B23+1 -> 35 | C20: 1 | D20: =Panels!C38 -> 31.70662247 | E20: =Panels!D38 -> 29.5263853 | G20: =IF(Design!$H$19="x",D20,0) -> 0 | H20: =IF(Design!$H$19="x",E20,0) -> 0 | Q20: =ATAN((E19-E20)/(D19-D20))*180/PI() -> -4.642212844 | AL20: Panel G | AM20: =AM29 -> 36.14546241 | AN20: =AN29 -> 29.25651303 | AO20: =AO29 -> 41.19016189 | AP20: =AP29 -> 68.28424875 | AQ20: =IF(AO20<>AM20,(AP20-AN20)/(AO20-AM20),"") -> 7.736384664 | AR20: =IF(AQ20<>"",(AP20*AM20-AN20*AO20)/(AM20-AO20),AM20) -> -250.3786881 | AS20: =IF(AQ20<>"",(AR19-AR20)/(AQ20-AQ19),AM20) -> 36.12711173 | AT20: =AS20*AQ19+AR19 -> 29.11454511
M21: =((D19-D20)^2+(E19-E20)^2)^0.5 -> 4.44182712 | N21: =((I19-Panels!H94)^2+(J19-Panels!I94)^2)^0.5 -> 44.85318978 | O21: 0 | P21: =((D19-D20)^2+(E19-E20)^2)^0.5*Panels!$T$114 -> 254.0725113
D22: =AS20 -> 36.12711173 | E22: =AT20 -> 29.11454511 | G22: =IF(Design!$H$19="x",D22,0) -> 0 | H22: =IF(Design!$H$19="x",E22,0) -> 0 | I22: =SUM(D22:D23)/2 -> 33.91900309 | J22: =SUM(E22:E23)/2 -> 29.34677065 | K22: =IF(Design!$H$18="x",I22,0) -> 33.91900309 | L22: =IF(Design!$H$18="x",J22,0) -> 29.34677065 | N22: =N21 -> 44.85318978 | O22: 0 | P22: 254.0725113 | S22: =P22/2 -> 127.0362556 | T22: =-S22 -> -127.0362556 | U22: =(S22-Y22)*2 -> 0.05519021611 | W22: =IF($H$16="Par",Y22,0)+IF($H$16="Con",AB22,0)+IF($H$16="Exp",AE22,0) -> 127.0086605 | Y22: =((_S3_-_S2_)*(O22-_L2_)/(_L3_-_L2_)+_S2_)/2 -> 127.0086605 | Z22: =-Y22 -> -127.0086605 | AB22: =Y22 -> 127.0086605 | AC22: =-AB22 -> -127.0086605 | AE22: =Y22 -> 127.0086605 | AF22: =-AE22 -> -127.0086605 | AG22: =IF(C20>0,L22,"") -> 29.34677065 | AH22: =O21 -> 0 | AI22: =$R$165/2 -> 906.41523 | AL22: Panel G1 | AM22: =AS26 -> 36.13387827 | AN22: =AT26 -> 29.16689365 | AO22: =AM22-100*Panels!T7 -> -63.31763698 | AP22: =AN22+100*Panels!U7 -> 39.62615342 | AQ22: =(AP22-AN22)/(AO22-AM22) -> -0.105169436 | AR22: =(AP22*AM22-AN22*AO22)/(AM22-AO22) -> 32.96707325
A23: S1 | B23: 34 | C23: =C20+1 -> 2 | D23: =(Panels!C38+D26)/2 -> 31.71089446 | E23: =(Panels!D38+E26)/2 -> 29.57899619 | G23: =IF(Design!$H$19="x",D23,0) -> 0 | H23: =IF(Design!$H$19="x",E23,0) -> 0 | K23: =K22 -> 33.91900309 | L23: =L22 -> 29.34677065 | N23: 44.85318978 | O23: 0 | P23: 254.0725113 | Q23: =ATAN((E22-E23)/(D22-D23))*180/PI() -> -6.003694887 | S23: 127.0362556 | T23: -127.0362556 | U23: =(S23-Y23)*2 -> 0.05519021611 | W23: =IF($H$16="Par",Y23,0)+IF($H$16="Con",AB23,0)+IF($H$16="Exp",AE23,0) -> 127.0086605 | Y23: 127.0086605 | Z23: -127.0086605 | AB23: =Y23 -> 127.0086605 | AC23: =-AB23 -> -127.0086605 | AE23: =Y23 -> 127.0086605 | AF23: =-AE23 -> -127.0086605 | AG23: =IF(C20>0,L23,"") -> 29.34677065 | AH23: =AH22 -> 0 | AI23: =-AI22 -> -906.41523 | AL23: Panel B | AM23: =Panels!C38 -> 31.70662247 | AN23: =Panels!D38 -> 29.5263853 | AO23: =Panels!C39 -> 35.54806572 | AP23: =Panels!D39 -> 76.835 | AQ23: =IF(AO23<>AM23,(AP23-AN23)/(AO23-AM23),"") -> 12.31532308 | AR23: =IF(AQ23<>"",(AP23*AM23-AN23*AO23)/(AM23-AO23),AM23) -> -360.9509142 | AS23: =IF(AQ23<>"",(AR22-AR23)/(AQ23-AQ22),AM23) -> 31.71516644 | AT23: =AS23*AQ22+AR22 -> 29.63160708
K24: =K23 -> 33.91900309 | L24: =L23 -> 29.34677065 | M24: =((D22-D23)^2+(E22-E23)^2)^0.5 -> 4.440573142 | N24: =((I22-I19)^2+(J22-J19)^2)^0.5 -> 0.001254154691 | O24: =O21+N24 -> 0.001254154691 | P24: =((D22-D23)^2+(E22-E23)^2)^0.5*Panels!$T$114 -> 254.0007837 | S24: 127.0003919 | T24: -127.0003919 | U24: =(S24-W24)*2 -> -0.01994586167 | W24: =IF($H$16="Par",Y24,0)+IF($H$16="Con",AB24,0)+IF($H$16="Exp",AE24,0) -> 127.0103648 | Y24: 127.0103648 | Z24: -127.0103648 | AB24: =Y24 -> 127.0103648 | AC24: =-AB24 -> -127.0103648 | AE24: =Y24 -> 127.0103648 | AF24: =-AE24 -> -127.0103648 | AG24: =IF(C20>0,L24,"") -> 29.34677065 | AJ24: =AJ21+N24 -> 0.001254154691
D25: =AS26 -> 36.13387827 | E25: =AT26 -> 29.16689365 | G25: =IF(Design!$H$19="x",D25,0) -> 0 | H25: =IF(Design!$H$19="x",E25,0) -> 0 | I25: =SUM(D25:D26)/2 -> 33.92452236 | J25: =SUM(E25:E26)/2 -> 29.39925037 | K25: =IF(Design!$H$18="x",I25,0) -> 33.92452236 | L25: =IF(Design!$H$18="x",J25,0) -> 29.39925037 | N25: =N24 -> 0.001254154691 | O25: 0.001254154691 | P25: 254.0007837 | S25: =P25/2 -> 127.0003919 | T25: =-S25 -> -127.0003919 | U25: =(S25-W25)*2 -> -0.01994586167 | W25: =IF($H$16="Par",Y25,0)+IF($H$16="Con",AB25,0)+IF($H$16="Exp",AE25,0) -> 127.0103648 | Y25: 127.0103648 | Z25: =-Y25 -> -127.0103648 | AB25: 127.0103648 | AC25: =-AB25 -> -127.0103648 | AE25: 127.0103648 | AF25: -127.0103648 | AG25: =IF(C23>0,L25,"") -> 29.39925037 | AH25: =O24 -> 0.001254154691 | AI25: =$R$165/2 -> 906.41523 | AL25: Panel F (top) | AM25: =Panels!C42 -> 29.81285538 | AN25: =Panels!D42 -> 29.68015854 | AO25: =Panels!C45 -> 67.57949827 | AP25: =Panels!D45 -> 26.61352012 | AQ25: =(AP25-AN25)/(AO25-AM25) -> -0.08119965619 | AR25: =(AP25*AM25-AN25*AO25)/(AM25-AO25) -> 32.10095214
B26: 33 | C26: =C23+1 -> 3 | D26: =AS23 -> 31.71516644 | E26: =AT23 -> 29.63160708 | G26: =IF(Design!$H$19="x",D26,0) -> 0 | H26: =IF(Design!$H$19="x",E26,0) -> 0 | K26: =K25 -> 33.92452236 | L26: =L25 -> 29.39925037 | N26: =N25 -> 0.001254154691 | O26: 0.001254154691 | P26: 254.0007837 | Q26: =ATAN((E25-E26)/(D25-D26))*180/PI() -> -6.003694887 | S26: 127.0003919 | T26: -127.0003919 | U26: -0.01994586167 | W26: 127.0103648 | Y26: 127.0103648 | Z26: -127.0103648 | AB26: 127.0103648 | AC26: -127.0103648 | AE26: 127.0103648 | AF26: -127.0103648 | AG26: =IF(C23>0,L26,"") -> 29.39925037 | AH26: =AH25 -> 0.001254154691 | AI26: =-AI25 -> -906.41523 | AL26: Panel G | AM26: =Panels!C51 -> 36.14546241 | AN26: =Panels!D51 -> 29.25651303 | AO26: =Panels!C50 -> 41.19016189 | AP26: =Panels!D50 -> 68.28424875 | AQ26: =(AP26-AN26)/(AO26-AM26) -> 7.736384664 | AR26: =(AP26*AM26-AN26*AO26)/(AM26-AO26) -> -250.3786881 | AS26: =(AR25-AR26)/(AQ26-AQ25) -> 36.13387827 | AT26: =AS26*AQ26+AR26 -> 29.16689365 | AU26: =ATAN(AQ26)*180/PI() -> 82.63482307 | AV26: =90-AU26 -> 7.36517693
K27: =K26 -> 33.92452236 | L27: =L26 -> 29.39925037 | M27: =((D25-D26)^2+(E25-E26)^2)^0.5 -> 4.443081452 | N27: =((I25-I22)^2+(J25-J22)^2)^0.5 -> 0.05276914647 | O27: =O24+N27 -> 0.05402330117 | P27: =((D25-D26)^2+(E25-E26)^2)^0.5*Panels!$T$114 -> 254.144259 | S27: 127.0721295 | T27: -127.0721295 | U27: -0.01988719946 | W27: 127.0820731 | Y27: 127.0820731 | Z27: -127.0820731 | AB27: 127.0820731 | AC27: -127.0820731 | AE27: 127.0820731 | AF27: -127.0820731 | AG27: =IF(C23>0,L27,"") -> 29.39925037 | AJ27: =AJ24+N27 -> 0.05402330117
D28: =AS29 -> 38.42781663 | E28: =AT29 -> 46.91368322 | G28: =IF(Design!$H$19="x",D28,0) -> 0 | H28: =IF(Design!$H$19="x",E28,0) -> 0 | I28: =SUM(D28:D29)/2 -> 35.79561909 | J28: =SUM(E28:E29)/2 -> 47.19050995 | K28: =IF(Design!$H$18="x",I28,0) -> 35.79561909 | L28: =IF(Design!$H$18="x",J28,0) -> 47.19050995 | N28: =N27 -> 0.05276914647 | O28: 0.05402330117 | P28: 254.144259 | S28: =P28/2 -> 127.0721295 | T28: =-S28 -> -127.0721295 | U28: -0.01988719946 | W28: 127.0820731 | Y28: 127.0820731 | Z28: =-Y28 -> -127.0820731 | AB28: 127.0820731 | AC28: -127.0820731 | AE28: 127.0820731 | AF28: -127.0820731 | AG28: =IF(C26>0,L28,"") -> 47.19050995 | AH28: =O27 -> 0.05402330117 | AI28: =$R$165/2 -> 906.41523 | AL28: Panel B | AM28: =AS17 -> 33.16342155 | AN28: =AT17 -> 47.46733668 | AO28: =AM28+100*Panels!T7 -> 132.6149368 | AP28: =AN28-100*Panels!U7 -> 37.00807691 | AQ28: =(AP28-AN28)/(AO28-AM28) -> -0.105169436 | AR28: =(AP28*AM28-AN28*AO28)/(AM28-AO28) -> 50.95511502
A29: S2 | B29: 32 | C29: =C26+1 -> 4 | D29: =AS17 -> 33.16342155 | E29: =AT17 -> 47.46733668 | G29: =IF(Design!$H$19="x",D29,0) -> 0 | H29: =IF(Design!$H$19="x",E29,0) -> 0 | K29: =K28 -> 35.79561909 | L29: =L28 -> 47.19050995 | N29: =N28 -> 0.05276914647 | O29: 0.05402330117 | P29: 254.144259 | Q29: =ATAN((E28-E29)/(D28-D29))*180/PI() -> -6.003694887 | S29: 127.0721295 | T29: -127.0721295 | U29: -0.01988719946 | W29: 127.0820731 | Y29: 127.0820731 | Z29: -127.0820731 | AB29: 127.0820731 | AC29: -127.0820731 | AE29: 127.0820731 | AF29: -127.0820731 | AG29: =IF(C26>0,L29,"") -> 47.19050995 | AH29: =AH28 -> 0.05402330117 | AI29: =-AI28 -> -906.41523 | AL29: Panel G | AM29: =Panels!C51 -> 36.14546241 | AN29: =Panels!D51 -> 29.25651303 | AO29: =Panels!C50 -> 41.19016189 | AP29: =Panels!D50 -> 68.28424875 | AQ29: =IF(AO29<>AM29,(AP29-AN29)/(AO29-AM29),"") -> 7.736384664 | AR29: =IF(AQ29<>"",(AP29*AM29-AN29*AO29)/(AM29-AO29),AM29) -> -250.3786881 | AS29: =IF(AQ29<>"",(AR28-AR29)/(AQ29-AQ28),AM29) -> 38.42781663 | AT29: =AS29*AQ28+AR28 -> 46.91368322
K30: =K29 -> 35.79561909 | L30: =L29 -> 47.19050995 | M30: =((D28-D29)^2+(E28-E29)^2)^0.5 -> 5.293428728 | N30: =((I28-I25)^2+(J28-J25)^2)^0.5 -> 17.88938011 | O30: =O27+N30 -> 17.94340341 | P30: =((D28-D29)^2+(E28-E29)^2)^0.5*Panels!$T$114 -> 302.7841232 | S30: 151.3920616 | T30: -151.3920616 | U30: 0 | W30: 151.3920616 | Y30: 151.3920616 | Z30: -151.3920616 | AB30: =Y30 -> 151.3920616 | AC30: -151.3920616 | AE30: =Y30 -> 151.3920616 | AF30: -151.3920616 | AG30: =IF(C26>0,L30,"") -> 47.19050995 | AJ30: =AJ27+N30 -> 17.94340341
D31: =Panels!C50 -> 41.19016189 | E31: =Panels!D50 -> 68.28424875 | G31: =IF(Design!$H$19="x",D31,0) -> 0 | H31: =IF(Design!$H$19="x",E31,0) -> 0 | I31: =SUM(D31:D32)/2 -> 38.04878129 | J31: =SUM(E31:E32)/2 -> 68.61462598 | K31: =IF(Design!$H$18="x",I31,0) -> 38.04878129 | L31: =IF(Design!$H$18="x",J31,0) -> 68.61462598 | N31: =N30 -> 17.88938011 | O31: 17.94340341 | P31: 302.7841232 | S31: =P31/2 -> 151.3920616 | T31: =-S31 -> -151.3920616 | U31: 0 | W31: 151.3920616 | Y31: 151.3920616 | Z31: =-Y31 -> -151.3920616 | AB31: =PI()*($Q$11*(O31-_L2_)*2+$O$11)^2/2 -> 151.3920616 | AC31: -151.3920616 | AE31: =($H$11*EXP($S$11*(O31-$I$11)))/2 -> 151.3920616 | AF31: -151.3920616 | AG31: =IF(C29>0,L31,"") -> 68.61462598 | AH31: =O30 -> 17.94340341 | AI31: =$R$165/2 -> 906.41523 | AL31: Cone Comp | AS31: =AU31*COS(ATAN(AQ15)) -> 0.9139073315 | AT31: =AU31*SIN(ATAN(AQ15)) -> -0.07420896111 | AU31: =Design!D39/Design!E49 -> 0.9169152526
B32: 31 | C32: =C29+1 -> 5 | D32: =AS49 -> 34.90740069 | E32: =AT49 -> 68.9450032 | G32: =IF(Design!$H$19="x",D32,0) -> 0 | H32: =IF(Design!$H$19="x",E32,0) -> 0 | K32: =K31 -> 38.04878129 | L32: =L31 -> 68.61462598 | N32: =N31 -> 17.88938011 | O32: 17.94340341 | P32: 302.7841232 | Q32: =ATAN((E31-E32)/(D31-D32))*180/PI() -> -6.003694887 | S32: 151.3920616 | T32: -151.3920616 | U32: 0 | W32: 151.3920616 | Y32: 151.3920616 | Z32: -151.3920616 | AB32: 151.3920616 | AC32: -151.3920616 | AE32: =($H$11*EXP($S$11*(O32-$I$11)))/2 -> 151.3920616 | AF32: -151.3920616 | AG32: =IF(C29>0,L32,"") -> 68.61462598 | AH32: =AH31 -> 17.94340341 | AI32: =-AI31 -> -906.41523
K33: =K32 -> 38.04878129 | L33: =L32 -> 68.61462598 | M33: =((D31-D32)^2+(E31-E32)^2)^0.5 -> 6.317411242 | N33: =((I31-I28)^2+(J31-J28)^2)^0.5 -> 21.5422721 | O33: =O30+N33 -> 39.48567551 | P33: =((D31-D32)^2+(E31-E32)^2)^0.5*Panels!$T$114 -> 361.355923 | S33: 180.6779615 | T33: -180.6779615 | U33: 0.02394803284 | W33: 180.6659875 | Y33: 180.6659875 | Z33: -180.6659875 | AB33: 172.3060892 | AC33: -172.3060892 | AE33: 166.5779912 | AF33: -166.5779912 | AG33: =IF(C29>0,L33,"") -> 68.61462598 | AJ33: =AJ30+N33 -> 39.48567551 | AL33: S2' | AM33: =AM107-AS31 -> 32.24951422 | AN33: =AM33*AQ15+AR15 -> 47.54154564 | AO33: =AO107 -> 31.26965446 | AP33: =AO33*AQ107+AR107 -> 47.62110992
D34: =D31 -> 41.19016189 | E34: =E31 -> 68.28424875 | G34: =IF(Design!$H$19="x",D34,0) -> 0 | H34: =IF(Design!$H$19="x",E34,0) -> 0 | I34: =SUM(D34:D35)/2 -> 38.17050424 | J34: =SUM(E34:E35)/2 -> 70.11212518 | K34: =IF(Design!$H$18="x",I34,0) -> 38.17050424 | L34: =IF(Design!$H$18="x",J34,0) -> 70.11212518 | N34: =N33 -> 21.5422721 | O34: 39.48567551 | P34: 361.355923 | S34: 180.6779615 | T34: -180.6779615 | U34: 0.02394803284 | W34: 180.6659875 | Y34: 180.6659875 | Z34: -180.6659875 | AB34: 172.3060892 | AC34: -172.3060892 | AE34: 166.5779912 | AF34: -166.5779912 | AG34: =IF(C32>0,L34,"") -> 70.11212518 | AH34: =O33 -> 39.48567551 | AI34: =$R$165/2 -> 906.41523
B35: 30 | C35: =C32+1 -> 6 | D35: =(D32+AN64)/2 -> 35.15084659 | E35: =(E32+AO64)/2 -> 71.9400016 | G35: =IF(Design!$H$19="x",D35,0) -> 0 | H35: =IF(Design!$H$19="x",E35,0) -> 0 | K35: =K34 -> 38.17050424 | L35: =L34 -> 70.11212518 | N35: =N34 -> 21.5422721 | O35: 39.48567551 | P35: 361.355923 | Q35: =ATAN((E34-E35)/(D34-D35))*180/PI() -> -31.18759779 | S35: 180.6779615 | T35: -180.6779615 | U35: 0.02394803284 | W35: 180.6659875 | Y35: 180.6659875 | Z35: -180.6659875 | AB35: 172.3060892 | AC35: -172.3060892 | AE35: 166.5779912 | AF35: -166.5779912 | AG35: =IF(C32>0,L35,"") -> 70.11212518 | AH35: =AH34 -> 39.48567551 | AI35: =-AI34 -> -906.41523
K36: =K35 -> 38.17050424 | L36: =L35 -> 70.11212518 | M36: =((D34-D35)^2+(E34-E35)^2)^0.5 -> 7.059593353 | N36: =((I34-I31)^2+(J34-J31)^2)^0.5 -> 1.502438128 | O36: =O33+N36 -> 40.98811364 | P36: =((D34-D35)^2+(E34-E35)^2)^0.5*Panels!$T$114 -> 403.8087398 | S36: 201.9043699 | T36: -201.9043699 | U36: 38.39342 | W36: 182.7076599 | Y36: 182.7076599 | Z36: -182.7076599 | AB36: 173.8151708 | AC36: -173.8151708 | AE36: 167.6922521 | AF36: -167.6922521 | AG36: =IF(C32>0,L36,"") -> 70.11212518 | AJ36: =AJ33+N36 -> 40.98811364
D37: =D31 -> 41.19016189 | E37: =E31 -> 68.28424875 | G37: =IF(Design!$H$19="x",D37,0) -> 0 | H37: =IF(Design!$H$19="x",E37,0) -> 0 | I37: =SUM(D37:D38)/2 -> 39.81914349 | J37: =SUM(E37:E38)/2 -> 71.60962438 | K37: =IF(Design!$H$18="x",I37,0) -> 39.81914349 | L37: =IF(Design!$H$18="x",J37,0) -> 71.60962438 | N37: =N36 -> 1.502438128 | O37: 40.98811364 | P37: 403.8087398 | S37: 201.9043699 | T37: -201.9043699 | U37: 38.39342 | W37: 182.7076599 | Y37: 182.7076599 | Z37: -182.7076599 | AB37: 173.8151708 | AC37: -173.8151708 | AE37: 167.6922521 | AF37: -167.6922521 | AG37: =IF(C35>0,L37,"") -> 71.60962438 | AH37: =O36 -> 40.98811364 | AI37: =$R$165/2 -> 906.41523
B38: 29 | C38: =C35+1 -> 7 | D38: =(Panels!C32+D41)/2 -> 38.44812509 | E38: =Panels!D32 -> 74.935 | G38: =IF(Design!$H$19="x",D38,0) -> 0 | H38: =IF(Design!$H$19="x",E38,0) -> 0 | K38: =K37 -> 39.81914349 | L38: =L37 -> 71.60962438 | N38: =N37 -> 1.502438128 | O38: 40.98811364 | P38: 403.8087398 | Q38: =ATAN((E37-E38)/(D37-D38))*180/PI() -> -67.59414629 | S38: 201.9043699 | T38: -201.9043699 | U38: 38.39342 | W38: 182.7076599 | Y38: 182.7076599 | Z38: -182.7076599 | AB38: 173.8151708 | AC38: -173.8151708 | AE38: 167.6922521 | AF38: -167.6922521 | AG38: =IF(C35>0,L38,"") -> 71.60962438 | AH38: =AH37 -> 40.98811364 | AI38: =-AI37 -> -906.41523
K39: =K38 -> 39.81914349 | L39: =L38 -> 71.60962438 | M39: =((D37-D38)^2+(E37-E38)^2)^0.5 -> 7.193834722 | N39: =((I37-I34)^2+(J37-J34)^2)^0.5 -> 2.227221416 | O39: =O36+N39 -> 43.21533505 | P39: =((D37-D38)^2+(E37-E38)^2)^0.5*Panels!$T$114 -> 411.4873461 | S39: 205.7436731 | T39: -205.7436731 | U39: 40.01885662 | W39: 185.7342448 | Y39: 185.7342448 | Z39: -185.7342448 | AB39: 176.0643468 | AC39: -176.0643468 | AE39: 169.3577665 | AF39: -169.3577665 | AG39: =IF(C35>0,L39,"") -> 71.60962438 | AJ39: =AJ36+N39 -> 43.21533505
D40: =D37 -> 41.19016189 | E40: =E37 -> 68.28424875 | G40: =IF(Design!$H$19="x",D40,0) -> 0 | H40: =IF(Design!$H$19="x",E40,0) -> 0 | I40: =SUM(D40:D41)/2 -> 41.26917318 | J40: =SUM(E40:E41)/2 -> 71.60962438 | K40: =IF(Design!$H$18="x",I40,0) -> 41.26917318 | L40: =IF(Design!$H$18="x",J40,0) -> 71.60962438 | N40: =N39 -> 2.227221416 | O40: 43.21533505 | P40: 411.4873461 | S40: =P40/2 -> 205.7436731 | T40: =-S40 -> -205.7436731 | U40: =(S40-W40)*2 -> 40.01885662 | W40: =IF($H$16="Par",Y40,0)+IF($H$16="Con",AB40,0)+IF($H$16="Exp",AE40,0) -> 185.7342448 | Y40: =((_S3_-_S2_)*(O40-_L2_)/(_L3_-_L2_)+_S2_)/2 -> 185.7342448 | Z40: =-Y40 -> -185.7342448 | AB40: =PI()*($Q$11*(O40-_L2_)*2+$O$11)^2/2 -> 176.0643468 | AC40: =-AB40 -> -176.0643468 | AE40: =($H$11*EXP($S$11*(O40-$I$11)))/2 -> 169.3577665 | AF40: =-AE40 -> -169.3577665 | AG40: =IF(C38>0,L40,"") -> 71.60962438 | AH40: =O39 -> 43.21533505 | AI40: =$R$165/2 -> 906.41523
B41: 28 | C41: =C38+1 -> 8 | D41: =D40+(E41-E40)*Panels!Y5 -> 41.34818446 | E41: =E38 -> 74.935 | G41: =IF(Design!$H$19="x",D41,0) -> 0 | H41: =IF(Design!$H$19="x",E41,0) -> 0 | K41: =K40 -> 41.26917318 | L41: =L40 -> 71.60962438 | N41: =N40 -> 2.227221416 | O41: 43.21533505 | P41: 411.4873461 | Q41: =ATAN((E40-E41)/(D40-D41))*180/PI() -> 88.63890217 | S41: 205.7436731 | T41: -205.7436731 | U41: 40.01885662 | W41: 185.7342448 | Y41: 185.7342448 | Z41: -185.7342448 | AB41: 176.0643468 | AC41: -176.0643468 | AE41: 169.3577665 | AF41: -169.3577665 | AG41: =IF(C38>0,L41,"") -> 71.60962438 | AH41: =AH40 -> 43.21533505 | AI41: =-AI40 -> -906.41523
K42: =K41 -> 41.26917318 | L42: =L41 -> 71.60962438 | M42: =((D40-D41)^2+(E40-E41)^2)^0.5 -> 6.652628301 | N42: =((I40-I37)^2+(J40-J37)^2)^0.5 -> 1.450029687 | O42: =O39+N42 -> 44.66536474 | P42: =((D40-D41)^2+(E40-E41)^2)^0.5*Panels!$T$114 -> 380.5303388 | S42: 190.2651694 | T42: -190.2651694 | U42: 5.120940826 | W42: 187.704699 | Y42: 187.704699 | Z42: -187.704699 | AB42: 177.536441 | AC42: -177.536441 | AE42: 170.4509779 | AF42: -170.4509779 | AG42: =IF(C38>0,L42,"") -> 71.60962438 | AJ42: =AJ39+N42 -> 44.66536474
D43: =Panels!C54 -> 43.07448549 | E43: =Panels!D54 -> 68.28424875 | G43: =IF(Design!$H$19="x",D43,0) -> 0 | H43: =IF(Design!$H$19="x",E43,0) -> 0 | I43: =SUM(D43:D44)/2 -> 43.15349677 | J43: =SUM(E43:E44)/2 -> 71.60962438 | K43: =IF(Design!$H$18="x",I43,0) -> 43.15349677 | L43: =IF(Design!$H$18="x",J43,0) -> 71.60962438 | N43: =N42 -> 1.450029687 | O43: 44.66536474 | P43: 380.5303388 | S43: 190.2651694 | T43: -190.2651694 | U43: 5.120940826 | W43: 187.704699 | Y43: 187.704699 | Z43: -187.704699 | AB43: 177.536441 | AC43: -177.536441 | AE43: 170.4509779 | AF43: -170.4509779 | AG43: =IF(C41>0,L43,"") -> 71.60962438 | AH43: =O42 -> 44.66536474 | AI43: =$R$165/2 -> 906.41523
B44: 27 | C44: =C41+1 -> 9 | D44: =D43+(E44-E43)*Panels!Y5 -> 43.23250805 | E44: =E41 -> 74.935 | G44: =IF(Design!$H$19="x",D44,0) -> 0 | H44: =IF(Design!$H$19="x",E44,0) -> 0 | K44: =K43 -> 43.15349677 | L44: =L43 -> 71.60962438 | N44: =N43 -> 1.450029687 | O44: 44.66536474 | P44: 380.5303388 | Q44: =ATAN((E43-E44)/(D43-D44))*180/PI() -> 88.63890217 | S44: 190.2651694 | T44: -190.2651694 | U44: 5.120940826 | W44: 187.704699 | Y44: 187.704699 | Z44: -187.704699 | AB44: 177.536441 | AC44: -177.536441 | AE44: 170.4509779 | AF44: -170.4509779 | AG44: =IF(C41>0,L44,"") -> 71.60962438 | AH44: =AH43 -> 44.66536474 | AI44: =-AI43 -> -906.41523
K45: =K44 -> 43.15349677 | L45: =L44 -> 71.60962438 | M45: =((D43-D44)^2+(E43-E44)^2)^0.5 -> 6.652628301 | N45: =((I43-I40)^2+(J43-J40)^2)^0.5 -> 1.884323591 | O45: =O42+N45 -> 46.54968833 | P45: =((D43-D44)^2+(E43-E44)^2)^0.5*Panels!$T$114 -> 380.5303388 | S45: 190.2651694 | T45: -190.2651694 | U45: -0.0002969751011 | W45: 190.2653179 | Y45: 190.2653179 | Z45: -190.2653179 | AB45: 179.4585943 | AC45: -179.4585943 | AE45: 171.8821639 | AF45: -171.8821639 | AG45: =IF(C41>0,L45,"") -> 71.60962438 | AJ45: =AJ42+N45 -> 46.54968833
D46: =Panels!C75 -> 108.5798706 | E46: =Panels!D75 -> 65.16877983 | G46: =IF(Design!$H$19="x",D46,0) -> 0 | H46: =IF(Design!$H$19="x",E46,0) -> 0 | I46: =SUM(D46:D47)/2 -> 108.6958938 | J46: =SUM(E46:E47)/2 -> 70.05188992 | K46: =IF(Design!$H$18="x",I46,0) -> 108.6958938 | L46: =IF(Design!$H$18="x",J46,0) -> 70.05188992 | N46: =N45 -> 1.884323591 | O46: 46.54968833 | P46: 380.5303388 | S46: 190.2651694 | T46: -190.2651694 | U46: -0.0002969751011 | W46: 190.2653179 | Y46: 190.2653179 | Z46: -190.2653179 | AB46: 179.4585943 | AC46: -179.4585943 | AE46: 171.8821639 | AF46: -171.8821639 | AG46: =IF(C44>0,L46,"") -> 70.05188992 | AH46: =O45 -> 46.54968833 | AI46: =$R$165/2 -> 906.41523
B47: 26 | C47: =C44+1 -> 10 | D47: =D46+(E47-E46)*Panels!Y5 -> 108.811917 | E47: =E41 -> 74.935 | G47: =IF(Design!$H$19="x",D47,0) -> 0 | H47: =IF(Design!$H$19="x",E47,0) -> 0 | K47: =K46 -> 108.6958938 | L47: =L46 -> 70.05188992 | N47: =N46 -> 1.884323591 | O47: 46.54968833 | P47: 380.5303388 | Q47: =ATAN((E46-E47)/(D46-D47))*180/PI() -> 88.63890217 | S47: 190.2651694 | T47: -190.2651694 | U47: -0.0002969751011 | W47: 190.2653179 | Y47: 190.2653179 | Z47: -190.2653179 | AB47: 179.4585943 | AC47: -179.4585943 | AE47: 171.8821639 | AF47: -171.8821639 | AG47: =IF(C44>0,L47,"") -> 70.05188992 | AH47: =AH46 -> 46.54968833 | AI47: =-AI46 -> -906.41523
K48: =K47 -> 108.6958938 | L48: =L47 -> 70.05188992 | M48: =((D46-D47)^2+(E46-E47)^2)^0.5 -> 9.768976504 | N48: =((I46-I43)^2+(J46-J43)^2)^0.5 -> 65.56090564 | O48: =O45+N48 -> 112.110594 | P48: =((D46-D47)^2+(E46-E47)^2)^0.5*Panels!$T$114 -> 558.785456 | S48: 279.392728 | T48: -279.392728 | U48: 0.07258553236 | W48: 279.3564352 | Y48: 279.3564352 | Z48: -279.3564352 | AB48: 252.779951 | AC48: -252.779951 | AE48: 229.9187905 | AF48: -229.9187905 | AG48: =IF(C44>0,L48,"") -> 70.05188992 | AJ48: =AJ45+N48 -> 112.110594 | AL48: Panel B | AM48: =Panels!C38 -> 31.70662247 | AN48: =Panels!D38 -> 29.5263853 | AO48: =Panels!C39 -> 35.54806572 | AP48: =Panels!D39 -> 76.835 | AQ48: =(AP48-AN48)/(AO48-AM48) -> 12.31532308 | AR48: =(AP48*AM48-AN48*AO48)/(AM48-AO48) -> -360.9509142
D49: =D46 -> 108.5798706 | E49: =E46 -> 65.16877983 | G49: =IF(Design!$H$19="x",D49,0) -> 0 | H49: =IF(Design!$H$19="x",E49,0) -> 0 | I49: =SUM(D49:D50)/2 -> 111.1804146 | J49: =SUM(E49:E50)/2 -> 70.05188992 | K49: =IF(Design!$H$18="x",I49,0) -> 111.1804146 | L49: =IF(Design!$H$18="x",J49,0) -> 70.05188992 | N49: =N48 -> 65.56090564 | O49: 112.110594 | P49: 558.785456 | S49: 279.392728 | T49: -279.392728 | U49: 0.07258553236 | W49: 279.3564352 | Y49: 279.3564352 | Z49: -279.3564352 | AB49: 252.779951 | AC49: -252.779951 | AE49: 229.9187905 | AF49: -229.9187905 | AG49: =IF(C47>0,L49,"") -> 70.05188992 | AH49: =O48 -> 112.110594 | AI49: =$R$165/2 -> 906.41523 | AL49: Panel G | AM49: =D31 -> 41.19016189 | AN49: =E31 -> 68.28424875 | AO49: =AM49-100*Panels!T7 -> -58.26135335 | AP49: =AN49+100*Panels!U7 -> 78.74350852 | AQ49: =(AP49-AN49)/(AO49-AM49) -> -0.105169436 | AR49: =(AP49*AM49-AN49*AO49)/(AM49-AO49) -> 72.61619485 | AS49: =(AR48-AR49)/(AQ49-AQ48) -> 34.90740069 | AT49: =AS49*AQ49+AR49 -> 68.9450032
B50: 25 | C50: =C47+1 -> 11 | D50: =(D47+Panels!C33)/2 -> 113.7809585 | E50: =E47 -> 74.935 | G50: =IF(Design!$H$19="x",D50,0) -> 0 | H50: =IF(Design!$H$19="x",E50,0) -> 0 | K50: =K49 -> 111.1804146 | L50: =L49 -> 70.05188992 | N50: =N49 -> 65.56090564 | O50: 112.110594 | P50: 558.785456 | Q50: =ATAN((E49-E50)/(D49-D50))*180/PI() -> 61.96206759 | S50: 279.392728 | T50: -279.392728 | U50: 0.07258553236 | W50: 279.3564352 | Y50: 279.3564352 | Z50: -279.3564352 | AB50: 252.779951 | AC50: -252.779951 | AE50: 229.9187905 | AF50: -229.9187905 | AG50: =IF(C47>0,L50,"") -> 70.05188992 | AH50: =AH49 -> 112.110594 | AI50: =-AI49 -> -906.41523
K51: =K50 -> 111.1804146 | L51: =L50 -> 70.05188992 | M51: =((D49-D50)^2+(E49-E50)^2)^0.5 -> 11.06482589 | N51: =((I49-I46)^2+(J49-J46)^2)^0.5 -> 2.484520738 | O51: =O48+N51 -> 114.5951147 | P51: =((D49-D50)^2+(E49-E50)^2)^0.5*Panels!$T$114 -> 632.9080409 | S51: 316.4540204 | T51: -316.4540204 | U51: 67.4427094 | W51: 282.7326657 | Y51: 282.7326657 | Z51: -282.7326657 | AB51: 255.8049516 | AC51: -255.8049516 | AE51: 232.4676004 | AF51: -232.4676004 | AG51: =IF(C47>0,L51,"") -> 70.05188992 | AJ51: =AJ48+N51 -> 114.5951147 | AL51: Panel H (bottom) | AM51: =Panels!C57 -> 42.98422256 | AN51: =Panels!D57 -> 66.38639401 | AO51: =Panels!C56 -> 106.5917529 | AP51: =Panels!D56 -> 63.36118802 | AQ51: =(AP51-AN51)/(AO51-AM51) -> -0.04756050077 | AR51: =(AP51*AM51-AN51*AO51)/(AM51-AO51) -> 68.43074516
D52: =D49 -> 108.5798706 | E52: =E49 -> 65.16877983 | G52: =IF(Design!$H$19="x",D52,0) -> 0 | H52: =IF(Design!$H$19="x",E52,0) -> 0 | I52: =SUM(D52:D53)/2 -> 113.6649353 | J52: =SUM(E52:E53)/2 -> 67.61033487 | K52: =IF(Design!$H$18="x",I52,0) -> 113.6649353 | L52: =IF(Design!$H$18="x",J52,0) -> 67.61033487 | N52: =N51 -> 2.484520738 | O52: 114.5951147 | P52: 632.9080409 | S52: 316.4540204 | T52: -316.4540204 | U52: 67.4427094 | W52: 282.7326657 | Y52: 282.7326657 | Z52: -282.7326657 | AB52: 255.8049516 | AC52: -255.8049516 | AE52: 232.4676004 | AF52: -232.4676004 | AG52: =IF(C50>0,L52,"") -> 67.61033487 | AH52: =O51 -> 114.5951147 | AI52: =$R$165/2 -> 906.41523 | AL52: Panel G (top) | AM52: =Panels!C62 -> 58.70946422 | AN52: =Panels!D62 -> 48.2292873 | AO52: =AM52+10*Panels!Y5 -> 58.9470653 | AP52: =AN52+10*Panels!X5 -> 58.22646418 | AQ52: =IF(AO52<>AM52,(AP52-AN52)/(AO52-AM52),"") -> 42.07546871 | AR52: =IF(AQ52<>"",(AP52*AM52-AN52*AO52)/(AM52-AO52),AM52) -> -2421.998937 | AS52: =IF(AQ52<>"",(AR51-AR52)/(AQ52-AQ51),AM52) -> 59.12275849 | AT52: =IF(AQ52<>"",AS52*AQ52+AR52,AN51) -> 65.61883716
B53: 24 | C53: =C50+1 -> 12 | D53: =Panels!C33 -> 118.75 | E53: =(E49+E50)/2 -> 70.05188992 | G53: =IF(Design!$H$19="x",D53,0) -> 0 | H53: =IF(Design!$H$19="x",E53,0) -> 0 | K53: =K52 -> 113.6649353 | L53: =L52 -> 67.61033487 | N53: =N52 -> 2.484520738 | O53: 114.5951147 | P53: 632.9080409 | Q53: =ATAN((E52-E53)/(D52-D53))*180/PI() -> 25.64763541 | S53: 316.4540204 | T53: -316.4540204 | U53: 67.4427094 | W53: 282.7326657 | Y53: 282.7326657 | Z53: -282.7326657 | AB53: 255.8049516 | AC53: -255.8049516 | AE53: 232.4676004 | AF53: -232.4676004 | AG53: =IF(C50>0,L53,"") -> 67.61033487 | AH53: =AH52 -> 114.5951147 | AI53: =-AI52 -> -906.41523
K54: =K53 -> 113.6649353 | L54: =L53 -> 67.61033487 | M54: =((D52-D53)^2+(E52-E53)^2)^0.5 -> 11.28167967 | N54: =((I52-I49)^2+(J52-J49)^2)^0.5 -> 3.48339408 | O54: =O51+N54 -> 118.0785088 | P54: =((D52-D53)^2+(E52-E53)^2)^0.5*Panels!$T$114 -> 645.3120769 | S54: 322.6560384 | T54: -322.6560384 | U54: 70.37953416 | W54: 287.4662713 | Y54: 287.4662713 | Z54: -287.4662713 | AB54: 260.0764165 | AC54: -260.0764165 | AE54: 236.0887795 | AF54: -236.0887795 | AG54: =IF(C50>0,L54,"") -> 67.61033487 | AJ54: =AJ51+N54 -> 118.0785088
D55: =D52 -> 108.5798706 | E55: =E52 -> 65.16877983 | G55: =IF(Design!$H$19="x",D55,0) -> 0 | H55: =IF(Design!$H$19="x",E55,0) -> 0 | I55: =SUM(D55:D56)/2 -> 113.6649353 | J55: =SUM(E55:E56)/2 -> 65.04795814 | K55: =IF(Design!$H$18="x",I55,0) -> 113.6649353 | L55: =IF(Design!$H$18="x",J55,0) -> 65.04795814 | N55: =N54 -> 3.48339408 | O55: 118.0785088 | P55: 645.3120769 | S55: 322.6560384 | T55: -322.6560384 | U55: 70.37953416 | W55: 287.4662713 | Y55: 287.4662713 | Z55: -287.4662713 | AB55: 260.0764165 | AC55: -260.0764165 | AE55: 236.0887795 | AF55: -236.0887795 | AG55: =IF(C53>0,L55,"") -> 65.04795814 | AH55: =O54 -> 118.0785088 | AI55: =$R$165/2 -> 906.41523
B56: 23 | C56: =C53+1 -> 13 | D56: =D53 -> 118.75 | E56: =E55-(D56-D55)*Panels!Y5 -> 64.92713646 | G56: =IF(Design!$H$19="x",D56,0) -> 0 | H56: =IF(Design!$H$19="x",E56,0) -> 0 | K56: =K55 -> 113.6649353 | L56: =L55 -> 65.04795814 | N56: =N55 -> 3.48339408 | O56: 118.0785088 | P56: 645.3120769 | Q56: =ATAN((E55-E56)/(D55-D56))*180/PI() -> -1.361097826 | S56: 322.6560384 | T56: -322.6560384 | U56: 70.37953416 | W56: 287.4662713 | Y56: 287.4662713 | Z56: -287.4662713 | AB56: 260.0764165 | AC56: -260.0764165 | AE56: 236.0887795 | AF56: -236.0887795 | AG56: =IF(C53>0,L56,"") -> 65.04795814 | AH56: =AH55 -> 118.0785088 | AI56: =-AI55 -> -906.41523
K57: =K56 -> 113.6649353 | L57: =L56 -> 65.04795814 | M57: =((D55-D56)^2+(E55-E56)^2)^0.5 -> 10.17299973 | N57: =((I55-I52)^2+(J55-J52)^2)^0.5 -> 2.56237673 | O57: =O54+N57 -> 120.6408855 | P57: =((D55-D56)^2+(E55-E56)^2)^0.5*Panels!$T$114 -> 581.8955845 | S57: 290.9477923 | T57: -290.9477923 | U57: -0.001017118384 | W57: 290.9483008 | Y57: 290.9483008 | Z57: -290.9483008 | AB57: 263.2410735 | AC57: -263.2410735 | AE57: 238.7884692 | AF57: -238.7884692 | AG57: =IF(C53>0,L57,"") -> 65.04795814 | AJ57: =AJ54+N57 -> 120.6408855 | AL57: Panel B (top) | AM57: =AM16 -> 29.81285538 | AN57: =AN16 -> 29.68015854 | AO57: =AO16 -> 33.65429863 | AP57: =AP16 -> 76.98877324 | AQ57: =(AP57-AN57)/(AO57-AM57) -> 12.31532308 | AR57: =(AP57*AM57-AN57*AO57)/(AM57-AO57) -> -337.4747874
D58: =Panels!C74 -> 106.1927286 | E58: =Panels!D74 -> 14.97708889 | G58: =IF(Design!$H$19="x",D58,0) -> 0 | H58: =IF(Design!$H$19="x",E58,0) -> 0 | I58: =SUM(D58:D59)/2 -> 112.4713643 | J58: =SUM(E58:E59)/2 -> 14.85626721 | K58: =IF(Design!$H$18="x",I58,0) -> 112.4713643 | L58: =IF(Design!$H$18="x",J58,0) -> 14.85626721 | N58: =N57 -> 2.56237673 | O58: 120.6408855 | P58: 581.8955845 | S58: 290.9477923 | T58: -290.9477923 | U58: -0.001017118384 | W58: 290.9483008 | Y58: 290.9483008 | Z58: -290.9483008 | AB58: 263.2410735 | AC58: -263.2410735 | AE58: 238.7884692 | AF58: -238.7884692 | AG58: =IF(C56>0,L58,"") -> 14.85626721 | AH58: =O57 -> 120.6408855 | AI58: =$R$165/2 -> 906.41523 | AL58: Sample Point 42 | AM58: =Panels!C15 -> 1.9 | AN58: =Panels!D15 -> 76.835 | AO58: =AM58+10*Panels!X6 -> 11.89179544 | AP58: =AN58-10*Panels!Y6 -> 76.4300013 | AQ58: =IF(AO58<>AM58,(AP58-AN58)/(AO58-AM58),"") -> -0.04053312525 | AR58: =IF(AQ58<>"",(AP58*AM58-AN58*AO58)/(AM58-AO58),AM58) -> 76.91201294 | AS58: =IF(AQ58<>"",(AR57-AR58)/(AQ58-AQ57),AM58) -> 33.53768395 | AT58: =IF(AQ58<>"",AS58*AQ58+AR58,AN57) -> 75.55262579
B59: 22 | C59: =C56+1 -> 14 | D59: =D56 -> 118.75 | E59: =E58-(D56-D55)*Panels!$Y$5 -> 14.73544552 | G59: =IF(Design!$H$19="x",D59,0) -> 0 | H59: =IF(Design!$H$19="x",E59,0) -> 0 | K59: =K58 -> 112.4713643 | L59: =L58 -> 14.85626721 | N59: =N58 -> 2.56237673 | O59: 120.6408855 | P59: 581.8955845 | Q59: =ATAN((E58-E59)/(D58-D59))*180/PI() -> -1.102423969 | S59: 290.9477923 | T59: -290.9477923 | U59: -0.001017118384 | W59: 290.9483008 | Y59: 290.9483008 | Z59: -290.9483008 | AB59: 263.2410735 | AC59: -263.2410735 | AE59: 238.7884692 | AF59: -238.7884692 | AG59: =IF(C56>0,L59,"") -> 14.85626721 | AH59: =AH58 -> 120.6408855 | AI59: =-AI58 -> -906.41523
K60: =K59 -> 112.4713643 | L60: =L59 -> 14.85626721 | M60: =((D58-D59)^2+(E58-E59)^2)^0.5 -> 12.55959615 | N60: =((I58-I55)^2+(J58-J55)^2)^0.5 -> 50.20588064 | O60: =O57+N60 -> 170.8467662 | P60: =((D58-D59)^2+(E58-E59)^2)^0.5*Panels!$T$114 -> 718.4088996 | S60: 359.2044498 | T60: -359.2044498 | U60: 0.06213882063 | W60: 359.1733804 | Y60: 359.1733804 | Z60: -359.1733804 | AB60: 329.1087542 | AC60: -329.1087542 | AE60: 298.3774841 | AF60: -298.3774841 | AG60: =IF(C56>0,L60,"") -> 14.85626721 | AJ60: =AJ57+N60 -> 170.8467662
D61: =D58 -> 106.1927286 | E61: =E58 -> 14.97708889 | G61: =IF(Design!$H$19="x",D61,0) -> 0 | H61: =IF(Design!$H$19="x",E61,0) -> 0 | I61: =SUM(D61:D62)/2 -> 112.4713643 | J61: =SUM(E61:E62)/2 -> 11.64740583 | K61: =IF(Design!$H$18="x",I61,0) -> 112.4713643 | L61: =IF(Design!$H$18="x",J61,0) -> 11.64740583 | N61: =N60 -> 50.20588064 | O61: 170.8467662 | P61: 718.4088996 | S61: 359.2044498 | T61: -359.2044498 | U61: 0.06213882063 | W61: 359.1733804 | Y61: 359.1733804 | Z61: -359.1733804 | AB61: 329.1087542 | AC61: -329.1087542 | AE61: 298.3774841 | AF61: -298.3774841 | AG61: =IF(C59>0,L61,"") -> 11.64740583 | AH61: =O60 -> 170.8467662 | AI61: =$R$165/2 -> 906.41523 | AL61: Cone Comp.
B62: 21 | C62: =C59+1 -> 15 | D62: =D59 -> 118.75 | E62: =(E59+Panels!D24)/2 -> 8.317722759 | G62: =IF(Design!$H$19="x",D62,0) -> 0 | H62: =IF(Design!$H$19="x",E62,0) -> 0 | K62: =K61 -> 112.4713643 | L62: =L61 -> 11.64740583 | N62: =N61 -> 50.20588064 | O62: 170.8467662 | P62: 718.4088996 | Q62: =ATAN((E61-E62)/(D61-D62))*180/PI() -> -27.9378803 | S62: 359.2044498 | T62: -359.2044498 | U62: 0.06213882063 | W62: 359.1733804 | Y62: 359.1733804 | Z62: -359.1733804 | AB62: 329.1087542 | AC62: -329.1087542 | AE62: 298.3774841 | AF62: -298.3774841 | AG62: =IF(C59>0,L62,"") -> 11.64740583 | AH62: =AH61 -> 170.8467662 | AI62: =-AI61 -> -906.41523 | AL62: CC1 | AN62: =Panels!C38 -> 31.70662247 | AO62: =Panels!D38 -> 29.5263853 | AR62: =(AO62-AO63)/(AN62-AN63) -> 33.18370608 | AS62: =ATAN(AR62)*180/PI() -> 88.2738985
K63: =K62 -> 112.4713643 | L63: =L62 -> 11.64740583 | M63: =((D61-D62)^2+(E61-E62)^2)^0.5 -> 14.21380389 | N63: =((I61-I58)^2+(J61-J58)^2)^0.5 -> 3.20886138 | O63: =O60+N63 -> 174.0556275 | P63: =((D61-D62)^2+(E61-E62)^2)^0.5*Panels!$T$114 -> 813.0295828 | S63: 406.5147914 | T63: -406.5147914 | U63: 85.96173913 | W63: 363.5339218 | Y63: 363.5339218 | Z63: -363.5339218 | AB63: 333.5684223 | AC63: -333.5684223 | AE63: 302.6564298 | AF63: -302.6564298 | AG63: =IF(C59>0,L63,"") -> 11.64740583 | AJ63: =AJ60+N63 -> 174.0556275 | AL63: CC2 | AN63: =Path!AM33 -> 32.24951422 | AO63: =Path!AN33 -> 47.54154564 | AR63: =(AO64-AO63)/(AN64-AN63) -> 8.710774528 | AS63: =ATAN(AR63)*180/PI() -> 83.45109342
D64: =D61 -> 106.1927286 | E64: =E61 -> 14.97708889 | G64: =IF(Design!$H$19="x",D64,0) -> 0 | H64: =IF(Design!$H$19="x",E64,0) -> 0 | I64: =SUM(D64:D65)/2 -> 109.3320465 | J64: =SUM(E64:E65)/2 -> 8.438544447 | K64: =IF(Design!$H$18="x",I64,0) -> 109.3320465 | L64: =IF(Design!$H$18="x",J64,0) -> 8.438544447 | N64: =N63 -> 3.20886138 | O64: 174.0556275 | P64: 813.0295828 | S64: 406.5147914 | T64: -406.5147914 | U64: 85.96173913 | W64: 363.5339218 | Y64: 363.5339218 | Z64: -363.5339218 | AB64: 333.5684223 | AC64: -333.5684223 | AE64: 302.6564298 | AF64: -302.6564298 | AG64: =IF(C62>0,L64,"") -> 8.438544447 | AH64: =O63 -> 174.0556275 | AI64: =$R$165/2 -> 906.41523 | AN64: =Panels!C39-Design!$D$53*Panels!T6 -> 35.39429248 | AO64: =Panels!D32 -> 74.935
B65: 20 | C65: =C62+1 -> 16 | D65: =(D61+D62)/2 -> 112.4713643 | E65: =Panels!D24 -> 1.9 | G65: =IF(Design!$H$19="x",D65,0) -> 0 | H65: =IF(Design!$H$19="x",E65,0) -> 0 | K65: =K64 -> 109.3320465 | L65: =L64 -> 8.438544447 | N65: =N64 -> 3.20886138 | O65: 174.0556275 | P65: 813.0295828 | Q65: =ATAN((E64-E65)/(D64-D65))*180/PI() -> -64.35317941 | S65: 406.5147914 | T65: -406.5147914 | U65: 85.96173913 | W65: 363.5339218 | Y65: 363.5339218 | Z65: -363.5339218 | AB65: 333.5684223 | AC65: -333.5684223 | AE65: 302.6564298 | AF65: -302.6564298 | AG65: =IF(C62>0,L65,"") -> 8.438544447 | AH65: =AH64 -> 174.0556275 | AI65: =-AI64 -> -906.41523
K66: =K65 -> 109.3320465 | L66: =L65 -> 8.438544447 | M66: =((D64-D65)^2+(E64-E65)^2)^0.5 -> 14.50625796 | N66: =((I64-I61)^2+(J64-J61)^2)^0.5 -> 4.489109917 | O66: =O63+N66 -> 178.5447375 | P66: =((D64-D65)^2+(E64-E65)^2)^0.5*Panels!$T$114 -> 829.7579551 | S66: 414.8789775 | T66: -414.8789775 | U66: 90.48955337 | W66: 369.6342009 | Y66: 369.6342009 | Z66: -369.6342009 | AB66: 339.8577399 | AC66: -339.8577399 | AE66: 308.7457249 | AF66: -308.7457249 | AG66: =IF(C62>0,L66,"") -> 8.438544447 | AJ66: =AJ63+N66 -> 178.5447375
D67: =D64 -> 106.1927286 | E67: =E64 -> 14.97708889 | G67: =IF(Design!$H$19="x",D67,0) -> 0 | H67: =IF(Design!$H$19="x",E67,0) -> 0 | I67: =SUM(D67:D68)/2 -> 106.0373721 | J67: =SUM(E67:E68)/2 -> 8.438544447 | K67: =IF(Design!$H$18="x",I67,0) -> 106.0373721 | L67: =IF(Design!$H$18="x",J67,0) -> 8.438544447 | N67: =N66 -> 4.489109917 | O67: 178.5447375 | P67: 829.7579551 | S67: 414.8789775 | T67: -414.8789775 | U67: 90.48955337 | W67: 369.6342009 | Y67: 369.6342009 | Z67: -369.6342009 | AB67: 339.8577399 | AC67: -339.8577399 | AE67: 308.7457249 | AF67: -308.7457249 | AG67: =IF(C65>0,L67,"") -> 8.438544447 | AH67: =O66 -> 178.5447375 | AI67: =$R$165/2 -> 906.41523
B68: =B92+1 -> 19 | C68: =C65+1 -> 17 | D68: =D67-(E67-E68)*Panels!Y5 -> 105.8820156 | E68: =E65 -> 1.9 | G68: =IF(Design!$H$19="x",D68,0) -> 0 | H68: =IF(Design!$H$19="x",E68,0) -> 0 | K68: =K67 -> 106.0373721 | L68: =L67 -> 8.438544447 | N68: =N67 -> 4.489109917 | O68: 178.5447375 | P68: 829.7579551 | Q68: =ATAN((E67-E68)/(D67-D68))*180/PI() -> 88.63890217 | S68: 414.8789775 | T68: -414.8789775 | U68: 90.48955337 | W68: 369.6342009 | Y68: 369.6342009 | Z68: -369.6342009 | AB68: 339.8577399 | AC68: -339.8577399 | AE68: 308.7457249 | AF68: -308.7457249 | AG68: =IF(C65>0,L68,"") -> 8.438544447 | AH68: =AH67 -> 178.5447375 | AI68: =-AI67 -> -906.41523
K69: =K68 -> 106.0373721 | L69: =L68 -> 8.438544447 | M69: =((D67-D68)^2+(E67-E68)^2)^0.5 -> 13.08077966 | N69: =((I67-I64)^2+(J67-J64)^2)^0.5 -> 3.294674362 | O69: =O66+N69 -> 181.8394118 | P69: =((D67-D68)^2+(E67-E68)^2)^0.5*Panels!$T$114 -> 748.2205966 | S69: 374.1102983 | T69: -374.1102983 | U69: -0.002111590254 | W69: 374.1113541 | Y69: 374.1113541 | Z69: -374.1113541 | AB69: 344.5110082 | AC69: -344.5110082 | AE69: 313.2926323 | AF69: -313.2926323 | AG69: =IF(C65>0,L69,"") -> 8.438544447 | AJ69: =AJ66+N69 -> 181.8394118
D70: =Panels!C73 -> 104.2948739 | E70: =Panels!D73 -> 15.06735182 | G70: =IF(Design!$H$19="x",D70,0) -> 0 | H70: =IF(Design!$H$19="x",E70,0) -> 0 | I70: =SUM(D70:D71)/2 -> 104.1384451 | J70: =SUM(E70:E71)/2 -> 8.483675908 | K70: =IF(Design!$H$18="x",I70,0) -> 104.1384451 | L70: =IF(Design!$H$18="x",J70,0) -> 8.483675908 | N70: =N69 -> 3.294674362 | O70: 181.8394118 | P70: 748.2205966 | S70: 374.1102983 | T70: -374.1102983 | U70: -0.002111590254 | W70: 374.1113541 | Y70: 374.1113541 | Z70: -374.1113541 | AB70: 344.5110082 | AC70: -344.5110082 | AE70: 313.2926323 | AF70: -313.2926323 | AG70: =IF(C68>0,L70,"") -> 8.483675908 | AH70: =O69 -> 181.8394118 | AI70: =$R$165/2 -> 906.41523
B71: 25 | C71: =C68+1 -> 18 | D71: =D70-(E70-E71)*Panels!Y5 -> 103.9820162 | E71: =E68 -> 1.9 | G71: =IF(Design!$H$19="x",D71,0) -> 0 | H71: =IF(Design!$H$19="x",E71,0) -> 0 | K71: =K70 -> 104.1384451 | L71: =L70 -> 8.483675908 | N71: =N70 -> 3.294674362 | O71: 181.8394118 | P71: 748.2205966 | Q71: =ATAN((E70-E71)/(D70-D71))*180/PI() -> 88.63890217 | S71: 374.1102983 | T71: -374.1102983 | U71: -0.002111590254 | W71: 374.1113541 | Y71: 374.1113541 | Z71: -374.1113541 | AB71: 344.5110082 | AC71: -344.5110082 | AE71: 313.2926323 | AF71: -313.2926323 | AG71: =IF(C68>0,L71,"") -> 8.483675908 | AH71: =AH70 -> 181.8394118 | AI71: =-AI70 -> -906.41523
K72: =K71 -> 104.1384451 | L72: =L71 -> 8.483675908 | M72: =((D70-D71)^2+(E70-E71)^2)^0.5 -> 13.17106806 | N72: =((I70-I67)^2+(J70-J67)^2)^0.5 -> 1.899463306 | O72: =O69+N72 -> 183.7388751 | P72: =((D70-D71)^2+(E70-E71)^2)^0.5*Panels!$T$114 -> 753.3850929 | S72: 376.6925464 | T72: -376.6925464 | U72: -1.842863639e-09 | W72: 376.6925464 | Y72: 376.6925464 | Z72: -376.6925464 | AB72: 347.2081142 | AC72: -347.2081142 | AE72: 315.9444081 | AF72: -315.9444081 | AG72: =IF(C68>0,L72,"") -> 8.483675908 | AJ72: =AJ69+N72 -> 183.7388751
D73: =D70 -> 104.2948739 | E73: =E70 -> 15.06735182 | G73: =IF(Design!$H$19="x",D73,0) -> 0 | H73: =IF(Design!$H$19="x",E73,0) -> 0 | I73: =SUM(D73:D74)/2 -> 100.7958518 | J73: =SUM(E73:E74)/2 -> 8.483675908 | K73: =IF(Design!$H$18="x",I73,0) -> 100.7958518 | L73: =IF(Design!$H$18="x",J73,0) -> 8.483675908 | N73: =N72 -> 1.899463306 | O73: 183.7388751 | P73: 753.3850929 | S73: 376.6925464 | T73: -376.6925464 | U73: -1.842863639e-09 | W73: 376.6925464 | Y73: 376.6925464 | Z73: -376.6925464 | AB73: 347.2081142 | AC73: -347.2081142 | AE73: 315.9444081 | AF73: -315.9444081 | AG73: =IF(C71>0,L73,"") -> 8.483675908 | AH73: =O72 -> 183.7388751 | AI73: =$R$165/2 -> 906.41523
B74: =B98+1 -> 24 | C74: =C71+1 -> 19 | D74: =(D71+Panels!C69)/2 -> 97.29682976 | E74: =E71 -> 1.9 | G74: =IF(Design!$H$19="x",D74,0) -> 0 | H74: =IF(Design!$H$19="x",E74,0) -> 0 | K74: =K73 -> 100.7958518 | L74: =L73 -> 8.483675908 | N74: =N73 -> 1.899463306 | O74: 183.7388751 | P74: 753.3850929 | Q74: =ATAN((E73-E74)/(D73-D74))*180/PI() -> 62.01072412 | S74: 376.6925464 | T74: -376.6925464 | U74: -1.842863639e-09 | W74: 376.6925464 | Y74: 376.6925464 | Z74: -376.6925464 | AB74: 347.2081142 | AC74: -347.2081142 | AE74: 315.9444081 | AF74: -315.9444081 | AG74: =IF(C71>0,L74,"") -> 8.483675908 | AH74: =AH73 -> 183.7388751 | AI74: =-AI73 -> -906.41523
K75: =K74 -> 100.7958518 | L75: =L74 -> 8.483675908 | M75: =((D73-D74)^2+(E73-E74)^2)^0.5 -> 14.91146457 | N75: =((I73-I70)^2+(J73-J70)^2)^0.5 -> 3.342593223 | O75: =O72+N75 -> 187.0814683 | P75: =((D73-D74)^2+(E73-E74)^2)^0.5*Panels!$T$114 -> 852.9357736 | S75: 426.4678868 | T75: -426.4678868 | U75: 90.46613985 | W75: 381.2348169 | Y75: 381.2348169 | Z75: -381.2348169 | AB75: 351.9799008 | AC75: -351.9799008 | AE75: 320.6655075 | AF75: -320.6655075 | AG75: =IF(C71>0,L75,"") -> 8.483675908 | AJ75: =AJ72+N75 -> 187.0814683
D76: =D73 -> 104.2948739 | E76: =E73 -> 15.06735182 | G76: =IF(Design!$H$19="x",D76,0) -> 0 | H76: =IF(Design!$H$19="x",E76,0) -> 0 | I76: =SUM(D76:D77)/2 -> 97.45325861 | J76: =SUM(E76:E77)/2 -> 15.15048896 | K76: =IF(Design!$H$18="x",I76,0) -> 97.45325861 | L76: =IF(Design!$H$18="x",J76,0) -> 15.15048896 | N76: =N75 -> 3.342593223 | O76: 187.0814683 | P76: 852.9357736 | S76: 426.4678868 | T76: -426.4678868 | U76: 90.46613985 | W76: 381.2348169 | Y76: 381.2348169 | Z76: -381.2348169 | AB76: 351.9799008 | AC76: -351.9799008 | AE76: 320.6655075 | AF76: -320.6655075 | AG76: =IF(C74>0,L76,"") -> 15.15048896 | AH76: =O75 -> 187.0814683 | AI76: =$R$165/2 -> 906.41523
B77: 23 | C77: =C74+1 -> 20 | D77: =Panels!C69 -> 90.61164331 | E77: =E76-(D74-D73)*Panels!$Y$5 -> 15.2336261 | G77: =IF(Design!$H$19="x",D77,0) -> 0 | H77: =IF(Design!$H$19="x",E77,0) -> 0 | K77: =K76 -> 97.45325861 | L77: =L76 -> 15.15048896 | N77: =N76 -> 3.342593223 | O77: 187.0814683 | P77: 852.9357736 | Q77: =ATAN((E76-E77)/(D76-D77))*180/PI() -> -0.6962059063 | S77: 426.4678868 | T77: -426.4678868 | U77: 90.46613985 | W77: 381.2348169 | Y77: 381.2348169 | Z77: -381.2348169 | AB77: 351.9799008 | AC77: -351.9799008 | AE77: 320.6655075 | AF77: -320.6655075 | AG77: =IF(C74>0,L77,"") -> 15.15048896 | AH77: =AH76 -> 187.0814683 | AI77: =-AI76 -> -906.41523
K78: =K77 -> 97.45325861 | L78: =L77 -> 15.15048896 | M78: =((D76-D77)^2+(E76-E77)^2)^0.5 -> 13.68424082 | N78: =((I76-I73)^2+(J76-J73)^2)^0.5 -> 7.45783653 | O78: =O75+N78 -> 194.5393049 | P78: =((D76-D77)^2+(E76-E77)^2)^0.5*Panels!$T$114 -> 782.7385746 | S78: 391.3692873 | T78: -391.3692873 | U78: -5.889550778e-05 | W78: 391.3693168 | Y78: 391.3693168 | Z78: -391.3693168 | AB78: 362.7438761 | AC78: -362.7438761 | AE78: 331.4548547 | AF78: -331.4548547 | AG78: =IF(C74>0,L78,"") -> 15.15048896 | AJ78: =AJ75+N78 -> 194.5393049
D79: =Panels!C63 -> 90.61164331 | E79: =Panels!D63 -> 48.2292873 | G79: =IF(Design!$H$19="x",D79,0) -> 0 | H79: =IF(Design!$H$19="x",E79,0) -> 0 | I79: =SUM(D79:D80)/2 -> 98.23324258 | J79: =SUM(E79:E80)/2 -> 48.04814613 | K79: =IF(Design!$H$18="x",I79,0) -> 98.23324258 | L79: =IF(Design!$H$18="x",J79,0) -> 48.04814613 | N79: =N78 -> 7.45783653 | O79: 194.5393049 | P79: 782.7385746 | S79: 391.3692873 | T79: -391.3692873 | U79: -5.889550778e-05 | W79: 391.3693168 | Y79: 391.3693168 | Z79: -391.3693168 | AB79: 362.7438761 | AC79: -362.7438761 | AE79: 331.4548547 | AF79: -331.4548547 | AG79: =IF(C77>0,L79,"") -> 48.04814613 | AH79: =O78 -> 194.5393049 | AI79: =$R$165/2 -> 906.41523 | AM79: =Panels!C72 -> 106.6820159 | AN79: =Panels!D72 -> 65.25904275 | AO79: =Panels!C73 -> 104.2948739 | AP79: =Panels!D73 -> 15.06735182 | AQ79: =(AP79-AN79)/(AO79-AM79) -> 21.02585094 | AR79: =(AP79*AM79-AN79*AO79)/(AM79-AO79) -> -2177.821121
B80: =B104+1 -> 22 | C80: =C77+1 -> 21 | D80: =AS80 -> 105.8548418 | E80: =AT80 -> 47.86700497 | G80: =IF(Design!$H$19="x",D80,0) -> 0 | H80: =IF(Design!$H$19="x",E80,0) -> 0 | K80: =K79 -> 98.23324258 | L80: =L79 -> 48.04814613 | N80: =N79 -> 7.45783653 | O80: 194.5393049 | P80: 782.7385746 | Q80: =ATAN((E79-E80)/(D79-D80))*180/PI() -> -1.361482043 | S80: 391.3692873 | T80: -391.3692873 | U80: -5.889550778e-05 | W80: 391.3693168 | Y80: 391.3693168 | Z80: -391.3693168 | AB80: 362.7438761 | AC80: -362.7438761 | AE80: 331.4548547 | AF80: -331.4548547 | AG80: =IF(C77>0,L80,"") -> 48.04814613 | AH80: =AH79 -> 194.5393049 | AI80: =-AI79 -> -906.41523 | AM80: =D79 -> 90.61164331 | AN80: =E79 -> 48.2292873 | AO80: =AM80+10*N$3 -> 100.6088202 | AP80: =AN80-10*O$3 -> 47.99168621 | AQ80: =IF(AO80<>AM80,(AP80-AN80)/(AO80-AM80),"") -> -0.02376681783 | AR80: =IF(AQ80<>"",(AP80*AM80-AN80*AO80)/(AM80-AO80),AM80) -> 50.38283772 | AS80: =IF(AQ80<>"",(AR79-AR80)/(AQ80-AQ79),AM80) -> 105.8548418 | AT80: =IF(AQ80<>"",AS80*AQ80+AR80,AN79) -> 47.86700497
K81: =K80 -> 98.23324258 | L81: =L80 -> 48.04814613 | M81: =((D79-D80)^2+(E79-E80)^2)^0.5 -> 15.24750307 | N81: =((I79-I76)^2+(J79-J76)^2)^0.5 -> 32.90690236 | O81: =O78+N81 -> 227.4462072 | P81: =((D79-D80)^2+(E79-E80)^2)^0.5*Panels!$T$114 -> 872.1571754 | S81: 436.0785877 | T81: -436.0785877 | U81: -0.01624155753 | W81: 436.0867085 | Y81: 436.0867085 | Z81: -436.0867085 | AB81: 412.1745814 | AC81: -412.1745814 | AE81: 383.5658153 | AF81: -383.5658153 | AG81: =IF(C77>0,L81,"") -> 48.04814613 | AJ81: =AJ78+N81 -> 227.4462072
D82: =D79 -> 90.61164331 | E82: =E79 -> 48.2292873 | G82: =IF(Design!$H$19="x",D82,0) -> 0 | H82: =IF(Design!$H$19="x",E82,0) -> 0 | I82: =SUM(D82:D83)/2 -> 98.41747035 | J82: =SUM(E82:E83)/2 -> 51.9216919 | K82: =IF(Design!$H$18="x",I82,0) -> 98.41747035 | L82: =IF(Design!$H$18="x",J82,0) -> 51.9216919 | N82: =N81 -> 32.90690236 | O82: 227.4462072 | P82: 872.1571754 | S82: 436.0785877 | T82: -436.0785877 | U82: -0.01624155753 | W82: 436.0867085 | Y82: 436.0867085 | Z82: -436.0867085 | AB82: 412.1745814 | AC82: -412.1745814 | AE82: 383.5658153 | AF82: -383.5658153 | AG82: =IF(C80>0,L82,"") -> 51.9216919 | AH82: =O81 -> 227.4462072 | AI82: =$R$165/2 -> 906.41523
B83: 21 | C83: =C80+1 -> 22 | D83: =(D80+Panels!C56)/2 -> 106.2232974 | E83: =(E80+Panels!D56)/2 -> 55.61409649 | G83: =IF(Design!$H$19="x",D83,0) -> 0 | H83: =IF(Design!$H$19="x",E83,0) -> 0 | K83: =K82 -> 98.41747035 | L83: =L82 -> 51.9216919 | N83: =N82 -> 32.90690236 | O83: 227.4462072 | P83: 872.1571754 | Q83: =ATAN((E82-E83)/(D82-D83))*180/PI() -> 25.31563922 | S83: 436.0785877 | T83: -436.0785877 | U83: -0.01624155753 | W83: 436.0867085 | Y83: 436.0867085 | Z83: -436.0867085 | AB83: 412.1745814 | AC83: -412.1745814 | AE83: 383.5658153 | AF83: -383.5658153 | AG83: =IF(C80>0,L83,"") -> 51.9216919 | AH83: =AH82 -> 227.4462072 | AI83: =-AI82 -> -906.41523
K84: =K83 -> 98.41747035 | L84: =L83 -> 51.9216919 | M84: =((D82-D83)^2+(E82-E83)^2)^0.5 -> 17.27018095 | N84: =((I82-I79)^2+(J82-J79)^2)^0.5 -> 3.877924269 | O84: =O81+N84 -> 231.3241315 | P84: =((D82-D83)^2+(E82-E83)^2)^0.5*Panels!$T$114 -> 987.8543502 | S84: 493.9271751 | T84: -493.9271751 | U84: 105.141463 | W84: 441.3564436 | Y84: 441.3564436 | Z84: -441.3564436 | AB84: 418.2076535 | AC84: -418.2076535 | AE84: 390.2232262 | AF84: -390.2232262 | AG84: =IF(C80>0,L84,"") -> 51.9216919 | AJ84: =AJ81+N84 -> 231.3241315
D85: =D82 -> 90.61164331 | E85: =E82 -> 48.2292873 | G85: =IF(Design!$H$19="x",D85,0) -> 0 | H85: =IF(Design!$H$19="x",E85,0) -> 0 | I85: =SUM(D85:D86)/2 -> 94.70098921 | J85: =SUM(E85:E86)/2 -> 55.98075733 | K85: =IF(Design!$H$18="x",I85,0) -> 94.70098921 | L85: =IF(Design!$H$18="x",J85,0) -> 55.98075733 | N85: =N84 -> 3.877924269 | O85: 231.3241315 | P85: 987.8543502 | S85: 493.9271751 | T85: -493.9271751 | U85: 105.141463 | W85: 441.3564436 | Y85: 441.3564436 | Z85: -441.3564436 | AB85: 418.2076535 | AC85: -418.2076535 | AE85: 390.2232262 | AF85: -390.2232262 | AG85: =IF(C83>0,L85,"") -> 55.98075733 | AH85: =O84 -> 231.3241315 | AI85: =$R$165/2 -> 906.41523
B86: =B110+1 -> 20 | C86: =C83+1 -> 23 | D86: =(D89+Panels!C56)/2 -> 98.79033512 | E86: =(E89+Panels!D56)/2 -> 63.73222735 | G86: =IF(Design!$H$19="x",D86,0) -> 0 | H86: =IF(Design!$H$19="x",E86,0) -> 0 | K86: =K85 -> 94.70098921 | L86: =L85 -> 55.98075733 | N86: =N85 -> 3.877924269 | O86: 231.3241315 | P86: 987.8543502 | Q86: =ATAN((E85-E86)/(D85-D86))*180/PI() -> 62.18577728 | S86: 493.9271751 | T86: -493.9271751 | U86: 105.141463 | W86: 441.3564436 | Y86: 441.3564436 | Z86: -441.3564436 | AB86: 418.2076535 | AC86: -418.2076535 | AE86: 390.2232262 | AF86: -390.2232262 | AG86: =IF(C83>0,L86,"") -> 55.98075733 | AH86: =AH85 -> 231.3241315 | AI86: =-AI85 -> -906.41523
K87: =K86 -> 94.70098921 | L87: =L86 -> 55.98075733 | M87: =((D85-D86)^2+(E85-E86)^2)^0.5 -> 17.52803897 | N87: =((I85-I82)^2+(J85-J82)^2)^0.5 -> 5.503475648 | O87: =O84+N87 -> 236.8276072 | P87: =((D85-D86)^2+(E85-E86)^2)^0.5*Panels!$T$114 -> 1002.603829 | S87: 501.3019145 | T87: -501.3019145 | U87: 104.9335281 | W87: 448.8351505 | Y87: 448.8351505 | Z87: -448.8351505 | AB87: 426.844919 | AC87: -426.844919 | AE87: 399.8701325 | AF87: -399.8701325 | AG87: =IF(C83>0,L87,"") -> 55.98075733 | AJ87: =AJ84+N87 -> 236.8276072
D88: =D79 -> 90.61164331 | E88: =E79 -> 48.2292873 | G88: =IF(Design!$H$19="x",D88,0) -> 0 | H88: =IF(Design!$H$19="x",E88,0) -> 0 | I88: =SUM(D88:D89)/2 -> 90.8002803 | J88: =SUM(E88:E89)/2 -> 56.16627699 | K88: =IF(Design!$H$18="x",I88,0) -> 90.8002803 | L88: =IF(Design!$H$18="x",J88,0) -> 56.16627699 | N88: =N87 -> 5.503475648 | O88: 236.8276072 | P88: 1002.603829 | S88: 501.3019145 | T88: -501.3019145 | U88: 104.9335281 | W88: 448.8351505 | Y88: 448.8351505 | Z88: -448.8351505 | AB88: 426.844919 | AC88: -426.844919 | AE88: 399.8701325 | AF88: -399.8701325 | AG88: =IF(C86>0,L88,"") -> 56.16627699 | AH88: =O87 -> 236.8276072 | AI88: =$R$165/2 -> 906.41523 | AM88: =Panels!C57 -> 42.98422256 | AN88: =Panels!D57 -> 66.38639401 | AO88: =Panels!C56 -> 106.5917529 | AP88: =Panels!D56 -> 63.36118802 | AQ88: =(AP88-AN88)/(AO88-AM88) -> -0.04756050077 | AR88: =(AP88*AM88-AN88*AO88)/(AM88-AO88) -> 68.43074516
B89: 19 | C89: =C86+1 -> 24 | D89: =AS89 -> 90.98891729 | E89: =AT89 -> 64.10326669 | G89: =IF(Design!$H$19="x",D89,0) -> 0 | H89: =IF(Design!$H$19="x",E89,0) -> 0 | K89: =K88 -> 90.8002803 | L89: =L88 -> 56.16627699 | N89: =N88 -> 5.503475648 | O89: 236.8276072 | P89: 1002.603829 | Q89: =ATAN((E88-E89)/(D88-D89))*180/PI() -> 88.63851796 | S89: 501.3019145 | T89: -501.3019145 | U89: 104.9335281 | W89: 448.8351505 | Y89: 448.8351505 | Z89: -448.8351505 | AB89: 426.844919 | AC89: -426.844919 | AE89: 399.8701325 | AF89: -399.8701325 | AG89: =IF(C86>0,L89,"") -> 56.16627699 | AH89: =AH88 -> 236.8276072 | AI89: =-AI88 -> -906.41523 | AM89: =D88 -> 90.61164331 | AN89: =E88 -> 48.2292873 | AO89: =AM89+10*O$3 -> 90.84924439 | AP89: =AN89+10*P$3 -> 58.22646418 | AQ89: =IF(AO89<>AM89,(AP89-AN89)/(AO89-AM89),"") -> 42.07546871 | AR89: =IF(AQ89<>"",(AP89*AM89-AN89*AO89)/(AM89-AO89),AM89) -> -3764.298075 | AS89: =IF(AQ89<>"",(AR88-AR89)/(AQ89-AQ88),AM89) -> 90.98891729 | AT89: =IF(AQ89<>"",AS89*AQ89+AR89,AN88) -> 64.10326669
K90: =K89 -> 90.8002803 | L90: =L89 -> 56.16627699 | M90: =((D88-D89)^2+(E88-E89)^2)^0.5 -> 15.87846206 | N90: =((I88-I85)^2+(J88-J85)^2)^0.5 -> 3.905118126 | O90: =O87+N90 -> 240.7327253 | P90: =((D88-D89)^2+(E88-E89)^2)^0.5*Panels!$T$114 -> 908.2480301 | S90: 454.124015 | T90: -454.124015 | U90: -0.03564882122 | W90: 454.1418395 | Y90: 454.1418395 | Z90: -454.1418395 | AB90: 433.0272371 | AC90: -433.0272371 | AE90: 406.8596237 | AF90: -406.8596237 | AG90: =IF(C86>0,L90,"") -> 56.16627699 | AJ90: =AJ87+N90 -> 240.7327253
D91: =AS52 -> 59.12275849 | E91: =AT52 -> 65.61883716 | G91: =IF(Design!$H$19="x",D91,0) -> 0 | H91: =IF(Design!$H$19="x",E91,0) -> 0 | I91: =SUM(D91:D92)/2 -> 58.91611135 | J91: =SUM(E91:E92)/2 -> 56.92406223 | K91: =IF(Design!$H$18="x",I91,0) -> 58.91611135 | L91: =IF(Design!$H$18="x",J91,0) -> 56.92406223 | N91: =N90 -> 3.905118126 | O91: 240.7327253 | P91: 908.2480301 | S91: 454.124015 | T91: -454.124015 | U91: -0.03564882122 | W91: 454.1418395 | Y91: 454.1418395 | Z91: -454.1418395 | AB91: 433.0272371 | AC91: -433.0272371 | AE91: 406.8596237 | AF91: -406.8596237 | AG91: =IF(C89>0,L91,"") -> 56.92406223 | AH91: =O90 -> 240.7327253 | AI91: =$R$165/2 -> 906.41523
B92: =B116+1 -> 18 | C92: =C89+1 -> 25 | D92: =Panels!C62 -> 58.70946422 | E92: =Panels!D62 -> 48.2292873 | G92: =IF(Design!$H$19="x",D92,0) -> 0 | H92: =IF(Design!$H$19="x",E92,0) -> 0 | K92: =K91 -> 58.91611135 | L92: =L91 -> 56.92406223 | N92: =N91 -> 3.905118126 | O92: 240.7327253 | P92: 908.2480301 | Q92: =ATAN((E91-E92)/(D91-D92))*180/PI() -> 88.63851796 | S92: 454.124015 | T92: -454.124015 | U92: -0.03564882122 | W92: 454.1418395 | Y92: 454.1418395 | Z92: -454.1418395 | AB92: 433.0272371 | AC92: -433.0272371 | AE92: 406.8596237 | AF92: -406.8596237 | AG92: =IF(C89>0,L92,"") -> 56.92406223 | AH92: =AH91 -> 240.7327253 | AI92: =-AI91 -> -906.41523
K93: =K92 -> 58.91611135 | L93: =L92 -> 56.92406223 | M93: =((D91-D92)^2+(E91-E92)^2)^0.5 -> 17.39446052 | N93: =((I91-I88)^2+(J91-J88)^2)^0.5 -> 31.89317275 | O93: =O90+N93 -> 272.625898 | P93: =((D91-D92)^2+(E91-E92)^2)^0.5*Panels!$T$114 -> 994.9631416 | S93: 497.4815708 | T93: -497.4815708 | U93: -0.0001939376875 | W93: 497.4816678 | Y93: 497.4816678 | Z93: -497.4816678 | AB93: 485.182278 | AC93: -485.182278 | AE93: 468.7124892 | AF93: -468.7124892 | AG93: =IF(C89>0,L93,"") -> 56.92406223 | AJ93: =AJ90+N93 -> 272.625898
D94: =(D91+Panels!C57)/2 -> 51.05349052 | E94: =(E91+Panels!D57)/2 -> 66.00261559 | G94: =IF(Design!$H$19="x",D94,0) -> 0 | H94: =IF(Design!$H$19="x",E94,0) -> 0 | I94: =SUM(D94:D95)/2 -> 54.88147737 | J94: =SUM(E94:E95)/2 -> 57.11595144 | K94: =IF(Design!$H$18="x",I94,0) -> 54.88147737 | L94: =IF(Design!$H$18="x",J94,0) -> 57.11595144 | N94: =N93 -> 31.89317275 | O94: 272.625898 | P94: 994.9631416 | S94: 497.4815708 | T94: -497.4815708 | U94: -0.0001939376875 | W94: 497.4816678 | Y94: 497.4816678 | Z94: -497.4816678 | AB94: 485.182278 | AC94: -485.182278 | AE94: 468.7124892 | AF94: -468.7124892 | AG94: =IF(C92>0,L94,"") -> 57.11595144 | AH94: =O93 -> 272.625898 | AI94: =$R$165/2 -> 906.41523
B95: 24 | C95: =C92+1 -> 26 | D95: =Panels!C62 -> 58.70946422 | E95: =E92 -> 48.2292873 | G95: =IF(Design!$H$19="x",D95,0) -> 0 | H95: =IF(Design!$H$19="x",E95,0) -> 0 | K95: =K94 -> 54.88147737 | L95: =L94 -> 57.11595144 | N95: =N94 -> 31.89317275 | O95: 272.625898 | P95: 994.9631416 | Q95: =ATAN((E94-E95)/(D94-D95))*180/PI() -> -66.69573285 | S95: 497.4815708 | T95: -497.4815708 | U95: -0.0001939376875 | W95: 497.4816678 | Y95: 497.4816678 | Z95: -497.4816678 | AB95: 485.182278 | AC95: -485.182278 | AE95: 468.7124892 | AF95: -468.7124892 | AG95: =IF(C92>0,L95,"") -> 57.11595144 | AH95: =AH94 -> 272.625898 | AI95: =-AI94 -> -906.41523
K96: =K95 -> 54.88147737 | L96: =L95 -> 57.11595144 | M96: =((D94-D95)^2+(E94-E95)^2)^0.5 -> 19.35213507 | N96: =((I94-I91)^2+(J94-J91)^2)^0.5 -> 4.039194576 | O96: =O93+N96 -> 276.6650926 | P96: =((D94-D95)^2+(E94-E95)^2)^0.5*Panels!$T$114 -> 1106.942126 | S96: 553.471063 | T96: -553.471063 | U96: 101.0010179 | W96: 502.9705541 | Y96: 502.9705541 | Z96: -502.9705541 | AB96: 491.9991126 | AC96: -491.9991126 | AE96: 477.1891205 | AF96: -477.1891205 | AG96: =IF(C92>0,L96,"") -> 57.11595144 | AJ96: =AJ93+N96 -> 276.6650926
D97: =(AS98+D100)/2 -> 41.7626073 | E97: =(AT98+E100)/2 -> 57.89148804 | G97: =IF(Design!$H$19="x",D97,0) -> 0 | H97: =IF(Design!$H$19="x",E97,0) -> 0 | I97: =SUM(D97:D98)/2 -> 50.23603576 | J97: =SUM(E97:E98)/2 -> 53.06038767 | K97: =IF(Design!$H$18="x",I97,0) -> 50.23603576 | L97: =IF(Design!$H$18="x",J97,0) -> 53.06038767 | N97: =N96 -> 4.039194576 | O97: 276.6650926 | P97: 1106.942126 | S97: 553.471063 | T97: -553.471063 | U97: 101.0010179 | W97: 502.9705541 | Y97: 502.9705541 | Z97: -502.9705541 | AB97: 491.9991126 | AC97: -491.9991126 | AE97: 477.1891205 | AF97: -477.1891205 | AG97: =IF(C95>0,L97,"") -> 53.06038767 | AH97: =O96 -> 276.6650926 | AI97: =$R$165/2 -> 906.41523 | AL97: Panel H | AM97: =Panels!C56 -> 106.5917529 | AN97: =Panels!D56 -> 63.36118802 | AO97: =Panels!C57 -> 42.98422256 | AP97: =Panels!D57 -> 66.38639401 | AQ97: =(AP97-AN97)/(AO97-AM97) -> -0.04756050077 | AR97: =(AP97*AM97-AN97*AO97)/(AM97-AO97) -> 68.43074516
B98: 23 | C98: =C95+1 -> 27 | D98: =D101 -> 58.70946422 | E98: =E101 -> 48.2292873 | G98: =IF(Design!$H$19="x",D98,0) -> 0 | H98: =IF(Design!$H$19="x",E98,0) -> 0 | K98: =K97 -> 50.23603576 | L98: =L97 -> 53.06038767 | N98: =N97 -> 4.039194576 | O98: 276.6650926 | P98: 1106.942126 | Q98: =ATAN((E97-E98)/(D97-D98))*180/PI() -> -29.68949967 | S98: 553.471063 | T98: -553.471063 | U98: 101.0010179 | W98: 502.9705541 | Y98: 502.9705541 | Z98: -502.9705541 | AB98: 491.9991126 | AC98: -491.9991126 | AE98: 477.1891205 | AF98: -477.1891205 | AG98: =IF(C95>0,L98,"") -> 53.06038767 | AH98: =AH97 -> 276.6650926 | AI98: =-AI97 -> -906.41523 | AL98: Panel G | AM98: =AM101 -> 38.029786 | AN98: =AN101 -> 29.0129466 | AO98: =AO101 -> 43.07448549 | AP98: =AP101 -> 68.04068232 | AQ98: =IF(AO98<>AM98,(AP98-AN98)/(AO98-AM98),"") -> 7.736384664 | AR98: =IF(AQ98<>"",(AP98*AM98-AN98*AO98)/(AM98-AO98),AM98) -> -265.2001066 | AS98: =IF(AQ98<>"",(AR97-AR98)/(AQ98-AQ97),AM98) -> 42.86140828 | AT98: =AS98*AQ97+AR97 -> 66.39223512
K99: =K98 -> 50.23603576 | L99: =L98 -> 53.06038767 | M99: =((D97-D98)^2+(E97-E98)^2)^0.5 -> 19.50779543 | N99: =((I97-I94)^2+(J97-J94)^2)^0.5 -> 6.166662413 | O99: =O96+N99 -> 282.831755 | P99: =((D97-D98)^2+(E97-E98)^2)^0.5*Panels!$T$114 -> 1115.845899 | S99: 557.9229494 | T99: -557.9229494 | U99: 93.14495977 | W99: 511.3504695 | Y99: 511.3504695 | Z99: -511.3504695 | AB99: 502.498137 | AC99: -502.498137 | AE99: 490.4270596 | AF99: -490.4270596 | AG99: =IF(C95>0,L99,"") -> 53.06038767 | AJ99: =AJ96+N99 -> 282.831755
D100: =AS101 -> 40.66380631 | E100: =AT101 -> 49.39074095 | G100: =IF(Design!$H$19="x",D100,0) -> 0 | H100: =IF(Design!$H$19="x",E100,0) -> 0 | I100: =SUM(D100:D101)/2 -> 49.68663527 | J100: =SUM(E100:E101)/2 -> 48.81001412 | K100: =IF(Design!$H$18="x",I100,0) -> 49.68663527 | L100: =IF(Design!$H$18="x",J100,0) -> 48.81001412 | N100: =N99 -> 6.166662413 | O100: 282.831755 | P100: 1115.845899 | S100: 557.9229494 | T100: -557.9229494 | U100: 93.14495977 | W100: 511.3504695 | Y100: 511.3504695 | Z100: -511.3504695 | AB100: 502.498137 | AC100: -502.498137 | AE100: 490.4270596 | AF100: -490.4270596 | AG100: =IF(C98>0,L100,"") -> 48.81001412 | AH100: =O99 -> 282.831755 | AI100: =$R$165/2 -> 906.41523 | AL100: Panel I | AM100: =Panels!C62 -> 58.70946422 | AN100: =Panels!D62 -> 48.2292873 | AO100: =AM100-100*Panels!X8 -> -41.08405406 | AP100: =AN100+100*Panels!Y8 -> 54.6521923 | AQ100: =(AP100-AN100)/(AO100-AM100) -> -0.06436194574 | AR100: =(AP100*AM100-AN100*AO100)/(AM100-AO100) -> 52.00794265
B101: 22 | C101: =C98+1 -> 28 | D101: =D95 -> 58.70946422 | E101: =E92 -> 48.2292873 | G101: =IF(Design!$H$19="x",D101,0) -> 0 | H101: =IF(Design!$H$19="x",E101,0) -> 0 | K101: =K100 -> 49.68663527 | L101: =L100 -> 48.81001412 | N101: =N100 -> 6.166662413 | O101: 282.831755 | P101: 1115.845899 | Q101: =ATAN((E100-E101)/(D100-D101))*180/PI() -> -3.682588465 | S101: 557.9229494 | T101: -557.9229494 | U101: 93.14495977 | W101: 511.3504695 | Y101: 511.3504695 | Z101: -511.3504695 | AB101: 502.498137 | AC101: -502.498137 | AE101: 490.4270596 | AF101: -490.4270596 | AG101: =IF(C98>0,L101,"") -> 48.81001412 | AH101: =AH100 -> 282.831755 | AI101: =-AI100 -> -906.41523 | AL101: Panel G | AM101: =Panels!C48 -> 38.029786 | AN101: =Panels!D48 -> 29.0129466 | AO101: =Panels!C49 -> 43.07448549 | AP101: =Panels!D49 -> 68.04068232 | AQ101: =IF(AO101<>AM101,(AP101-AN101)/(AO101-AM101),"") -> 7.736384664 | AR101: =IF(AQ101<>"",(AP101*AM101-AN101*AO101)/(AM101-AO101),AM101) -> -265.2001066 | AS101: =IF(AQ101<>"",(AR100-AR101)/(AQ101-AQ100),AM101) -> 40.66380631 | AT101: =AS101*AQ100+AR100 -> 49.39074095
K102: =K101 -> 49.68663527 | L102: =L101 -> 48.81001412 | M102: =((D100-D101)^2+(E100-E101)^2)^0.5 -> 18.08299599 | N102: =((I100-I97)^2+(J100-J97)^2)^0.5 -> 4.285734027 | O102: =O99+N102 -> 287.117489 | P102: =((D100-D101)^2+(E100-E101)^2)^0.5*Panels!$T$114 -> 1034.347371 | S102: 517.1736853 | T102: -517.1736853 | U102: -0.001389154036 | W102: 517.1743798 | Y102: 517.1743798 | Z102: -517.1743798 | AB102: 509.8600805 | AC102: -509.8600805 | AE102: 499.8429181 | AF102: -499.8429181 | AG102: =IF(C98>0,L102,"") -> 48.81001412 | AJ102: =AJ99+N102 -> 287.117489
D103: =AS104 -> 40.42023988 | E103: =AT104 -> 47.50641736 | G103: =IF(Design!$H$19="x",D103,0) -> 0 | H103: =IF(Design!$H$19="x",E103,0) -> 0 | I103: =SUM(D103:D104)/2 -> 49.56485205 | J103: =SUM(E103:E104)/2 -> 46.91785233 | K103: =IF(Design!$H$18="x",I103,0) -> 49.56485205 | L103: =IF(Design!$H$18="x",J103,0) -> 46.91785233 | N103: =N102 -> 4.285734027 | O103: 287.117489 | P103: 1034.347371 | S103: 517.1736853 | T103: -517.1736853 | U103: -0.001389154036 | W103: 517.1743798 | Y103: 517.1743798 | Z103: -517.1743798 | AB103: 509.8600805 | AC103: -509.8600805 | AE103: 499.8429181 | AF103: -499.8429181 | AG103: =IF(C101>0,L103,"") -> 46.91785233 | AH103: =O102 -> 287.117489 | AI103: =$R$165/2 -> 906.41523 | AL103: Panel I | AM103: =Panels!C61 -> 58.70946422 | AN103: =Panels!D61 -> 46.3292873 | AO103: =AM103-100*Panels!X8 -> -41.08405406 | AP103: =AN103+100*Panels!Y8 -> 52.7521923 | AQ103: =(AP103-AN103)/(AO103-AM103) -> -0.06436194574 | AR103: =(AP103*AM103-AN103*AO103)/(AM103-AO103) -> 50.10794265
B104: 21 | C104: =C101+1 -> 29 | D104: =Panels!C61 -> 58.70946422 | E104: =Panels!D61 -> 46.3292873 | G104: =IF(Design!$H$19="x",D104,0) -> 0 | H104: =IF(Design!$H$19="x",E104,0) -> 0 | K104: =K103 -> 49.56485205 | L104: =L103 -> 46.91785233 | N104: =N103 -> 4.285734027 | O104: 287.117489 | P104: 1034.347371 | Q104: =ATAN((E103-E104)/(D103-D104))*180/PI() -> -3.682588465 | S104: =P104/2 -> 517.1736853 | T104: =-S104 -> -517.1736853 | U104: =(S104-W104)*2 -> -0.001389154036 | W104: =IF($H$16="Par",Y104,0)+IF($H$16="Con",AB104,0)+IF($H$16="Exp",AE104,0) -> 517.1743798 | Y104: =((_S3_-_S2_)*(O104-_L2_)/(_L3_-_L2_)+_S2_)/2 -> 517.1743798 | Z104: =-Y104 -> -517.1743798 | AB104: =PI()*($Q$11*(O104-_L2_)*2+$O$11)^2/2 -> 509.8600805 | AC104: =-AB104 -> -509.8600805 | AE104: =($H$11*EXP($S$11*(O104-$I$11)))/2 -> 499.8429181 | AF104: =-AE104 -> -499.8429181 | AG104: =IF(C101>0,L104,"") -> 46.91785233 | AH104: =AH103 -> 287.117489 | AI104: =-AI103 -> -906.41523 | AL104: Panel G | AM104: =AM101 -> 38.029786 | AN104: =AN101 -> 29.0129466 | AO104: =AO101 -> 43.07448549 | AP104: =AP101 -> 68.04068232 | AQ104: =IF(AO104<>AM104,(AP104-AN104)/(AO104-AM104),"") -> 7.736384664 | AR104: =IF(AQ104<>"",(AP104*AM104-AN104*AO104)/(AM104-AO104),AM104) -> -265.2001066 | AS104: =IF(AQ104<>"",(AR103-AR104)/(AQ104-AQ103),AM104) -> 40.42023988 | AT104: =AS104*AQ103+AR103 -> 47.50641736
K105: =K104 -> 49.56485205 | L105: =L104 -> 46.91785233 | M105: =((D103-D104)^2+(E103-E104)^2)^0.5 -> 18.32706638 | N105: =((I103-I100)^2+(J103-J100)^2)^0.5 -> 1.896076847 | O105: =O102+N105 -> 289.0135659 | P105: =((D103-D104)^2+(E103-E104)^2)^0.5*Panels!$T$114 -> 1048.308197 | S105: 524.1540984 | T105: -524.1540984 | U105: 8.806256226 | W105: 519.7509703 | Y105: 519.7509703 | Z105: -519.7509703 | AB105: 513.1342037 | AC105: -513.1342037 | AE105: 504.0661207 | AF105: -504.0661207 | AG105: =IF(C101>0,L105,"") -> 46.91785233 | AJ105: =AJ102+N105 -> 289.0135659
D106: =(D103+Panels!C48)/2 -> 39.22501294 | E106: =(E103+Panels!D48)/2 -> 38.25968198 | G106: =IF(Design!$H$19="x",D106,0) -> 0 | H106: =IF(Design!$H$19="x",E106,0) -> 0 | I106: =SUM(D106:D107)/2 -> 48.96723858 | J106: =SUM(E106:E107)/2 -> 42.29448464 | K106: =IF(Design!$H$18="x",I106,0) -> 48.96723858 | L106: =IF(Design!$H$18="x",J106,0) -> 42.29448464 | N106: =N105 -> 1.896076847 | O106: 289.0135659 | P106: 1048.308197 | S106: 524.1540984 | T106: -524.1540984 | U106: 8.806256226 | W106: 519.7509703 | Y106: 519.7509703 | Z106: -519.7509703 | AB106: 513.1342037 | AC106: -513.1342037 | AE106: 504.0661207 | AF106: -504.0661207 | AG106: =IF(C104>0,L106,"") -> 42.29448464 | AH106: =O105 -> 289.0135659 | AI106: =$R$165/2 -> 906.41523
B107: =B110+1 -> 20 | C107: =C104+1 -> 30 | D107: =D104 -> 58.70946422 | E107: =E104 -> 46.3292873 | G107: =IF(Design!$H$19="x",D107,0) -> 0 | H107: =IF(Design!$H$19="x",E107,0) -> 0 | K107: =K106 -> 48.96723858 | L107: =L106 -> 42.29448464 | N107: =N106 -> 1.896076847 | O107: 289.0135659 | P107: 1048.308197 | Q107: =ATAN((E106-E107)/(D106-D107))*180/PI() -> 22.49719217 | S107: 524.1540984 | T107: -524.1540984 | U107: 8.806256226 | W107: 519.7509703 | Y107: 519.7509703 | Z107: -519.7509703 | AB107: 513.1342037 | AC107: -513.1342037 | AE107: 504.0661207 | AF107: -504.0661207 | AG107: =IF(C104>0,L107,"") -> 42.29448464 | AH107: =AH106 -> 289.0135659 | AI107: =-AI106 -> -906.41523 | AL107: S2 Section | AM107: =AS17 -> 33.16342155 | AN107: =AT17 -> 47.46733668 | AO107: =AO15 -> 31.26965446 | AP107: =AP15 -> 47.62110992 | AQ107: =(AP107-AN107)/(AO107-AM107) -> -0.08119965619 | AR107: =(AP107*AM107-AN107*AO107)/(AM107-AO107) -> 50.16019511
K108: =K107 -> 48.96723858 | L108: =L107 -> 42.29448464 | M108: =((D106-D107)^2+(E106-E107)^2)^0.5 -> 21.08939002 | N108: =((I106-I103)^2+(J106-J103)^2)^0.5 -> 4.661831257 | O108: =O105+N108 -> 293.6753971 | P108: =((D106-D107)^2+(E106-E107)^2)^0.5*Panels!$T$114 -> 1206.313109 | S108: 603.1565547 | T108: -603.1565547 | U108: 154.1411865 | W108: 526.0859614 | Y108: 526.0859614 | Z108: -526.0859614 | AB108: 521.2287542 | AC108: -521.2287542 | AE108: 514.6019307 | AF108: -514.6019307 | AG108: =IF(C104>0,L108,"") -> 42.29448464 | AJ108: =AJ105+N108 -> 293.6753971
D109: =(Panels!C48+D112)/2 -> 47.98591404 | E109: =(Panels!D48+E112)/2 -> 28.20451242 | G109: =IF(Design!$H$19="x",D109,0) -> 0 | H109: =IF(Design!$H$19="x",E109,0) -> 0 | I109: =SUM(D109:D110)/2 -> 53.34768913 | J109: =SUM(E109:E110)/2 -> 37.26689986 | K109: =IF(Design!$H$18="x",I109,0) -> 53.34768913 | L109: =IF(Design!$H$18="x",J109,0) -> 37.26689986 | N109: =N108 -> 4.661831257 | O109: 293.6753971 | P109: 1206.313109 | S109: 603.1565547 | T109: -603.1565547 | U109: 154.1411865 | W109: 526.0859614 | Y109: 526.0859614 | Z109: -526.0859614 | AB109: 521.2287542 | AC109: -521.2287542 | AE109: 514.6019307 | AF109: -514.6019307 | AG109: =IF(C107>0,L109,"") -> 37.26689986 | AH109: =O108 -> 293.6753971 | AI109: =$R$165/2 -> 906.41523
B110: 19 | C110: =C107+1 -> 31 | D110: =D107 -> 58.70946422 | E110: =E107 -> 46.3292873 | G110: =IF(Design!$H$19="x",D110,0) -> 0 | H110: =IF(Design!$H$19="x",E110,0) -> 0 | K110: =K109 -> 53.34768913 | L110: =L109 -> 37.26689986 | N110: =N109 -> 4.661831257 | O110: 293.6753971 | P110: 1206.313109 | Q110: =ATAN((E109-E110)/(D109-D110))*180/PI() -> 59.38925541 | S110: 603.1565547 | T110: -603.1565547 | U110: 154.1411865 | W110: 526.0859614 | Y110: 526.0859614 | Z110: -526.0859614 | AB110: 521.2287542 | AC110: -521.2287542 | AE110: 514.6019307 | AF110: -514.6019307 | AG110: =IF(C107>0,L110,"") -> 37.26689986 | AH110: =AH109 -> 293.6753971 | AI110: =-AI109 -> -906.41523
K111: =K110 -> 53.34768913 | L111: =L110 -> 37.26689986 | M111: =((D109-D110)^2+(E109-E110)^2)^0.5 -> 21.059487 | N111: =((I109-I106)^2+(J109-J106)^2)^0.5 -> 6.668204836 | O111: =O108+N111 -> 300.343602 | P111: =((D109-D110)^2+(E109-E110)^2)^0.5*Panels!$T$114 -> 1204.602656 | S111: 602.3013281 | T111: -602.3013281 | U111: 134.3078044 | W111: 535.1474259 | Y111: 535.1474259 | Z111: -535.1474259 | AB111: 532.91717 | AC111: -532.91717 | AE111: 530.0560967 | AF111: -530.0560967 | AG111: =IF(C107>0,L111,"") -> 37.26689986 | AJ111: =AJ108+N111 -> 300.343602
D112: =AS113 -> 57.94204209 | E112: =AT113 -> 27.39607825 | G112: =IF(Design!$H$19="x",D112,0) -> 0 | H112: =IF(Design!$H$19="x",E112,0) -> 0 | I112: =SUM(D112:D113)/2 -> 58.32575315 | J112: =SUM(E112:E113)/2 -> 36.86268277 | K112: =IF(Design!$H$18="x",I112,0) -> 58.32575315 | L112: =IF(Design!$H$18="x",J112,0) -> 36.86268277 | N112: =N111 -> 6.668204836 | O112: 300.343602 | P112: 1204.602656 | S112: 602.3013281 | T112: -602.3013281 | U112: 143.9160135 | W112: 530.3433214 | Y112: =((_S5_-_S3_)*(O112-_L3_)/(_L5_-_L3_)+_S3_)/2 -> 530.3433214 | Z112: =-Y112 -> -530.3433214 | AB112: =Y112 -> 530.3433214 | AC112: -530.3433214 | AE112: =Y112 -> 530.3433214 | AF112: -530.3433214 | AG112: =IF(C110>0,L112,"") -> 36.86268277 | AH112: =O111 -> 300.343602 | AI112: =$R$165/2 -> 906.41523 | AL112: Panel F (top) | AM112: =Panels!C42 -> 29.81285538 | AN112: =Panels!D42 -> 29.68015854 | AO112: =Panels!C45 -> 67.57949827 | AP112: =Panels!D45 -> 26.61352012 | AQ112: =(AP112-AN112)/(AO112-AM112) -> -0.08119965619 | AR112: =(AP112*AM112-AN112*AO112)/(AM112-AO112) -> 32.10095214
A113: S3 | B113: 18 | C113: =C110+1 -> 32 | D113: =D110 -> 58.70946422 | E113: =E110 -> 46.3292873 | G113: =IF(Design!$H$19="x",D113,0) -> 0 | H113: =IF(Design!$H$19="x",E113,0) -> 0 | K113: =K112 -> 58.32575315 | L113: =L112 -> 36.86268277 | N113: =N112 -> 6.668204836 | O113: 300.343602 | P113: 1204.602656 | Q113: =ATAN((E112-E113)/(D112-D113))*180/PI() -> 87.67889358 | S113: 602.3013281 | T113: -602.3013281 | U113: 143.9160135 | W113: 530.3433214 | Y113: 530.3433214 | Z113: -530.3433214 | AB113: 530.3433214 | AC113: -530.3433214 | AE113: 530.3433214 | AF113: -530.3433214 | AG113: =IF(C110>0,L113,"") -> 36.86268277 | AH113: =AH112 -> 300.343602 | AI113: =-AI112 -> -906.41523 | AL113: Panel I (bottom) | AM113: =Panels!C61 -> 58.70946422 | AN113: =Panels!D61 -> 46.3292873 | AO113: =AM113+10*O4 -> 59.11446292 | AP113: =AN113+10*P4 -> 56.32108273 | AQ113: =IF(AO113<>AM113,(AP113-AN113)/(AO113-AM113),"") -> 24.67117929 | AR113: =IF(AQ113<>"",(AP113*AM113-AN113*AO113)/(AM113-AO113),AM113) -> -1402.10243 | AS113: =IF(AQ113<>"",(AR112-AR113)/(AQ113-AQ112),AM113) -> 57.94204209 | AT113: =IF(AQ113<>"",AS113*AQ113+AR113,AN112) -> 27.39607825
K114: =K113 -> 58.32575315 | L114: =L113 -> 36.86268277 | M114: =((D112-D113)^2+(E112-E113)^2)^0.5 -> 18.94875567 | N114: =((I112-I109)^2+(J112-J109)^2)^0.5 -> 4.994448203 | O114: =O111+N114 -> 305.3380502 | P114: =((D112-D113)^2+(E112-E113)^2)^0.5*Panels!$T$114 -> 1083.868825 | S114: 541.9344123 | T114: -541.9344123 | U114: 0 | W114: 541.9344123 | Y114: 541.9344123 | Z114: -541.9344123 | AB114: 541.9344123 | AC114: -541.9344123 | AE114: 541.9344123 | AF114: -541.9344123 | AG114: =IF(C110>0,L114,"") -> 36.86268277 | AJ114: =AJ111+N114 -> 305.3380502
D115: =Panels!C45+(E115-E116)*O4 -> 68.37798427 | E115: =E113 -> 46.3292873 | G115: =IF(Design!$H$19="x",D115,0) -> 0 | H115: =IF(Design!$H$19="x",E115,0) -> 0 | I115: =SUM(D115:D116)/2 -> 67.97874127 | J115: =SUM(E115:E116)/2 -> 36.47140371 | K115: =IF(Design!$H$18="x",I115,0) -> 67.97874127 | L115: =IF(Design!$H$18="x",J115,0) -> 36.47140371 | N115: =N114 -> 4.994448203 | O115: 305.3380502 | P115: 1083.868825 | S115: 541.9344123 | T115: -541.9344123 | U115: 0 | W115: 541.9344123 | Y115: =((_S5_-_S3_)*(O115-_L3_)/(_L5_-_L3_)+_S3_)/2 -> 541.9344123 | Z115: =-Y115 -> -541.9344123 | AB115: 541.9344123 | AC115: -541.9344123 | AE115: 541.9344123 | AF115: -541.9344123 | AG115: =IF(C113>0,L115,"") -> 36.47140371 | AH115: =O114 -> 305.3380502 | AI115: =$R$165/2 -> 906.41523
B116: 17 | C116: =C113+1 -> 33 | D116: =Panels!C45 -> 67.57949827 | E116: =Panels!D45 -> 26.61352012 | G116: =IF(Design!$H$19="x",D116,0) -> 0 | H116: =IF(Design!$H$19="x",E116,0) -> 0 | K116: =K115 -> 67.97874127 | L116: =L115 -> 36.47140371 | N116: =N115 -> 4.994448203 | O116: 305.3380502 | P116: 1083.868825 | Q116: =ATAN((E115-E116)/(D115-D116))*180/PI() -> 87.68079586 | S116: 541.9344123 | T116: -541.9344123 | U116: 0 | W116: 541.9344123 | Y116: 541.9344123 | Z116: -541.9344123 | AB116: 541.9344123 | AC116: -541.9344123 | AE116: 541.9344123 | AF116: -541.9344123 | AG116: =IF(C113>0,L116,"") -> 36.47140371 | AH116: =AH115 -> 305.3380502 | AI116: =-AI115 -> -906.41523
K117: =K116 -> 67.97874127 | L117: =L116 -> 36.47140371 | M117: =((D115-D116)^2+(E115-E116)^2)^0.5 -> 19.73192984 | N117: =((I115-I112)^2+(J115-J112)^2)^0.5 -> 9.660915014 | O117: =O114+N117 -> 314.9989652 | P117: =((D115-D116)^2+(E115-E116)^2)^0.5*Panels!$T$114 -> 1128.666387 | S117: 564.3331935 | T117: -564.3331935 | U117: -0.0444458699 | W117: 564.3554164 | Y117: 564.3554164 | Z117: -564.3554164 | AB117: 564.3554164 | AC117: -564.3554164 | AE117: 564.3554164 | AF117: -564.3554164 | AG117: =IF(C113>0,L117,"") -> 36.47140371 | AJ117: =AJ114+N117 -> 314.9989652
D118: =(D115+Panels!C66)/2 -> 78.54481379 | E118: =E115 -> 46.3292873 | G118: =IF(Design!$H$19="x",D118,0) -> 0 | H118: =IF(Design!$H$19="x",E118,0) -> 0 | I118: =SUM(D118:D119)/2 -> 73.06215603 | J118: =SUM(E118:E119)/2 -> 36.47140371 | K118: =IF(Design!$H$18="x",I118,0) -> 73.06215603 | L118: =IF(Design!$H$18="x",J118,0) -> 36.47140371 | N118: =N117 -> 9.660915014 | O118: 314.9989652 | P118: 1128.666387 | S118: 564.3331935 | T118: -564.3331935 | U118: -0.0444458699 | W118: 564.3554164 | Y118: =((_S5_-_S3_)*(O118-_L3_)/(_L5_-_L3_)+_S3_)/2 -> 564.3554164 | Z118: =-Y118 -> -564.3554164 | AB118: 564.3554164 | AC118: -564.3554164 | AE118: 564.3554164 | AF118: -564.3554164 | AG118: =IF(C116>0,L118,"") -> 36.47140371 | AH118: =O117 -> 314.9989652 | AI118: =$R$165/2 -> 906.41523
B119: 16 | C119: =C116+1 -> 34 | D119: =D116 -> 67.57949827 | E119: =E116 -> 26.61352012 | G119: =IF(Design!$H$19="x",D119,0) -> 0 | H119: =IF(Design!$H$19="x",E119,0) -> 0 | K119: =K118 -> 73.06215603 | L119: =L118 -> 36.47140371 | N119: =N118 -> 9.660915014 | O119: 314.9989652 | P119: 1128.666387 | Q119: =ATAN((E118-E119)/(D118-D119))*180/PI() -> 60.91850695 | S119: 564.3331935 | T119: -564.3331935 | U119: -0.0444458699 | W119: 564.3554164 | Y119: 564.3554164 | Z119: -564.3554164 | AB119: 564.3554164 | AC119: -564.3554164 | AE119: 564.3554164 | AF119: -564.3554164 | AG119: =IF(C116>0,L119,"") -> 36.47140371 | AH119: =AH118 -> 314.9989652 | AI119: =-AI118 -> -906.41523
K120: =K119 -> 73.06215603 | L120: =L119 -> 36.47140371 | M120: =((D118-D119)^2+(E118-E119)^2)^0.5 -> 22.55991179 | N120: =((I118-I115)^2+(J118-J115)^2)^0.5 -> 5.08341476 | O120: =O117+N120 -> 320.08238 | P120: =((D118-D119)^2+(E118-E119)^2)^0.5*Panels!$T$114 -> 1290.426954 | S120: 645.2134771 | T120: -645.2134771 | U120: 138.1209934 | W120: 576.1529804 | Y120: 576.1529804 | Z120: -576.1529804 | AB120: 576.1529804 | AC120: -576.1529804 | AE120: 576.1529804 | AF120: -576.1529804 | AG120: =IF(C116>0,L120,"") -> 36.47140371 | AJ120: =AJ117+N120 -> 320.08238
D121: =Panels!C66 -> 88.71164331 | E121: =(E118+E124)/2 -> 36.04347915 | G121: =IF(Design!$H$19="x",D121,0) -> 0 | H121: =IF(Design!$H$19="x",E121,0) -> 0 | I121: =SUM(D121:D122)/2 -> 78.14557079 | J121: =SUM(E121:E122)/2 -> 31.32849963 | K121: =IF(Design!$H$18="x",I121,0) -> 78.14557079 | L121: =IF(Design!$H$18="x",J121,0) -> 31.32849963 | N121: =N120 -> 5.08341476 | O121: 320.08238 | P121: 1290.426954 | S121: 645.2134771 | T121: -645.2134771 | U121: 138.1209934 | W121: 576.1529804 | Y121: =((_S5_-_S3_)*(O121-_L3_)/(_L5_-_L3_)+_S3_)/2 -> 576.1529804 | Z121: -576.1529804 | AB121: 576.1529804 | AC121: -576.1529804 | AE121: 576.1529804 | AF121: -576.1529804 | AG121: =IF(C119>0,L121,"") -> 31.32849963 | AH121: =O120 -> 320.08238 | AI121: =$R$165/2 -> 906.41523
B122: 15 | C122: =C119+1 -> 35 | D122: =D119 -> 67.57949827 | E122: =E119 -> 26.61352012 | G122: =IF(Design!$H$19="x",D122,0) -> 0 | H122: =IF(Design!$H$19="x",E122,0) -> 0 | K122: =K121 -> 78.14557079 | L122: =L121 -> 31.32849963 | N122: =N121 -> 5.08341476 | O122: 320.08238 | P122: 1290.426954 | Q122: =ATAN((E121-E122)/(D121-D122))*180/PI() -> 24.04822829 | S122: 645.2134771 | T122: -645.2134771 | U122: 138.1209934 | W122: 576.1529804 | Y122: 576.1529804 | Z122: -576.1529804 | AB122: 576.1529804 | AC122: -576.1529804 | AE122: 576.1529804 | AF122: -576.1529804 | AG122: =IF(C119>0,L122,"") -> 31.32849963 | AH122: =AH121 -> 320.08238 | AI122: =-AI121 -> -906.41523
K123: =K122 -> 78.14557079 | L123: =L122 -> 31.32849963 | M123: =((D121-D122)^2+(E121-E122)^2)^0.5 -> 23.14069319 | N123: =((I121-I118)^2+(J121-J118)^2)^0.5 -> 7.231221746 | O123: =O120+N123 -> 327.3136017 | P123: =((D121-D122)^2+(E121-E122)^2)^0.5*Panels!$T$114 -> 1323.64765 | S123: 661.8238252 | T123: -661.8238252 | U123: 137.7773218 | W123: 592.9351643 | Y123: 592.9351643 | Z123: -592.9351643 | AB123: 592.9351643 | AC123: -592.9351643 | AE123: 592.9351643 | AF123: -592.9351643 | AG123: =IF(C119>0,L123,"") -> 31.32849963 | AJ123: =AJ120+N123 -> 327.3136017
D124: =D121 -> 88.71164331 | E124: =E122-(D124-D125)*O4 -> 25.757671 | G124: =IF(Design!$H$19="x",D124,0) -> 0 | H124: =IF(Design!$H$19="x",E124,0) -> 0 | I124: =SUM(D124:D125)/2 -> 78.14557079 | J124: =SUM(E124:E125)/2 -> 26.18559556 | K124: =IF(Design!$H$18="x",I124,0) -> 78.14557079 | L124: =IF(Design!$H$18="x",J124,0) -> 26.18559556 | N124: =N123 -> 7.231221746 | O124: 327.3136017 | P124: 1323.64765 | S124: 661.8238252 | T124: -661.8238252 | U124: 137.7773218 | W124: 592.9351643 | Y124: =((_S5_-_S3_)*(O124-_L3_)/(_L5_-_L3_)+_S3_)/2 -> 592.9351643 | Z124: -592.9351643 | AB124: 592.9351643 | AC124: -592.9351643 | AE124: 592.9351643 | AF124: -592.9351643 | AG124: =IF(C122>0,L124,"") -> 26.18559556 | AH124: =O123 -> 327.3136017 | AI124: =$R$165/2 -> 906.41523
B125: 14 | C125: =C122+1 -> 36 | D125: =D122 -> 67.57949827 | E125: =E122 -> 26.61352012 | G125: =IF(Design!$H$19="x",D125,0) -> 0 | H125: =IF(Design!$H$19="x",E125,0) -> 0 | K125: =K124 -> 78.14557079 | L125: =L124 -> 26.18559556 | N125: =N124 -> 7.231221746 | O125: 327.3136017 | P125: 1323.64765 | Q125: =ATAN((E124-E125)/(D124-D125))*180/PI() -> -2.319204136 | S125: 661.8238252 | T125: -661.8238252 | U125: 137.7773218 | W125: 592.9351643 | Y125: 592.9351643 | Z125: -592.9351643 | AB125: 592.9351643 | AC125: -592.9351643 | AE125: 592.9351643 | AF125: -592.9351643 | AG125: =IF(C122>0,L125,"") -> 26.18559556 | AH125: =AH124 -> 327.3136017 | AI125: =-AI124 -> -906.41523
K126: =K125 -> 78.14557079 | L126: =L125 -> 26.18559556 | M126: =((D124-D125)^2+(E124-E125)^2)^0.5 -> 21.14946883 | N126: =((I124-I121)^2+(J124-J121)^2)^0.5 -> 5.142904074 | O126: =O123+N126 -> 332.4565058 | P126: =((D124-D125)^2+(E124-E125)^2)^0.5*Panels!$T$114 -> 1209.749617 | S126: 604.8748085 | T126: -604.8748085 | U126: 0.008035272245 | W126: 604.8707908 | Y126: 604.8707908 | Z126: -604.8707908 | AB126: 604.8707908 | AC126: -604.8707908 | AE126: 604.8707908 | AF126: -604.8707908 | AG126: =IF(C122>0,L126,"") -> 26.18559556 | AJ126: =AJ123+N126 -> 332.4565058
D127: =(D124+D130)/2 -> 88.71164331 | E127: =Panels!D44-(D124-D125)*O4 -> 23.86390391 | G127: =IF(Design!$H$19="x",D127,0) -> 0 | H127: =IF(Design!$H$19="x",E127,0) -> 0 | I127: =SUM(D127:D128)/2 -> 78.06868417 | J127: =SUM(E127:E128)/2 -> 24.29182847 | K127: =IF(Design!$H$18="x",I127,0) -> 78.06868417 | L127: =IF(Design!$H$18="x",J127,0) -> 24.29182847 | N127: =N126 -> 5.142904074 | O127: 332.4565058 | P127: 1209.749617 | S127: 604.8748085 | T127: -604.8748085 | U127: 0.008035272245 | W127: 604.8707908 | Y127: =((_S5_-_S3_)*(O127-_L3_)/(_L5_-_L3_)+_S3_)/2 -> 604.8707908 | Z127: -604.8707908 | AB127: 604.8707908 | AC127: -604.8707908 | AE127: 604.8707908 | AF127: -604.8707908 | AG127: =IF(C125>0,L127,"") -> 24.29182847 | AH127: =O126 -> 332.4565058 | AI127: =$R$165/2 -> 906.41523
B128: 13 | C128: =C125+1 -> 37 | D128: =Panels!C44 -> 67.42572504 | E128: =Panels!D44 -> 24.71975303 | G128: =IF(Design!$H$19="x",D128,0) -> 0 | H128: =IF(Design!$H$19="x",E128,0) -> 0 | K128: =K127 -> 78.06868417 | L128: =L127 -> 24.29182847 | N128: =N127 -> 5.142904074 | O128: 332.4565058 | P128: 1209.749617 | Q128: =ATAN((E127-E128)/(D127-D128))*180/PI() -> -2.302467892 | S128: 604.8748085 | T128: -604.8748085 | U128: 0.008035272245 | W128: 604.8707908 | Y128: 604.8707908 | Z128: -604.8707908 | AB128: 604.8707908 | AC128: -604.8707908 | AE128: 604.8707908 | AF128: -604.8707908 | AG128: =IF(C125>0,L128,"") -> 24.29182847 | AH128: =AH127 -> 332.4565058 | AI128: =-AI127 -> -906.41523
K129: =K128 -> 78.06868417 | L129: =L128 -> 24.29182847 | M129: =((D127-D128)^2+(E127-E128)^2)^0.5 -> 21.30311702 | N129: =((I127-I124)^2+(J127-J124)^2)^0.5 -> 1.895327239 | O129: =O126+N129 -> 334.351833 | P129: =((D127-D128)^2+(E127-E128)^2)^0.5*Panels!$T$114 -> 1218.538293 | S129: 609.2691467 | T129: -609.2691467 | U129: -0.0006206775254 | W129: 609.269457 | Y129: 609.269457 | Z129: -609.269457 | AB129: 609.269457 | AC129: -609.269457 | AE129: 609.269457 | AF129: -609.269457 | AG129: =IF(C125>0,L129,"") -> 24.29182847 | AJ129: =AJ126+N129 -> 334.351833
D130: =D124 -> 88.71164331 | E130: =(E127+Panels!D25)/2 -> 12.88195196 | G130: =IF(Design!$H$19="x",D130,0) -> 0 | H130: =IF(Design!$H$19="x",E130,0) -> 0 | I130: =SUM(D130:D131)/2 -> 78.06868417 | J130: =SUM(E130:E131)/2 -> 18.80085249 | K130: =IF(Design!$H$18="x",I130,0) -> 78.06868417 | L130: =IF(Design!$H$18="x",J130,0) -> 18.80085249 | N130: =N129 -> 1.895327239 | O130: 334.351833 | P130: 1218.538293 | S130: 609.2691467 | T130: -609.2691467 | U130: -0.0006206775254 | W130: 609.269457 | Y130: =((_S5_-_S3_)*(O130-_L3_)/(_L5_-_L3_)+_S3_)/2 -> 609.269457 | Z130: -609.269457 | AB130: 609.269457 | AC130: -609.269457 | AE130: 609.269457 | AF130: -609.269457 | AG130: =IF(C128>0,L130,"") -> 18.80085249 | AH130: =O129 -> 334.351833 | AI130: =$R$165/2 -> 906.41523
B131: 12 | C131: =C128+1 -> 38 | D131: =Panels!C44 -> 67.42572504 | E131: =Panels!D44 -> 24.71975303 | G131: =IF(Design!$H$19="x",D131,0) -> 0 | H131: =IF(Design!$H$19="x",E131,0) -> 0 | K131: =K130 -> 78.06868417 | L131: =L130 -> 18.80085249 | N131: =N130 -> 1.895327239 | O131: 334.351833 | P131: 1218.538293 | Q131: =ATAN((E130-E131)/(D130-D131))*180/PI() -> -29.07987887 | S131: 609.2691467 | T131: -609.2691467 | U131: -0.0006206775254 | W131: 609.269457 | Y131: 609.269457 | Z131: -609.269457 | AB131: 609.269457 | AC131: -609.269457 | AE131: 609.269457 | AF131: -609.269457 | AG131: =IF(C128>0,L131,"") -> 18.80085249 | AH131: =AH130 -> 334.351833 | AI131: =-AI130 -> -906.41523
K132: =K131 -> 78.06868417 | L132: =L131 -> 18.80085249 | M132: =((D130-D131)^2+(E130-E131)^2)^0.5 -> 24.35618712 | N132: =((I130-I127)^2+(J130-J127)^2)^0.5 -> 5.490975978 | O132: =O129+N132 -> 339.842809 | P132: =((D130-D131)^2+(E130-E131)^2)^0.5*Panels!$T$114 -> 1393.173903 | S132: 696.5869517 | T132: -696.5869517 | U132: 149.1481292 | W132: 622.0128871 | Y132: 622.0128871 | Z132: -622.0128871 | AB132: 622.0128871 | AC132: -622.0128871 | AE132: 622.0128871 | AF132: -622.0128871 | AG132: =IF(C128>0,L132,"") -> 18.80085249 | AJ132: =AJ129+N132 -> 339.842809
D133: =(D134+D130)/2 -> 78.06868417 | E133: =Panels!D25 -> 1.9 | G133: =IF(Design!$H$19="x",D133,0) -> 0 | H133: =IF(Design!$H$19="x",E133,0) -> 0 | I133: =SUM(D133:D134)/2 -> 72.74720461 | J133: =SUM(E133:E134)/2 -> 13.30987651 | K133: =IF(Design!$H$18="x",I133,0) -> 72.74720461 | L133: =IF(Design!$H$18="x",J133,0) -> 13.30987651 | N133: =N132 -> 5.490975978 | O133: 339.842809 | P133: 1393.173903 | S133: 696.5869517 | T133: -696.5869517 | U133: 149.1481292 | W133: 622.0128871 | Y133: =((_S5_-_S3_)*(O133-_L3_)/(_L5_-_L3_)+_S3_)/2 -> 622.0128871 | Z133: -622.0128871 | AB133: 622.0128871 | AC133: -622.0128871 | AE133: 622.0128871 | AF133: -622.0128871 | AG133: =IF(C131>0,L133,"") -> 13.30987651 | AH133: =O132 -> 339.842809 | AI133: =$R$165/2 -> 906.41523
B134: 11 | C134: =C131+1 -> 39 | D134: =D131 -> 67.42572504 | E134: =E131 -> 24.71975303 | G134: =IF(Design!$H$19="x",D134,0) -> 0 | H134: =IF(Design!$H$19="x",E134,0) -> 0 | K134: =K133 -> 72.74720461 | L134: =L133 -> 13.30987651 | N134: =N133 -> 5.490975978 | O134: 339.842809 | P134: 1393.173903 | Q134: =ATAN((E133-E134)/(D133-D134))*180/PI() -> -64.99601248 | S134: 696.5869517 | T134: -696.5869517 | U134: 149.1481292 | W134: 622.0128871 | Y134: 622.0128871 | Z134: -622.0128871 | AB134: 622.0128871 | AC134: -622.0128871 | AE134: 622.0128871 | AF134: -622.0128871 | AG134: =IF(C131>0,L134,"") -> 13.30987651 | AH134: =AH133 -> 339.842809 | AI134: =-AI133 -> -906.41523
K135: =K134 -> 72.74720461 | L135: =L134 -> 13.30987651 | M135: =((D133-D134)^2+(E133-E134)^2)^0.5 -> 25.17962882 | N135: =((I133-I130)^2+(J133-J130)^2)^0.5 -> 7.646499983 | O135: =O132+N135 -> 347.489309 | P135: =((D133-D134)^2+(E133-E134)^2)^0.5*Panels!$T$114 -> 1440.274769 | S135: 720.1373843 | T135: -720.1373843 | U135: 160.7570751 | W135: 639.7588467 | Y135: 639.7588467 | Z135: -639.7588467 | AB135: 639.7588467 | AC135: -639.7588467 | AE135: 639.7588467 | AF135: -639.7588467 | AG135: =IF(C131>0,L135,"") -> 13.30987651 | AJ135: =AJ132+N135 -> 347.489309
D136: =D134 -> 67.42572504 | E136: =E134 -> 24.71975303 | G136: =IF(Design!$H$19="x",D136,0) -> 0 | H136: =IF(Design!$H$19="x",E136,0) -> 0 | I136: =SUM(D136:D137)/2 -> 66.96362653 | J136: =SUM(E136:E137)/2 -> 13.30987651 | K136: =IF(Design!$H$18="x",I136,0) -> 66.96362653 | L136: =IF(Design!$H$18="x",J136,0) -> 13.30987651 | N136: =N135 -> 7.646499983 | O136: 347.489309 | P136: 1440.274769 | S136: 720.1373843 | T136: -720.1373843 | U136: 160.7570751 | W136: 639.7588467 | Y136: =((_S5_-_S3_)*(O136-_L3_)/(_L5_-_L3_)+_S3_)/2 -> 639.7588467 | Z136: -639.7588467 | AB136: 639.7588467 | AC136: -639.7588467 | AE136: 639.7588467 | AF136: -639.7588467 | AG136: =IF(C134>0,L136,"") -> 13.30987651 | AH136: =O135 -> 347.489309 | AI136: =$R$165/2 -> 906.41523
B137: 10 | C137: =C134+1 -> 40 | D137: =D134-(E136-E137)*O4 -> 66.50152801 | E137: =E133 -> 1.9 | G137: =IF(Design!$H$19="x",D137,0) -> 0 | H137: =IF(Design!$H$19="x",E137,0) -> 0 | K137: =K136 -> 66.96362653 | L137: =L136 -> 13.30987651 | N137: =N136 -> 7.646499983 | O137: 347.489309 | P137: 1440.274769 | Q137: =ATAN((E136-E137)/(D136-D137))*180/PI() -> 87.68079586 | S137: 720.1373843 | T137: -720.1373843 | U137: 160.7570751 | W137: 639.7588467 | Y137: 639.7588467 | Z137: -639.7588467 | AB137: 639.7588467 | AC137: -639.7588467 | AE137: 639.7588467 | AF137: -639.7588467 | AG137: =IF(C134>0,L137,"") -> 13.30987651 | AH137: =AH136 -> 347.489309 | AI137: =-AI136 -> -906.41523
K138: =K137 -> 66.96362653 | L138: =L137 -> 13.30987651 | M138: =((D136-D137)^2+(E136-E137)^2)^0.5 -> 22.83846029 | N138: =((I136-I133)^2+(J136-J133)^2)^0.5 -> 5.78357808 | O138: =O135+N138 -> 353.2728871 | P138: =((D136-D137)^2+(E136-E137)^2)^0.5*Panels!$T$114 -> 1306.359929 | S138: 653.1799643 | T138: -653.1799643 | U138: -0.002763979043 | W138: 653.1813463 | Y138: 653.1813463 | Z138: -653.1813463 | AB138: 653.1813463 | AC138: -653.1813463 | AE138: 653.1813463 | AF138: -653.1813463 | AG138: =IF(C134>0,L138,"") -> 13.30987651 | AJ138: =AJ135+N138 -> 353.2728871
D139: =Panels!C43 -> 29.65908214 | E139: =Panels!D43 -> 27.78639145 | G139: =IF(Design!$H$19="x",D139,0) -> 0 | H139: =IF(Design!$H$19="x",E139,0) -> 0 | I139: =SUM(D139:D140)/2 -> 29.1348844 | J139: =SUM(E139:E140)/2 -> 14.84319572 | K139: =IF(Design!$H$18="x",I139,0) -> 29.1348844 | L139: =IF(Design!$H$18="x",J139,0) -> 14.84319572 | N139: =N138 -> 5.78357808 | O139: 353.2728871 | P139: 1306.359929 | S139: =P139/2 -> 653.1799643 | T139: =-S139 -> -653.1799643 | U139: =(S139-W139)*2 -> -0.002763979043 | W139: =IF($H$16="Par",Y139,0)+IF($H$16="Con",AB139,0)+IF($H$16="Exp",AE139,0) -> 653.1813463 | Y139: =((_S5_-_S3_)*(O139-_L3_)/(_L5_-_L3_)+_S3_)/2 -> 653.1813463 | Z139: -653.1813463 | AB139: 653.1813463 | AC139: -653.1813463 | AE139: 653.1813463 | AF139: -653.1813463 | AG139: =IF(C137>0,L139,"") -> 14.84319572 | AH139: =O138 -> 353.2728871 | AI139: =$R$165/2 -> 906.41523
B140: 9 | C140: =C137+1 -> 41 | D140: =D139-(E139-E140)*O4 -> 28.61068666 | E140: =E137 -> 1.9 | G140: =IF(Design!$H$19="x",D140,0) -> 0 | H140: =IF(Design!$H$19="x",E140,0) -> 0 | K140: =K139 -> 29.1348844 | L140: =L139 -> 14.84319572 | N140: =N139 -> 5.78357808 | O140: 353.2728871 | P140: 1306.359929 | Q140: =ATAN((E139-E140)/(D139-D140))*180/PI() -> 87.68079586 | S140: 653.1799643 | T140: -653.1799643 | U140: -0.002763979043 | W140: 653.1813463 | Y140: 653.1813463 | Z140: -653.1813463 | AB140: 653.1813463 | AC140: -653.1813463 | AE140: 653.1813463 | AF140: -653.1813463 | AG140: =IF(C137>0,L140,"") -> 14.84319572 | AH140: =AH139 -> 353.2728871 | AI140: =-AI139 -> -906.41523
K141: =K140 -> 29.1348844 | L141: =L140 -> 14.84319572 | M141: =((D139-D140)^2+(E139-E140)^2)^0.5 -> 25.90761269 | N141: =((I139-I136)^2+(J139-J136)^2)^0.5 -> 37.85980452 | O141: =O138+N141 -> 391.1326916 | P141: =((D139-D140)^2+(E139-E140)^2)^0.5*Panels!$T$114 -> 1481.915446 | S141: 740.9577229 | T141: -740.9577229 | U141: -0.1769436048 | W141: 741.0461947 | Y141: 741.0461947 | Z141: -741.0461947 | AB141: 741.0461947 | AC141: -741.0461947 | AE141: 741.0461947 | AF141: -741.0461947 | AG141: =IF(C137>0,L141,"") -> 14.84319572 | AJ141: =AJ138+N141 -> 391.1326916
D142: =D139 -> 29.65908214 | E142: =E139 -> 27.78639145 | G142: =IF(Design!$H$19="x",D142,0) -> 0 | H142: =IF(Design!$H$19="x",E142,0) -> 0 | I142: =SUM(D142:D143)/2 -> 22.45721274 | J142: =SUM(E142:E143)/2 -> 14.84319572 | K142: =IF(Design!$H$18="x",I142,0) -> 22.45721274 | L142: =IF(Design!$H$18="x",J142,0) -> 14.84319572 | N142: =N141 -> 37.85980452 | O142: 391.1326916 | P142: 1481.915446 | S142: 740.9577229 | T142: -740.9577229 | U142: -0.1769436048 | W142: 741.0461947 | Y142: =((_S5_-_S3_)*(O142-_L3_)/(_L5_-_L3_)+_S3_)/2 -> 741.0461947 | Z142: =-Y142 -> -741.0461947 | AB142: =Y142 -> 741.0461947 | AC142: =-AB142 -> -741.0461947 | AE142: =Y142 -> 741.0461947 | AF142: -741.0461947 | AG142: =IF(C140>0,L142,"") -> 14.84319572 | AH142: =O141 -> 391.1326916 | AI142: =$R$165/2 -> 906.41523
B143: 8 | C143: =C140+1 -> 42 | D143: =(D140+Panels!C27)/2 -> 15.25534333 | E143: =E140 -> 1.9 | G143: =IF(Design!$H$19="x",D143,0) -> 0 | H143: =IF(Design!$H$19="x",E143,0) -> 0 | K143: =K142 -> 22.45721274 | L143: =L142 -> 14.84319572 | N143: 37.85980452 | O143: 391.1326916 | P143: 1481.915446 | Q143: =ATAN((E142-E143)/(D142-D143))*180/PI() -> 60.90750657 | S143: 740.9577229 | T143: -740.9577229 | U143: -0.1769436048 | W143: 741.0461947 | Y143: 741.0461947 | Z143: -741.0461947 | AB143: 741.0461947 | AC143: -741.0461947 | AE143: 741.0461947 | AF143: -741.0461947 | AG143: =IF(C140>0,L143,"") -> 14.84319572 | AH143: =AH142 -> 391.1326916 | AI143: =-AI142 -> -906.41523
K144: =K143 -> 22.45721274 | L144: =L143 -> 14.84319572 | M144: =((D142-D143)^2+(E142-E143)^2)^0.5 -> 29.62385785 | N144: =((I142-I139)^2+(J142-J139)^2)^0.5 -> 6.677671666 | O144: =O141+N144 -> 397.8103632 | P144: =((D142-D143)^2+(E142-E143)^2)^0.5*Panels!$T$114 -> 1694.484669 | S144: 847.2423345 | T144: -847.2423345 | U144: 181.3972643 | W144: 756.5437023 | Y144: 756.5437023 | Z144: -756.5437023 | AB144: 756.5437023 | AC144: -756.5437023 | AE144: 756.5437023 | AF144: -756.5437023 | AG144: =IF(C140>0,L144,"") -> 14.84319572 | AJ144: =AJ141+N144 -> 397.8103632
D145: =D142 -> 29.65908214 | E145: =E142 -> 27.78639145 | G145: =IF(Design!$H$19="x",D145,0) -> 0 | H145: =IF(Design!$H$19="x",E145,0) -> 0 | I145: =SUM(D145:D146)/2 -> 15.77954107 | J145: =SUM(E145:E146)/2 -> 21.31479359 | K145: =IF(Design!$H$18="x",I145,0) -> 15.77954107 | L145: =IF(Design!$H$18="x",J145,0) -> 21.31479359 | N145: =N144 -> 6.677671666 | O145: 397.8103632 | P145: 1694.484669 | S145: 847.2423345 | T145: -847.2423345 | U145: 181.3972643 | W145: 756.5437023 | Y145: 756.5437023 | Z145: -756.5437023 | AB145: 756.5437023 | AC145: -756.5437023 | AE145: 756.5437023 | AF145: -756.5437023 | AG145: =IF(C143>0,L145,"") -> 21.31479359 | AH145: =O144 -> 397.8103632 | AI145: =$R$165/2 -> 906.41523
B146: 7 | C146: =C143+1 -> 43 | D146: =Panels!C24 -> 1.9 | E146: =(E142+E143)/2 -> 14.84319572 | G146: =IF(Design!$H$19="x",D146,0) -> 0 | H146: =IF(Design!$H$19="x",E146,0) -> 0 | K146: =K145 -> 15.77954107 | L146: =L145 -> 21.31479359 | N146: 6.677671666 | O146: 397.8103632 | P146: 1694.484669 | Q146: =ATAN((E145-E146)/(D145-D146))*180/PI() -> 24.99817427 | S146: 847.2423345 | T146: -847.2423345 | U146: 181.3972643 | W146: 756.5437023 | Y146: 756.5437023 | Z146: -756.5437023 | AB146: 756.5437023 | AC146: -756.5437023 | AE146: 756.5437023 | AF146: -756.5437023 | AG146: =IF(C143>0,L146,"") -> 21.31479359 | AH146: =AH145 -> 397.8103632 | AI146: =-AI145 -> -906.41523
K147: =K146 -> 15.77954107 | L147: =L146 -> 21.31479359 | M147: =((D145-D146)^2+(E145-E146)^2)^0.5 -> 30.6283032 | N147: =((I145-I142)^2+(J145-J142)^2)^0.5 -> 9.299079404 | O147: =O144+N147 -> 407.1094426 | P147: =((D145-D146)^2+(E145-E146)^2)^0.5*Panels!$T$114 -> 1751.938943 | S147: 875.9694715 | T147: -875.9694715 | U147: 195.6890228 | W147: 778.1249601 | Y147: 778.1249601 | Z147: -778.1249601 | AB147: 778.1249601 | AC147: -778.1249601 | AE147: 778.1249601 | AF147: -778.1249601 | AG147: =IF(C143>0,L147,"") -> 21.31479359 | AJ147: =AJ144+N147 -> 407.1094426
D148: =D145 -> 29.65908214 | E148: =E145 -> 27.78639145 | G148: =IF(Design!$H$19="x",D148,0) -> 0 | H148: =IF(Design!$H$19="x",E148,0) -> 0 | I148: =SUM(D148:D149)/2 -> 15.77954107 | J148: =SUM(E148:E149)/2 -> 28.34851105 | K148: =IF(Design!$H$18="x",I148,0) -> 15.77954107 | L148: =IF(Design!$H$18="x",J148,0) -> 28.34851105 | N148: =N147 -> 9.299079404 | O148: 407.1094426 | P148: 1751.938943 | S148: 875.9694715 | T148: -875.9694715 | U148: 195.6890228 | W148: 778.1249601 | Y148: 778.1249601 | Z148: -778.1249601 | AB148: 778.1249601 | AC148: -778.1249601 | AE148: 778.1249601 | AF148: -778.1249601 | AG148: =IF(C146>0,L148,"") -> 28.34851105 | AH148: =O147 -> 407.1094426 | AI148: =$R$165/2 -> 906.41523
B149: 6 | C149: =C146+1 -> 44 | D149: =D146 -> 1.9 | E149: =E148+(D148-D149)*O4 -> 28.91063065 | G149: =IF(Design!$H$19="x",D149,0) -> 0 | H149: =IF(Design!$H$19="x",E149,0) -> 0 | K149: =K148 -> 15.77954107 | L149: =L148 -> 28.34851105 | N149: 9.299079404 | O149: 407.1094426 | P149: 1751.938943 | Q149: =ATAN((E148-E149)/(D148-D149))*180/PI() -> -2.319204136 | S149: 875.9694715 | T149: -875.9694715 | U149: 195.6890228 | W149: 778.1249601 | Y149: 778.1249601 | Z149: -778.1249601 | AB149: 778.1249601 | AC149: -778.1249601 | AE149: 778.1249601 | AF149: -778.1249601 | AG149: =IF(C146>0,L149,"") -> 28.34851105 | AH149: =AH148 -> 407.1094426 | AI149: =-AI148 -> -906.41523
K150: =K149 -> 15.77954107 | L150: =L149 -> 28.34851105 | M150: =((D148-D149)^2+(E148-E149)^2)^0.5 -> 27.78183859 | N150: =((I148-I145)^2+(J148-J145)^2)^0.5 -> 7.033717465 | O150: =O147+N150 -> 414.1431601 | P150: =((D148-D149)^2+(E148-E149)^2)^0.5*Panels!$T$114 -> 1589.121167 | S150: 794.5605835 | T150: -794.5605835 | U150: 0.2236128831 | W150: 794.4487771 | Y150: 794.4487771 | Z150: -794.4487771 | AB150: 794.4487771 | AC150: -794.4487771 | AE150: 794.4487771 | AF150: -794.4487771 | AG150: =IF(C146>0,L150,"") -> 28.34851105 | AJ150: =AJ147+N150 -> 414.1431601
D151: =Panels!C42 -> 29.81285538 | E151: =Panels!D42 -> 29.68015854 | G151: =IF(Design!$H$19="x",D151,0) -> 0 | H151: =IF(Design!$H$19="x",E151,0) -> 0 | I151: =SUM(D151:D152)/2 -> 15.85642769 | J151: =SUM(E151:E152)/2 -> 30.24539204 | K151: =IF(Design!$H$18="x",I151,0) -> 15.85642769 | L151: =IF(Design!$H$18="x",J151,0) -> 30.24539204 | N151: =N150 -> 7.033717465 | O151: 414.1431601 | P151: 1589.121167 | S151: 794.5605835 | T151: -794.5605835 | U151: 0.2236128831 | W151: 794.4487771 | Y151: 794.4487771 | Z151: -794.4487771 | AB151: 794.4487771 | AC151: -794.4487771 | AE151: 794.4487771 | AF151: -794.4487771 | AG151: =IF(C149>0,L151,"") -> 30.24539204 | AH151: =O150 -> 414.1431601 | AI151: =$R$165/2 -> 906.41523
B152: 5 | C152: =C149+1 -> 45 | D152: =D149 -> 1.9 | E152: =E151+(D151-D152)*O4 -> 30.81062554 | G152: =IF(Design!$H$19="x",D152,0) -> 0 | H152: =IF(Design!$H$19="x",E152,0) -> 0 | K152: =K151 -> 15.85642769 | L152: =L151 -> 30.24539204 | N152: 7.033717465 | O152: 414.1431601 | P152: 1589.121167 | Q152: =ATAN((E151-E152)/(D151-D152))*180/PI() -> -2.319204136 | S152: 794.5605835 | T152: -794.5605835 | U152: 0.2236128831 | W152: 794.4487771 | Y152: 794.4487771 | Z152: -794.4487771 | AB152: 794.4487771 | AC152: -794.4487771 | AE152: 794.4487771 | AF152: -794.4487771 | AG152: =IF(C149>0,L152,"") -> 30.24539204 | AH152: =AH151 -> 414.1431601 | AI152: =-AI151 -> -906.41523
K153: =K152 -> 15.85642769 | L153: =L152 -> 30.24539204 | M153: =((D151-D152)^2+(E151-E152)^2)^0.5 -> 27.93573788 | N153: =((I151-I148)^2+(J151-J148)^2)^0.5 -> 1.898438578 | O153: =O150+N153 -> 416.0415987 | P153: =((D151-D152)^2+(E151-E152)^2)^0.5*Panels!$T$114 -> 1597.924207 | S153: 798.9621034 | T153: -798.9621034 | U153: 0.2148788358 | W153: 798.854664 | Y153: 798.854664 | Z153: -798.854664 | AB153: 798.854664 | AC153: -798.854664 | AE153: 798.854664 | AF153: -798.854664 | AG153: =IF(C149>0,L153,"") -> 30.24539204 | AJ153: =AJ150+N153 -> 416.0415987
D154: =Panels!C37 -> 29.81285538 | E154: =Panels!D37 -> 29.68015854 | G154: =IF(Design!$H$19="x",D154,0) -> 0 | H154: =IF(Design!$H$19="x",E154,0) -> 0 | I154: =SUM(D154:D155)/2 -> 15.85642769 | J154: =SUM(E154:E155)/2 -> 30.24539204 | K154: =IF(Design!$H$18="x",I154,0) -> 15.85642769 | L154: =IF(Design!$H$18="x",J154,0) -> 30.24539204 | N154: =N153 -> 1.898438578 | O154: 416.0415987 | P154: 1597.924207 | S154: =P154/2 -> 798.9621034 | T154: -798.9621034 | U154: 0.2148788358 | W154: 798.854664 | Y154: 798.854664 | Z154: -798.854664 | AB154: =Y154 -> 798.854664 | AC154: =-AB154 -> -798.854664 | AE154: 798.854664 | AF154: -798.854664 | AG154: =IF(C152>0,L154,"") -> 30.24539204 | AH154: =O153 -> 416.0415987 | AI154: =$R$165/2 -> 906.41523
B155: 4 | C155: =C152+1 -> 46 | D155: =(D152+D164)/2 -> 1.9 | E155: =E154+(D154-D155)*O4 -> 30.81062554 | G155: =IF(Design!$H$19="x",D155,0) -> 0 | H155: =IF(Design!$H$19="x",E155,0) -> 0 | K155: =K154 -> 15.85642769 | L155: =L154 -> 30.24539204 | N155: 1.898438578 | O155: 416.0415987 | P155: 1597.924207 | Q155: =ATAN((E154-E155)/(D154-D155))*180/PI() -> -2.319204136 | S155: 798.9621034 | T155: -798.9621034 | U155: 0.2148788358 | W155: 798.854664 | Y155: 798.854664 | Z155: -798.854664 | AB155: 798.854664 | AC155: -798.854664 | AE155: 798.854664 | AF155: -798.854664 | AG155: =IF(C152>0,L155,"") -> 30.24539204 | AH155: =AH154 -> 416.0415987 | AI155: =-AI154 -> -906.41523
K156: =K155 -> 15.85642769 | L156: =L155 -> 30.24539204 | M156: =((D154-D155)^2+(E154-E155)^2)^0.5 -> 27.93573788 | N156: =((I154-I151)^2+(J154-J151)^2)^0.5 -> 0 | O156: =O153+N156 -> 416.0415987 | P156: =((D154-D155)^2+(E154-E155)^2)^0.5*Panels!$T$114 -> 1597.924207 | S156: 798.9621034 | T156: -798.9621034 | U156: 0.2148788358 | W156: 798.854664 | Y156: 798.854664 | Z156: -798.854664 | AB156: 798.854664 | AC156: -798.854664 | AE156: =Y156 -> 798.854664 | AF156: =-AE156 -> -798.854664 | AG156: =IF(C152>0,L156,"") -> 30.24539204 | AJ156: =AJ153+N156 -> 416.0415987
D157: =Path!AS16 -> 31.26965446 | E157: =Path!AT16 -> 47.62110992 | G157: =IF(Design!$H$19="x",D157,0) -> 0 | H157: =IF(Design!$H$19="x",E157,0) -> 0 | I157: =SUM(D157:D158)/2 -> 16.58482723 | J157: =SUM(E157:E158)/2 -> 48.21584351 | K157: =IF(Design!$H$18="x",I157,0) -> 16.58482723 | L157: =IF(Design!$H$18="x",J157,0) -> 48.21584351 | N157: =N156 -> 0 | O157: 416.0415987 | P157: 1597.924207 | S157: =P157/2 -> 798.9621034 | T157: =-S157 -> -798.9621034 | U157: 0.2148788358 | W157: 798.854664 | Y157: 798.854664 | Z157: =-Y157 -> -798.854664 | AB157: 798.854664 | AC157: -798.854664 | AE157: 798.854664 | AF157: -798.854664 | AG157: =IF(C155>0,L157,"") -> 48.21584351 | AH157: =O156 -> 416.0415987 | AI157: =$R$165/2 -> 906.41523
A158: S4 | B158: =B161+1 -> 3 | C158: =C155+1 -> 47 | D158: =(D149+D155)/2 -> 1.9 | E158: =E157+(D157-D158)*O4 -> 48.81057709 | G158: =IF(Design!$H$19="x",D158,0) -> 0 | H158: =IF(Design!$H$19="x",E158,0) -> 0 | K158: =K157 -> 16.58482723 | L158: =L157 -> 48.21584351 | N158: =N157 -> 0 | O158: 416.0415987 | P158: 1597.924207 | Q158: =ATAN((E157-E158)/(D157-D158))*180/PI() -> -2.319204136 | S158: 798.9621034 | T158: -798.9621034 | U158: 0.2148788358 | W158: 798.854664 | Y158: 798.854664 | Z158: -798.854664 | AB158: 798.854664 | AC158: -798.854664 | AE158: 798.854664 | AF158: -798.854664 | AG158: =IF(C155>0,L158,"") -> 48.21584351 | AH158: =AH157 -> 416.0415987 | AI158: =-AI157 -> -906.41523
K159: =K158 -> 16.58482723 | L159: =L158 -> 48.21584351 | M159: =((D157-D158)^2+(E157-E158)^2)^0.5 -> 29.39373123 | N159: =((I157-I154)^2+(J157-J154)^2)^0.5 -> 17.98520758 | O159: =O156+N159 -> 434.0268063 | P159: =((D157-D158)^2+(E157-E158)^2)^0.5*Panels!$T$114 -> 1681.321426 | S159: 840.6607131 | T159: -840.6607131 | U159: 0.1321352304 | W159: 840.5946455 | Y159: 840.5946455 | Z159: -840.5946455 | AB159: 840.5946455 | AC159: -840.5946455 | AE159: 840.5946455 | AF159: -840.5946455 | AG159: =IF(C155>0,L159,"") -> 48.21584351 | AJ159: =AJ156+N159 -> 434.0268063
D160: =Panels!C15 -> 1.9 | E160: =Panels!D15 -> 76.835 | G160: =IF(Design!$H$19="x",D160,0) -> 0 | H160: =IF(Design!$H$19="x",E160,0) -> 0 | I160: =SUM(D160:D161)/2 -> 17.71884197 | J160: =SUM(E160:E161)/2 -> 76.1938129 | K160: =IF(Design!$H$18="x",I160,0) -> 17.71884197 | L160: =IF(Design!$H$18="x",J160,0) -> 76.1938129 | N160: =N159 -> 17.98520758 | O160: 434.0268063 | P160: 1681.321426 | S160: 840.6607131 | T160: -840.6607131 | U160: 0.1321352304 | W160: 840.5946455 | Y160: 840.5946455 | Z160: -840.5946455 | AB160: 840.5946455 | AC160: -840.5946455 | AE160: 840.5946455 | AF160: -840.5946455 | AG160: =IF(C158>0,L160,"") -> 76.1938129 | AH160: =O159 -> 434.0268063 | AI160: =$R$165/2 -> 906.41523 | AL160: Panel B | AM160: =Panels!C37 -> 29.81285538 | AN160: =Panels!D37 -> 29.68015854 | AO160: =Panels!C36 -> 33.65429863 | AP160: =Panels!D36 -> 76.98877324 | AQ160: =(AP160-AN160)/(AO160-AM160) -> 12.31532308 | AR160: =(AP160*AM160-AN160*AO160)/(AM160-AO160) -> -337.4747874
B161: =B164+1 -> 2 | C161: =C158+1 -> 48 | D161: =AS161 -> 33.53768395 | E161: =AT161 -> 75.55262579 | G161: =IF(Design!$H$19="x",D161,0) -> 0 | H161: =IF(Design!$H$19="x",E161,0) -> 0 | K161: =K160 -> 17.71884197 | L161: =L160 -> 76.1938129 | N161: =N160 -> 17.98520758 | O161: 434.0268063 | P161: 1681.321426 | Q161: =ATAN((E160-E161)/(D160-D161))*180/PI() -> -2.321106422 | S161: 840.6607131 | T161: -840.6607131 | U161: 0.1321352304 | W161: 840.5946455 | Y161: 840.5946455 | Z161: -840.5946455 | AB161: 840.5946455 | AC161: -840.5946455 | AE161: 840.5946455 | AF161: -840.5946455 | AG161: =IF(C158>0,L161,"") -> 76.1938129 | AH161: =AH160 -> 434.0268063 | AI161: =-AI160 -> -906.41523 | AL161: Panel A | AM161: =Panels!C15 -> 1.9 | AN161: =Panels!D15 -> 76.835 | AO161: =AM161+100*Panels!X6 -> 101.8179544 | AP161: =AN161-100*Panels!Y6 -> 72.78501304 | AQ161: =(AP161-AN161)/(AO161-AM161) -> -0.04053312525 | AR161: =(AP161*AM161-AN161*AO161)/(AM161-AO161) -> 76.91201294 | AS161: =(AR160-AR161)/(AQ161-AQ160) -> 33.53768395 | AT161: =AS161*AQ161+AR161 -> 75.55262579
K162: =K161 -> 17.71884197 | L162: =L161 -> 76.1938129 | M162: =((D160-D161)^2+(E160-E161)^2)^0.5 -> 31.6636626 | N162: =((I160-I157)^2+(J160-J157)^2)^0.5 -> 28.00094214 | O162: =O159+N162 -> 462.0277484 | P162: =((D160-D161)^2+(E160-E161)^2)^0.5*Panels!$T$114 -> 1811.161501 | S162: 905.5807504 | T162: -905.5807504 | U162: 0.003311759803 | W162: 905.5790945 | Y162: 905.5790945 | Z162: -905.5790945 | AB162: 905.5790945 | AC162: -905.5790945 | AE162: 905.5790945 | AF162: -905.5790945 | AG162: =IF(C158>0,L162,"") -> 76.1938129 | AJ162: =AJ159+N162 -> 462.0277484
D163: =(Panels!C36+D161)/2 -> 33.59599129 | E163: =(Panels!D36+E161)/2 -> 76.27069952 | G163: =IF(Design!$H$19="x",D163,0) -> 0 | H163: =IF(Design!$H$19="x",E163,0) -> 0 | I163: =SUM(D163:D164)/2 -> 17.74799564 | J163: =SUM(E163:E164)/2 -> 76.91306831 | K163: =IF(Design!$H$18="x",I163,0) -> 17.74799564 | L163: =IF(Design!$H$18="x",J163,0) -> 76.91306831 | N163: =N162 -> 28.00094214 | O163: 462.0277484 | P163: 1811.161501 | S163: =P163/2 -> 905.5807504 | T163: =-S163 -> -905.5807504 | U163: 0.003311759803 | W163: 905.5790945 | Y163: 905.5790945 | Z163: =-Y163 -> -905.5790945 | AB163: 905.5790945 | AC163: -905.5790945 | AE163: 905.5790945 | AF163: -905.5790945 | AG163: =IF(C161>0,L163,"") -> 76.91306831 | AH163: =O162 -> 462.0277484 | AI163: =$R$165/2 -> 906.41523 | AL163: Panel A | AM163: =D163 -> 33.59599129 | AN163: =E163 -> 76.27069952 | AO163: =AM163-100*Panels!X6 -> -66.32196308 | AP163: =AN163+100*Panels!Y6 -> 80.32068647 | AQ163: =(AP163-AN163)/(AO163-AM163) -> -0.04053312525 | AR163: =(AP163*AM163-AN163*AO163)/(AM163-AO163) -> 77.63245004
A164: S5 | B164: 1 | C164: =C161+1 -> 49 | D164: =D152 -> 1.9 | E164: =AT164 -> 77.5554371 | G164: =IF(Design!$H$19="x",D164,0) -> 0 | H164: =IF(Design!$H$19="x",E164,0) -> 0 | K164: =K163 -> 17.74799564 | L164: =L163 -> 76.91306831 | N164: =N163 -> 28.00094214 | O164: 462.0277484 | P164: 1811.161501 | Q164: =ATAN((E163-E164)/(D163-D164))*180/PI() -> -2.321106422 | S164: 905.5807504 | T164: -905.5807504 | U164: 0.003311759803 | W164: 905.5790945 | Y164: 905.5790945 | Z164: -905.5790945 | AB164: 905.5790945 | AC164: -905.5790945 | AE164: 905.5790945 | AF164: -905.5790945 | AG164: =IF(C161>0,L164,"") -> 76.91306831 | AH164: =AH163 -> 462.0277484 | AI164: =-AI163 -> -906.41523 | AL164: Panel A | AM164: =Panels!C14 -> 1.9 | AN164: =Panels!D14 -> 0 | AO164: =Panels!C15 -> 1.9 | AP164: =Panels!D15 -> 76.835 | AQ164: =IF(AO164<>AM164,(AP164-AN164)/(AO164-AM164),"") ->  | AR164: =IF(AQ164<>"",(AP164*AM164-AN164*AO164)/(AM164-AO164),AM164) -> 1.9 | AS164: =IF(AQ164<>"",(AR163-AR164)/(AQ164-AQ163),AM164) -> 1.9 | AT164: =AS164*AQ163+AR163 -> 77.5554371
K165: =K164 -> 17.74799564 | L165: =L164 -> 76.91306831 | M165: =((D163-D164)^2+(E163-E164)^2)^0.5 -> 31.72201782 | N165: =((I163-I160)^2+(J163-J160)^2)^0.5 -> 0.7198460129 | O165: =O162+N165 -> 462.7475944 | P165: =((D163-D164)^2+(E163-E164)^2)^0.5*Panels!$T$114 -> 1814.499419 | Q165: =($O$162+O165)/2 -> 462.3876714 | R165: =($P$162+P165)/2 -> 1812.83046 | S165: 907.2497096 | T165: -907.2497096 | U165: 0 | W165: 907.2497096 | Y165: 907.2497096 | Z165: -907.2497096 | AB165: 907.2497096 | AC165: -907.2497096 | AE165: 907.2497096 | AF165: -907.2497096 | AG165: =IF(C161>0,L165,"") -> 76.91306831 | AJ165: =AJ162+N165 -> 462.7475944

Sheet Guides
A1: Guides | C1: x | D1: y | F1: x | G1: y
C2: =AB6 -> 42.29542638 | D2: =AC6 -> 76.835 | F2: =IF(Design!$H$22="x",C2,0) -> 0 | G2: =IF(Design!$H$22="x",D2,0) -> 0 | U2: Intersection points
B3: 1 | C3: =AB7 -> 32.36378475 | D3: =AC7 -> 0 | F3: =IF(Design!$H$22="x",C3,0) -> 0 | G3: =IF(Design!$H$22="x",D3,0) -> 0
V4: x1 | W4: y1 | X4: x2 | Y4: y2 | Z4: a | AA4: b | AB4: x | AC4: y | AD4: l
C5: =Panels!C39 -> 35.54806572 | D5: =Panels!D39 -> 76.835 | F5: =IF(Design!$H$22="x",C5,0) -> 0 | G5: =IF(Design!$H$22="x",D5,0) -> 0 | U5: Front | V5: =Panels!C19 -> 0 | W5: =Panels!D19 -> 76.835 | X5: =Panels!C18 -> 120.65 | Y5: =Panels!D18 -> 76.835 | Z5: =(Y5-W5)/(X5-V5) -> 0 | AA5: =(Y5*V5-W5*X5)/(V5-X5) -> 76.835
B6: 2 | C6: =(D6-Panels!D38)*(Panels!C39-Panels!C38)/(Panels!D39-Panels!D38)+Panels!C38 -> 29.30909013 | D6: =Panels!D20 -> 0 | F6: =IF(Design!$H$22="x",C6,0) -> 0 | G6: =IF(Design!$H$22="x",D6,0) -> 0 | U6: Panel | V6: =Panels!C51 -> 36.14546241 | W6: =Panels!D51 -> 29.25651303 | X6: =Panels!C50 -> 41.19016189 | Y6: =Panels!D50 -> 68.28424875 | Z6: =(Y6-W6)/(X6-V6) -> 7.736384664 | AA6: =(Y6*V6-W6*X6)/(V6-X6) -> -250.3786881 | AB6: =(AA5-AA6)/(Z6-Z5) -> 42.29542638 | AC6: =AB6*Z6+AA6 -> 76.835 | AD6: =(AB6^2+AC6^2)^0.5 -> 87.70701408
U7: Back | V7: =Panels!C20 -> 0 | W7: =Panels!D20 -> 0 | X7: =Panels!C21 -> 120.65 | Y7: =Panels!D21 -> 0 | Z7: =(Y7-W7)/(X7-V7) -> 0 | AA7: =(Y7*V7-W7*X7)/(V7-X7) -> 0 | AB7: =(AA6-AA7)/(Z7-Z6) -> 32.36378475 | AC7: =AB7*Z7+AA7 -> 0 | AD7: =(AB7^2+AC7^2)^0.5 -> 32.36378475
C8: =AB14 -> 109.1347219 | D8: =AC14 -> 76.835 | F8: =IF(Design!$H$22="x",C8,0) -> 0 | G8: =IF(Design!$H$22="x",D8,0) -> 0
B9: 3 | C9: =AB15 -> 105.4804108 | D9: =AC15 -> 0 | F9: =IF(Design!$H$22="x",C9,0) -> 0 | G9: =IF(Design!$H$22="x",D9,0) -> 0 | U9: Front | V9: =V5 -> 0 | W9: 76.835 | X9: 120.65 | Y9: 76.835 | Z9: =(Y9-W9)/(X9-V9) -> 0 | AA9: =(Y9*V9-W9*X9)/(V9-X9) -> 76.835
U10: Panel | V10: 36.14546241 | W10: 29.25651303 | X10: 41.19016189 | Y10: 68.28424875 | Z10: =(Y10-W10)/(X10-V10) -> 7.736384664 | AA10: =(Y10*V10-W10*X10)/(V10-X10) -> -250.3786881 | AB10: =(AA9-AA10)/(Z10-Z9) -> 42.29542638 | AC10: =AB10*Z10+AA10 -> 76.835 | AD10: =(AB10^2+AC10^2)^0.5 -> 87.70701408
C11: =Panels!C69 -> 90.61164331 | D11: =Panels!D20 -> 0 | F11: =IF(Design!$H$22="x",C11,0) -> 0 | G11: =IF(Design!$H$22="x",D11,0) -> 0 | U11: Back | V11: 0 | W11: 0 | X11: 120.65 | Y11: 0 | Z11: =(Y11-W11)/(X11-V11) -> 0 | AA11: =(Y11*V11-W11*X11)/(V11-X11) -> 0 | AB11: =(AA10-AA11)/(Z11-Z10) -> 32.36378475 | AC11: =AB11*Z11+AA11 -> 0 | AD11: =(AB11^2+AC11^2)^0.5 -> 32.36378475
B12: 4 | C12: =Panels!C69 -> 90.61164331 | D12: =Panels!D19 -> 76.835 | F12: =IF(Design!$H$22="x",C12,0) -> 0 | G12: =IF(Design!$H$22="x",D12,0) -> 0
U13: Front | V13: =V9 -> 0 | W13: =W9 -> 76.835 | X13: =X9 -> 120.65 | Y13: =Y9 -> 76.835 | Z13: =(Y13-W13)/(X13-V13) -> 0 | AA13: =(Y13*V13-W13*X13)/(V13-X13) -> 76.835
C14: =Panels!C20 -> 0 | D14: =(C14-Panels!C43)*(Panels!D44-Panels!D43)/(Panels!C44-Panels!C43)+Panels!D43 -> 30.19469872 | F14: =IF(Design!$H$22="x",C14,0) -> 0 | G14: =IF(Design!$H$22="x",D14,0) -> 0 | U14: Panel | V14: =Panels!C74 -> 106.1927286 | W14: =Panels!D74 -> 14.97708889 | X14: =Panels!C75 -> 108.5798706 | Y14: =Panels!D75 -> 65.16877983 | Z14: =(Y14-W14)/(X14-V14) -> 21.02585094 | AA14: =(Y14*V14-W14*X14)/(V14-X14) -> -2217.815395 | AB14: =(AA13-AA14)/(Z14-Z13) -> 109.1347219 | AC14: =AB14*Z14+AA14 -> 76.835 | AD14: =(AB14^2+AC14^2)^0.5 -> 133.4691153
B15: 5 | C15: =Panels!C21 -> 120.65 | D15: =(C15-Panels!C43)*(Panels!D44-Panels!D43)/(Panels!C44-Panels!C43)+Panels!D43 -> 20.3979602 | F15: =IF(Design!$H$22="x",C15,0) -> 0 | G15: =IF(Design!$H$22="x",D15,0) -> 0 | U15: Back | V15: =V11 -> 0 | W15: =W11 -> 0 | X15: =X11 -> 120.65 | Y15: =Y11 -> 0 | Z15: =(Y15-W15)/(X15-V15) -> 0 | AA15: =(Y15*V15-W15*X15)/(V15-X15) -> 0 | AB15: =(AA14-AA15)/(Z15-Z14) -> 105.4804108 | AC15: =AB15*Z15+AA15 -> 0 | AD15: =(AB15^2+AC15^2)^0.5 -> 105.4804108
C17: =Panels!C20 -> 0 | D17: =Panels!D20 -> 0 | F17: =IF(Design!$H$22="x",C17,0) -> 0 | G17: =IF(Design!$H$22="x",D17,0) -> 0
B18: 6 | C18: =Panels!C21 -> 120.65 | D18: =Panels!D21 -> 0 | F18: =IF(Design!$H$22="x",C18,0) -> 0 | G18: =IF(Design!$H$22="x",D18,0) -> 0
C20: =Panels!C20 -> 0 | D20: =(C20-Panels!C54)*(Panels!D55-Panels!D54)/(Panels!C55-Panels!C54)+Panels!D54 -> 70.33289285 | F20: =IF(Design!$H$22="x",C20,0) -> 0 | G20: =IF(Design!$H$22="x",D20,0) -> 0
B21: 7 | C21: =Panels!C21 -> 120.65 | D21: =(C21-Panels!C54)*(Panels!D55-Panels!D54)/(Panels!C55-Panels!C54)+Panels!D54 -> 64.59471843 | F21: =IF(Design!$H$22="x",C21,0) -> 0 | G21: =IF(Design!$H$22="x",D21,0) -> 0
C23: =Panels!C23 -> 0 | D23: =Panels!D62 -> 48.2292873 | F23: =IF(Design!$H$22="x",C23,0) -> 0 | G23: =IF(Design!$H$22="x",D23,0) -> 0
B24: 8 | C24: =Panels!C21 -> 120.65 | D24: =D23 -> 48.2292873 | F24: =IF(Design!$H$22="x",C24,0) -> 0 | G24: =IF(Design!$H$22="x",D24,0) -> 0
C26: =Panels!C20 -> 0 | D26: =Panels!D20 -> 0 | F26: =IF(Design!$H$22="x",C26,0) -> 0 | G26: =IF(Design!$H$22="x",D26,0) -> 0
B27: 9 | C27: =Panels!C19 -> 0 | D27: =Panels!D19 -> 76.835 | F27: =IF(Design!$H$22="x",C27,0) -> 0 | G27: =IF(Design!$H$22="x",D27,0) -> 0
C29: =Panels!C23 -> 0 | D29: =Panels!D23 -> 0 | F29: =IF(Design!$H$22="x",C29,0) -> 0 | G29: =IF(Design!$H$22="x",D29,0) -> 0
B30: 10 | C30: =Panels!C21 -> 120.65 | D30: =Panels!D21 -> 0 | F30: =IF(Design!$H$22="x",C30,0) -> 0 | G30: =IF(Design!$H$22="x",D30,0) -> 0

Sheet Layout

Sheet Instructions
B2: Instructions
B4: 1 | C4: =CONCATENATE("Cut out the side panels, ",Design!$E$51,"cm x ",Design!$F$51,"cm (2 are required)") -> Cut out the side panels, 120.7cm x 76.8cm (2 are required)
B5: =B4+1 -> 2 | C5: Draw out the guides on the side panels as illustrated. One panel must mirror the other
B6: 3 | C6: =CONCATENATE("Prepare the speaker baffle. This panel should be ",ROUND(Design!$E$50,1),"cm x ",ROUND(Design!$F$50,1)," cm. Cut the mounting hole for the speaker so that it is ",Design!D18," cm from one of the ends that measures ",Design!E49," cm.") -> Prepare the speaker baffle. This panel should be 57.2cm x 47.5 cm. Cut the mounting hole for the speaker so that it is 18 cm from one of the ends that measures 57.2 cm.
B7: 4 | C7: Using the guides on the side panel, join the speaker baffle and all of the internal panels to the side panel.
B8: 5 | C8: Cut out and join all the rest of the bracing panels to the internal panels.
B9: 6 | C9: =CONCATENATE("Cut out the front panel (",ROUND(Design!E53,1),"cm x ",ROUND(Design!F53,1),"cm), top and bottom panels (",ROUND(Design!E49,1),"cm x ",ROUND(Design!F49,1),"cm), and back panel (",ROUND(Design!E52,1),"cm x ",ROUND(Design!F52,1),"cm)") -> Cut out the front panel (57.2cm x 83.2cm), top and bottom panels (57.2cm x 76.8cm), and back panel (57.2cm x 116.9cm)
B10: 7 | C10: Join the front panel, top and bottom panels and back panels to the side panel to which the other panels have already been joined.
B11: 8 | C11: Double-check to ensure that all joins are airtight.
B12: 9 | C12: Finally, join the remaining side panel to the rest of the box. This should complete the build. Again, ensure that all joins are airtight.

Sheet Bracing
A1: Bracing | C1: x | D1: y | F1: x | G1: y | S1: Intersection points
C2: =C8 -> 67.42572504 | D2: =D8 -> 24.71975303 | F2: =IF(Design!$H$21="x",C2,0) -> 0 | G2: =IF(Design!$H$21="x",D2,0) -> 0
B3: 1 | C3: =C4 -> 88.71164331 | D3: =Panels!D60 -> 46.3292873 | F3: =IF(Design!$H$21="x",C3,0) -> 0 | G3: =IF(Design!$H$21="x",D3,0) -> 0 | T3: x1 | U3: y1 | V3: x2 | W3: y2 | X3: a | Y3: b | Z3: x | AA3: y | AB3: l
C4: =Panels!C70 -> 88.71164331 | D4: =Panels!D25 -> 1.9 | F4: =IF(Design!$H$21="x",C4,0) -> 0 | G4: =IF(Design!$H$21="x",D4,0) -> 0 | S4: Guide 1 | T4: =Guides!C9 -> 105.4804108 | U4: =Guides!D9 -> 0 | V4: =Guides!C8 -> 109.1347219 | W4: =Guides!D8 -> 76.835 | X4: =(W4-U4)/(V4-T4) -> 21.02585094 | Y4: =(W4*T4-U4*V4)/(T4-V4) -> -2217.815395
C5: =Panels!C24 -> 1.9 | D5: =Panels!D24 -> 1.9 | F5: =IF(Design!$H$21="x",C5,0) -> 0 | G5: =IF(Design!$H$21="x",D5,0) -> 0 | S5: Guide 2 | T5: =Guides!C23 -> 0 | U5: =Guides!D23 -> 48.2292873 | V5: =Guides!C24 -> 120.65 | W5: =Guides!D24 -> 48.2292873 | X5: =(W5-U5)/(V5-T5) -> 0 | Y5: =(W5*T5-U5*V5)/(T5-V5) -> 48.2292873 | Z5: =(Y4-Y5)/(X5-X4) -> 107.7742199 | AA5: =Z5*X5+Y5 -> 48.2292873 | AB5: =(Z5^2+AA5^2)^0.5 -> 118.0734797
C6: =C5 -> 1.9 | D6: =(Guides!D20+Guides!D14)/2 -> 50.26379579 | F6: =IF(Design!$H$21="x",C6,0) -> 0 | G6: =IF(Design!$H$21="x",D6,0) -> 0
C7: =Z8 -> 29.65908214 | D7: =AA8 -> 27.78639145 | F7: =IF(Design!$H$21="x",C7,0) -> 0 | G7: =IF(Design!$H$21="x",D7,0) -> 0 | S7: Guide 3 | T7: =Guides!C14 -> 0 | U7: =Guides!D14 -> 30.19469872 | V7: =Guides!C15 -> 120.65 | W7: =Guides!D15 -> 20.3979602 | X7: =(W7-U7)/(V7-T7) -> -0.08119965619 | Y7: =(W7*T7-U7*V7)/(T7-V7) -> 30.19469872
C8: =Panels!C44 -> 67.42572504 | D8: =Panels!D44 -> 24.71975303 | F8: =IF(Design!$H$21="x",C8,0) -> 0 | G8: =IF(Design!$H$21="x",D8,0) -> 0 | S8: Panel B | T8: =Panels!C36 -> 33.65429863 | U8: =Panels!D36 -> 76.98877324 | V8: =Panels!C37 -> 29.81285538 | W8: =Panels!D37 -> 29.68015854 | X8: =(W8-U8)/(V8-T8) -> 12.31532308 | Y8: =(W8*T8-U8*V8)/(T8-V8) -> -337.4747874 | Z8: =(Y7-Y8)/(X8-X7) -> 29.65908214 | AA8: =Z8*X8+Y8 -> 27.78639145 | AB8: =(Z8^2+AA8^2)^0.5 -> 40.64166216
C9: =C2 -> 67.42572504 | D9: =D2 -> 24.71975303 | F9: =IF(Design!$H$21="x",C9,0) -> 0 | G9: =IF(Design!$H$21="x",D9,0) -> 0
S10: Guide 3 | T10: =Guides!C8 -> 109.1347219 | U10: =Guides!D8 -> 76.835 | V10: =Guides!C9 -> 105.4804108 | W10: =Guides!D9 -> 0 | X10: =(W10-U10)/(V10-T10) -> 21.02585094 | Y10: =(W10*T10-U10*V10)/(T10-V10) -> -2217.815395
C11: =Panels!C32 -> 35.54806572 | D11: =Panels!D32 -> 74.935 | F11: =IF(Design!$H$21="x",C11,0) -> 0 | G11: =IF(Design!$H$21="x",D11,0) -> 0 | S11: Panel I | T11: =Panels!C62 -> 58.70946422 | U11: =Panels!D62 -> 48.2292873 | V11: =Panels!C63 -> 90.61164331 | W11: =Panels!D63 -> 48.2292873 | X11: =(W11-U11)/(V11-T11) -> 0 | Y11: =(W11*T11-U11*V11)/(T11-V11) -> 48.2292873 | Z11: =(Y10-Y11)/(X11-X10) -> 107.7742199 | AA11: =Z11*X11+Y11 -> 48.2292873 | AB11: =(Z11^2+AA11^2)^0.5 -> 118.0734797
B12: 2 | C12: =Panels!C54 -> 43.07448549 | D12: =Panels!D54 -> 68.28424875 | F12: =IF(Design!$H$21="x",C12,0) -> 0 | G12: =IF(Design!$H$21="x",D12,0) -> 0
C13: =Panels!C75 -> 108.5798706 | D13: =Panels!D75 -> 65.16877983 | F13: =IF(Design!$H$21="x",C13,0) -> 0 | G13: =IF(Design!$H$21="x",D13,0) -> 0
C14: =Panels!C74 -> 106.1927286 | D14: =Panels!D73 -> 15.06735182 | F14: =IF(Design!$H$21="x",C14,0) -> 0 | G14: =IF(Design!$H$21="x",D14,0) -> 0 | S14: Panel G | T14: =Panels!C57 -> 42.98422256 | U14: =Panels!D57 -> 66.38639401 | V14: =Panels!C56 -> 106.5917529 | W14: =Panels!D56 -> 63.36118802 | X14: =(W14-U14)/(V14-T14) -> -0.04756050077 | Y14: =(W14*T14-U14*V14)/(T14-V14) -> 68.43074516
C15: =Panels!C25 -> 118.75 | D15: =Panels!D25 -> 1.9 | F15: =IF(Design!$H$21="x",C15,0) -> 0 | G15: =IF(Design!$H$21="x",D15,0) -> 0 | S15: Guide | T15: =Panels!C61 -> 58.70946422 | U15: =Panels!D61 -> 46.3292873 | V15: =Panels!C62 -> 58.70946422 | W15: =Panels!D62 -> 48.2292873 | X15: =IF((V15<>T15),(W15-U15)/(V15-T15),"vertical") -> vertical | Y15: =IF((V15<>T15),(W15*T15-U15*V15)/(T15-V15),"vertical") -> vertical | Z15: =IF((V15<>T15),(Y14-Y15)/(X15-X14),T15) -> 58.70946422 | AA15: =IF((V15<>T15),Z15*X15+Y15,T15*X14+Y14) -> 65.63849365 | AB15: =(Z15^2+AA15^2)^0.5 -> 88.06368739
C16: =Panels!C33 -> 118.75 | D16: =Panels!D33 -> 74.935 | F16: =IF(Design!$H$21="x",C16,0) -> 0 | G16: =IF(Design!$H$21="x",D16,0) -> 0
C17: =C11 -> 35.54806572 | D17: =D11 -> 74.935 | F17: =IF(Design!$H$21="x",C17,0) -> 0 | G17: =IF(Design!$H$21="x",D17,0) -> 0
S18: Panel F | T18: =Panels!C45 -> 67.57949827 | U18: =Panels!D45 -> 26.61352012 | V18: =Panels!C46 -> 29.81285538 | W18: =Panels!D46 -> 29.68015854 | X18: =(W18-U18)/(V18-T18) -> -0.08119965619 | Y18: =(W18*T18-U18*V18)/(T18-V18) -> 32.10095214
S19: Guide | T19: =T15 -> 58.70946422 | U19: =U15 -> 46.3292873 | V19: =V15 -> 58.70946422 | W19: =W15 -> 48.2292873 | X19: =IF((V19<>T19),(W19-U19)/(V19-T19),"vertical") -> vertical | Y19: =IF((V19<>T19),(W19*T19-U19*V19)/(T19-V19),"vertical") -> vertical | Z19: =IF((V19<>T19),(Y18-Y19)/(X19-X18),T19) -> 58.70946422 | AA19: =IF((V19<>T19),Z19*X19+Y19,T19*X18+Y18) -> 27.33376383 | AB19: =(Z19^2+AA19^2)^0.5 -> 64.76060403
C20: =Panels!C48 -> 38.029786 | D20: =Panels!D48 -> 29.0129466 | F20: =IF(Design!$H$21="x",C20,0) -> 0 | G20: =IF(Design!$H$21="x",D20,0) -> 0
B21: 3 | C21: =Panels!C57 -> 42.98422256 | D21: =Panels!D57 -> 66.38639401 | F21: =IF(Design!$H$21="x",C21,0) -> 0 | G21: =IF(Design!$H$21="x",D21,0) -> 0
C22: =Z15 -> 58.70946422 | D22: =AA15 -> 65.63849365 | F22: =IF(Design!$H$21="x",C22,0) -> 0 | G22: =IF(Design!$H$21="x",D22,0) -> 0
C23: =Z19 -> 58.70946422 | D23: =AA19 -> 27.33376383 | F23: =IF(Design!$H$21="x",C23,0) -> 0 | G23: =IF(Design!$H$21="x",D23,0) -> 0
C24: =C20 -> 38.029786 | D24: =D20 -> 29.0129466 | F24: =IF(Design!$H$21="x",C24,0) -> 0 | G24: =IF(Design!$H$21="x",D24,0) -> 0
